Workbook

Sheet Main
B10: 2021-04-22
B12: Sheet No. | C12: Template Name | D12: Summary
B13: 1 | C13: Future Intra | D13: For Intraday trading in F&O segment
B14: 2 | C14: Cash Intra | D14: For Intraday trading in cash market segment
B15: 3 | C15: Mid-cap Intra | D15: For Intraday trading in Mid-cap stocks
B16: 4 | C16: Bulk Deals | D16: Reveals Bulk Deals carried on NSE & BSE
B17: 5 | C17: Call Tracker
K27: `

Sheet Future Intra
M5: Back to Main Page
A6: FOR INTRA DAY TRADING | L6: =Main!B10 -> 2021-04-22
A9: Sr.no | B9: Sector | C9: Scrip | D9: Expiry Date | E9: CLOSE RATE | F9: Pivot Point | G9: Supports | J9: Resistances
B10: Sector | E10: Point | F10: Point | G10: S1 | H10: S2 | I10: S3 | J10: R1 | K10: R2 | L10: R3 | M10: HIGH | N10: LOW | O10: OI | P10: % Change in OI
A11: 1 | B11: Index | C11: BANKNIFTY | D11: 2021-04-29 | E11: 31120.55 | F11: 31273.95 | G11: 30763.60 | H11: 30406.65 | I11: 29896.30 | J11: 31630.90 | K11: 32141.25 | L11: 32498.20 | M11: 31784.3 | N11: 30917 | O11: 1811550 | P11: 3.14%
A12: 2 | B12: Index | C12: NIFTY | D12: 2021-04-29 | E12: 14296.20 | F12: 14352.42 | G12: 14169.33 | H12: 14042.47 | I12: 13859.38 | J12: 14479.28 | K12: 14662.37 | L12: 14789.23 | M12: 14535.5 | N12: 14225.55 | O12: 12510825 | P12: 1.77%
A13: 3 | B13: Index | C13: FINNIFTY | D13: 2021-04-29 | E13: 14945.75 | F13: 15062.28 | G13: 14734.57 | H13: 14523.38 | I13: 14195.67 | J13: 15273.47 | K13: 15601.18 | L13: 15812.37 | M13: 15390 | N13: 14851.1 | O13: 17320 | P13: -6.88%
A14: 4 | B14: Chemical | C14: AARTIIND | D14: 2021-04-29 | E14: 1433.10 | F14: 1428.30 | G14: 1412.20 | H14: 1391.30 | I14: 1375.20 | J14: 1449.20 | K14: 1465.30 | L14: 1486.20 | M14: 1444.4 | N14: 1407.4 | O14: 466650 | P14: -0.45%
A15: 5 | B15: Cement | C15: ACC | D15: 2021-04-29 | E15: 1825.95 | F15: 1870.37 | G15: 1766.73 | H15: 1707.52 | I15: 1603.88 | J15: 1929.58 | K15: 2033.22 | L15: 2092.43 | M15: 1974 | N15: 1811.15 | O15: 3549500 | P15: 8.70%
A16: 6 | B16: Others | C16: ADANIENT | D16: 2021-04-29 | E16: 1142.25 | F16: 1149.18 | G16: 1118.62 | H16: 1094.98 | I16: 1064.42 | J16: 1172.82 | K16: 1203.38 | L16: 1227.02 | M16: 1179.75 | N16: 1125.55 | O16: 18396000 | P16: 1.49%
A17: 7 | B17: Others | C17: ADANIPORTS | D17: 2021-04-29 | E17: 721.40 | F17: 726.70 | G17: 705.90 | H17: 690.40 | I17: 669.60 | J17: 742.20 | K17: 763.00 | L17: 778.50 | M17: 747.5 | N17: 711.2 | O17: 72257500 | P17: 0.01%
A18: 8 | B18: Pharma | C18: ALKEM | D18: 2021-04-29 | E18: 2742.55 | F18: 2750.13 | G18: 2725.27 | H18: 2707.98 | I18: 2683.12 | J18: 2767.42 | K18: 2792.28 | L18: 2809.57 | M18: 2775 | N18: 2732.85 | O18: 319200 | P18: -1.12%
A19: 9 | B19: Automobile | C19: AMARAJABAT | D19: 2021-04-29 | E19: 803.35 | F19: 807.80 | G19: 796.60 | H19: 789.85 | I19: 778.65 | J19: 814.55 | K19: 825.75 | L19: 832.50 | M19: 819 | N19: 801.05 | O19: 4123000 | P19: 1.10%
A20: 10 | B20: Cement | C20: AMBUJACEM | D20: 2021-04-29 | E20: 295.40 | F20: 300.87 | G20: 286.98 | H20: 278.57 | I20: 264.68 | J20: 309.28 | K20: 323.17 | L20: 331.58 | M20: 314.75 | N20: 292.45 | O20: 17769000 | P20: 8.16%
A21: 11 | B21: Pharma | C21: APLLTD | D21: 2021-04-29 | E21: 996.55 | F21: 1000.03 | G21: 980.07 | H21: 963.58 | I21: 943.62 | J21: 1016.52 | K21: 1036.48 | L21: 1052.97 | M21: 1020 | N21: 983.55 | O21: 1095050 | P21: -2.35%
A22: 12 | B22: Others | C22: APOLLOHOSP | D22: 2021-04-29 | E22: 3272.80 | F22: 3261.43 | G22: 3213.92 | H22: 3155.03 | I22: 3107.52 | J22: 3320.32 | K22: 3367.83 | L22: 3426.72 | M22: 3308.95 | N22: 3202.55 | O22: 2141500 | P22: -0.09%
A23: 13 | B23: Automobile | C23: APOLLOTYRE | D23: 2021-04-29 | E23: 202.70 | F23: 204.20 | G23: 199.50 | H23: 196.30 | I23: 191.60 | J23: 207.40 | K23: 212.10 | L23: 215.30 | M23: 208.9 | N23: 201 | O23: 13040000 | P23: 0.19%
A24: 14 | B24: Automobile | C24: ASHOKLEY | D24: 2021-04-29 | E24: 112.60 | F24: 112.53 | G24: 110.67 | H24: 108.73 | I24: 106.87 | J24: 114.47 | K24: 116.33 | L24: 118.27 | M24: 114.4 | N24: 110.6 | O24: 35379000 | P24: -6.80%
A25: 15 | B25: FMCG | C25: ASIANPAINT | D25: 2021-04-29 | E25: 2552.15 | F25: 2566.82 | G25: 2516.43 | H25: 2480.72 | I25: 2430.33 | J25: 2602.53 | K25: 2652.92 | L25: 2688.63 | M25: 2617.2 | N25: 2531.1 | O25: 4681200 | P25: -0.10%
A26: 16 | B26: Banking | C26: AUBANK | D26: 2021-04-29 | E26: 1040.15 | F26: 1035.58 | G26: 1016.57 | H26: 992.98 | I26: 973.97 | J26: 1059.17 | K26: 1078.18 | L26: 1101.77 | M26: 1054.6 | N26: 1012 | O26: 3103000 | P26: -0.66%
A27: 17 | B27: Pharma | C27: AUROPHARMA | D27: 2021-04-29 | E27: 987.05 | F27: 990.83 | G27: 973.82 | H27: 960.58 | I27: 943.57 | J27: 1004.07 | K27: 1021.08 | L27: 1034.32 | M27: 1007.85 | N27: 977.6 | O27: 9708400 | P27: -6.56%
A28: 18 | B28: Banking | C28: AXISBANK | D28: 2021-04-29 | E28: 651.70 | F28: 652.92 | G28: 642.48 | H28: 633.27 | I28: 622.83 | J28: 662.13 | K28: 672.57 | L28: 681.78 | M28: 663.35 | N28: 643.7 | O28: 39328800 | P28: -1.06%
A29: 19 | B29: Automobile | C29: BAJAJ-AUTO | D29: 2021-04-29 | E29: 3598.40 | F29: 3591.48 | G29: 3561.97 | H29: 3525.53 | I29: 3496.02 | J29: 3627.92 | K29: 3657.43 | L29: 3693.87 | M29: 3621 | N29: 3555.05 | O29: 1987250 | P29: -2.11%
A30: 20 | B30: Finance | C30: BAJAJFINSV | D30: 2021-04-29 | E30: 9826.35 | F30: 9796.33 | G30: 9617.72 | H30: 9409.08 | I30: 9230.47 | J30: 10004.97 | K30: 10183.58 | L30: 10392.22 | M30: 9974.95 | N30: 9587.7 | O30: 692250 | P30: 13.62%
A31: 21 | B31: Finance | C31: BAJFINANCE | D31: 2021-04-29 | E31: 4613.20 | F31: 4631.68 | G31: 4546.97 | H31: 4480.73 | I31: 4396.02 | J31: 4697.92 | K31: 4782.63 | L31: 4848.87 | M31: 4716.4 | N31: 4565.45 | O31: 4712000 | P31: -2.51%
A32: 22 | B32: Automobile | C32: BALKRISIND | D32: 2021-04-29 | E32: 1696.05 | F32: 1707.60 | G32: 1668.60 | H32: 1641.15 | I32: 1602.15 | J32: 1735.05 | K32: 1774.05 | L32: 1801.50 | M32: 1746.6 | N32: 1680.15 | O32: 1666800 | P32: 4.54%
A33: 23 | B33: Banking | C33: BANDHANBNK | D33: 2021-04-29 | E33: 308.95 | F33: 310.05 | G33: 304.40 | H33: 299.85 | I33: 294.20 | J33: 314.60 | K33: 320.25 | L33: 324.80 | M33: 315.7 | N33: 305.5 | O33: 16914600 | P33: 0.52%
A34: 24 | B34: Banking | C34: BANKBARODA | D34: 2021-04-29 | E34: 63.50 | F34: 64.12 | G34: 62.28 | H34: 61.07 | I34: 59.23 | J34: 65.33 | K34: 67.17 | L34: 68.38 | M34: 65.95 | N34: 62.9 | O34: 129881700 | P34: 0.96%
A35: 25 | B35: FMCG | C35: BATAINDIA | D35: 2021-04-29 | E35: 1298.25 | F35: 1305.38 | G35: 1280.87 | H35: 1263.48 | I35: 1238.97 | J35: 1322.77 | K35: 1347.28 | L35: 1364.67 | M35: 1329.9 | N35: 1288 | O35: 1863400 | P35: -0.88%
A36: 26 | B36: Capital_Goods | C36: BEL | D36: 2021-04-29 | E36: 124.65 | F36: 125.35 | G36: 123.10 | H36: 121.55 | I36: 119.30 | J36: 126.90 | K36: 129.15 | L36: 130.70 | M36: 127.6 | N36: 123.8 | O36: 41853200 | P36: 0.42%
A37: 27 | B37: FMCG | C37: BERGEPAINT | D37: 2021-04-29 | E37: 710.45 | F37: 713.92 | G37: 703.43 | H37: 696.42 | I37: 685.93 | J37: 720.93 | K37: 731.42 | L37: 738.43 | M37: 724.4 | N37: 706.9 | O37: 3075600 | P37: 0.47%
A38: 28 | B38: Automobile | C38: BHARATFORG | D38: 2021-04-29 | E38: 575.10 | F38: 576.65 | G38: 563.00 | H38: 550.90 | I38: 537.25 | J38: 588.75 | K38: 602.40 | L38: 614.50 | M38: 590.3 | N38: 564.55 | O38: 5517000 | P38: 0.27%
A39: 29 | B39: Telecom | C39: BHARTIARTL | D39: 2021-04-29 | E39: 530.35 | F39: 531.60 | G39: 525.55 | H39: 520.75 | I39: 514.70 | J39: 536.40 | K39: 542.45 | L39: 547.25 | M39: 537.65 | N39: 526.8 | O39: 94369533 | P39: -0.82%
A40: 30 | B40: Capital_Goods | C40: BHEL | D40: 2021-04-29 | E40: 44.25 | F40: 44.53 | G40: 43.62 | H40: 42.98 | I40: 42.07 | J40: 45.17 | K40: 46.08 | L40: 46.72 | M40: 45.45 | N40: 43.9 | O40: 106617000 | P40: 0.02%
A41: 31 | B41: Pharma | C41: BIOCON | D41: 2021-04-29 | E41: 402.30 | F41: 403.95 | G41: 396.35 | H41: 390.40 | I41: 382.80 | J41: 409.90 | K41: 417.50 | L41: 423.45 | M41: 411.55 | N41: 398 | O41: 18505800 | P41: 3.55%
A42: 32 | B42: Automobile | C42: BOSCHLTD | D42: 2021-04-29 | E42: 13423.95 | F42: 13476.88 | G42: 13248.37 | H42: 13072.78 | I42: 12844.27 | J42: 13652.47 | K42: 13880.98 | L42: 14056.57 | M42: 13705.4 | N42: 13301.3 | O42: 103000 | P42: -2.28%
A43: 33 | B43: Oil_Gas | C43: BPCL | D43: 2021-04-29 | E43: 409.35 | F43: 410.72 | G43: 405.58 | H43: 401.82 | I43: 396.68 | J43: 414.48 | K43: 419.62 | L43: 423.38 | M43: 415.85 | N43: 406.95 | O43: 47950200 | P43: -0.27%
A44: 34 | B44: FMCG | C44: BRITANNIA | D44: 2021-04-29 | E44: 3737.25 | F44: 3733.38 | G44: 3705.77 | H44: 3674.28 | I44: 3646.67 | J44: 3764.87 | K44: 3792.48 | L44: 3823.97 | M44: 3761 | N44: 3701.9 | O44: 1891200 | P44: -0.11%
A45: 35 | B45: Pharma | C45: CADILAHC | D45: 2021-04-29 | E45: 556.55 | F45: 552.82 | G45: 536.83 | H45: 517.12 | I45: 501.13 | J45: 572.53 | K45: 588.52 | L45: 608.23 | M45: 568.8 | N45: 533.1 | O45: 14603600 | P45: -6.11%
A46: 36 | B46: Banking | C46: CANBK | D46: 2021-04-29 | E46: 128.35 | F46: 129.62 | G46: 125.73 | H46: 123.12 | I46: 119.23 | J46: 132.23 | K46: 136.12 | L46: 138.73 | M46: 133.5 | N46: 127 | O46: 64400400 | P46: -0.96%
A47: 37 | B47: Finance | C47: CHOLAFIN | D47: 2021-04-29 | E47: 539.90 | F47: 543.90 | G47: 529.50 | H47: 519.10 | I47: 504.70 | J47: 554.30 | K47: 568.70 | L47: 579.10 | M47: 558.3 | N47: 533.5 | O47: 5302500 | P47: 3.46%
A48: 38 | B48: Pharma | C48: CIPLA | D48: 2021-04-29 | E48: 949.85 | F48: 952.50 | G48: 939.10 | H48: 928.35 | I48: 914.95 | J48: 963.25 | K48: 976.65 | L48: 987.40 | M48: 965.9 | N48: 941.75 | O48: 14050400 | P48: 0.84%
A49: 39 | B49: Others | C49: COALINDIA | D49: 2021-04-29 | E49: 124.70 | F49: 125.02 | G49: 123.78 | H49: 122.87 | I49: 121.63 | J49: 125.93 | K49: 127.17 | L49: 128.08 | M49: 126.25 | N49: 124.1 | O49: 49291200 | P49: 0.56%
A50: 40 | B50: Technology | C50: COFORGE | D50: 2021-04-29 | E50: 3018.20 | F50: 3057.23 | G50: 2960.97 | H50: 2903.73 | I50: 2807.47 | J50: 3114.47 | K50: 3210.73 | L50: 3267.97 | M50: 3153.5 | N50: 3000 | O50: 592500 | P50: -1.25%
A51: 41 | B51: FMCG | C51: COLPAL | D51: 2021-04-29 | E51: 1524.90 | F51: 1530.45 | G51: 1509.50 | H51: 1494.10 | I51: 1473.15 | J51: 1545.85 | K51: 1566.80 | L51: 1582.20 | M51: 1551.4 | N51: 1515.05 | O51: 3475500 | P51: 1.58%
A52: 42 | B52: Others | C52: CONCOR | D52: 2021-04-29 | E52: 550.55 | F52: 556.97 | G52: 540.28 | H52: 530.02 | I52: 513.33 | J52: 567.23 | K52: 583.92 | L52: 594.18 | M52: 573.65 | N52: 546.7 | O52: 5717454 | P52: 0.63%
A53: 43 | B53: Banking | C53: CUB | D53: 2021-04-29 | E53: 158.30 | F53: 159.17 | G53: 157.03 | H53: 155.77 | I53: 153.63 | J53: 160.43 | K53: 162.57 | L53: 163.83 | M53: 161.3 | N53: 157.9 | O53: 7591900 | P53: -1.69%
A54: 44 | B54: Capital_Goods | C54: CUMMINSIND | D54: 2021-04-29 | E54: 834.15 | F54: 838.12 | G54: 821.18 | H54: 808.22 | I54: 791.28 | J54: 851.08 | K54: 868.02 | L54: 880.98 | M54: 855.05 | N54: 825.15 | O54: 1635600 | P54: 1.11%
A55: 45 | B55: FMCG | C55: DABUR | D55: 2021-04-29 | E55: 569.70 | F55: 570.68 | G55: 565.47 | H55: 561.23 | I55: 556.02 | J55: 574.92 | K55: 580.13 | L55: 584.37 | M55: 575.9 | N55: 566.45 | O55: 8608750 | P55: -0.22%
A56: 46 | B56: Chemical | C56: DEEPAKNTR | D56: 2021-04-29 | E56: 1560.10 | F56: 1569.83 | G56: 1540.27 | H56: 1520.43 | I56: 1490.87 | J56: 1589.67 | K56: 1619.23 | L56: 1639.07 | M56: 1599.4 | N56: 1550 | O56: 1107500 | P56: -3.82%
A57: 47 | B57: Pharma | C57: DIVISLAB | D57: 2021-04-29 | E57: 3788.90 | F57: 3800.90 | G57: 3750.80 | H57: 3712.70 | I57: 3662.60 | J57: 3839.00 | K57: 3889.10 | L57: 3927.20 | M57: 3851 | N57: 3762.8 | O57: 2485600 | P57: 0.70%
A58: 48 | B58: Realty | C58: DLF | D58: 2021-04-29 | E58: 234.85 | F58: 236.57 | G58: 230.88 | H58: 226.92 | I58: 221.23 | J58: 240.53 | K58: 246.22 | L58: 250.18 | M58: 242.25 | N58: 232.6 | O58: 34329900 | P58: 2.25%
A59: 49 | B59: Pharma | C59: DRREDDY | D59: 2021-04-29 | E59: 5163.70 | F59: 5168.40 | G59: 5108.80 | H59: 5053.90 | I59: 4994.30 | J59: 5223.30 | K59: 5282.90 | L59: 5337.80 | M59: 5228 | N59: 5113.5 | O59: 3533000 | P59: -2.71%
A60: 50 | B60: Automobile | C60: EICHERMOT | D60: 2021-04-29 | E60: 2345.75 | F60: 2359.62 | G60: 2309.63 | H60: 2273.52 | I60: 2223.53 | J60: 2395.73 | K60: 2445.72 | L60: 2481.83 | M60: 2409.6 | N60: 2323.5 | O60: 2859500 | P60: 0.91%
A61: 51 | B61: Automobile | C61: ESCORTS | D61: 2021-04-29 | E61: 1211.20 | F61: 1215.68 | G61: 1191.52 | H61: 1171.83 | I61: 1147.67 | J61: 1235.37 | K61: 1259.53 | L61: 1279.22 | M61: 1239.85 | N61: 1196 | O61: 1988250 | P61: 5.55%
A62: 52 | B62: Automobile | C62: EXIDEIND | D62: 2021-04-29 | E62: 173.90 | F62: 174.37 | G62: 172.38 | H62: 170.87 | I62: 168.88 | J62: 175.88 | K62: 177.87 | L62: 179.38 | M62: 176.35 | N62: 172.85 | O62: 13294800 | P62: -3.10%
A63: 53 | B63: Banking | C63: FEDERALBNK | D63: 2021-04-29 | E63: 72.35 | F63: 73.03 | G63: 71.32 | H63: 70.28 | I63: 68.57 | J63: 74.07 | K63: 75.78 | L63: 76.82 | M63: 74.75 | N63: 72 | O63: 65840000 | P63: 2.51%
A64: 54 | B64: Oil_Gas | C64: GAIL | D64: 2021-04-29 | E64: 134.85 | F64: 136.32 | G64: 132.58 | H64: 130.32 | I64: 126.58 | J64: 138.58 | K64: 142.32 | L64: 144.58 | M64: 140.05 | N64: 134.05 | O64: 49080600 | P64: 2.81%
A65: 55 | B65: Pharma | C65: GLENMARK | D65: 2021-04-29 | E65: 572.95 | F65: 576.37 | G65: 563.93 | H65: 554.92 | I65: 542.48 | J65: 585.38 | K65: 597.82 | L65: 606.83 | M65: 588.8 | N65: 567.35 | O65: 9090750 | P65: -3.61%
A66: 56 | B66: Infrastructure | C66: GMRINFRA | D66: 2021-04-29 | E66: 23.05 | F66: 23.10 | G66: 22.70 | H66: 22.35 | I66: 21.95 | J66: 23.45 | K66: 23.85 | L66: 24.20 | M66: 23.5 | N66: 22.75 | O66: 157185000 | P66: 0.39%
A67: 57 | B67: FMCG | C67: GODREJCP | D67: 2021-04-29 | E67: 726.50 | F67: 727.37 | G67: 719.13 | H67: 711.77 | I67: 703.53 | J67: 734.73 | K67: 742.97 | L67: 750.33 | M67: 735.6 | N67: 720 | O67: 5256000 | P67: -1.33%
A68: 58 | B68: Realty | C68: GODREJPROP | D68: 2021-04-29 | E68: 1323.05 | F68: 1326.48 | G68: 1307.97 | H68: 1292.88 | I68: 1274.37 | J68: 1341.57 | K68: 1360.08 | L68: 1375.17 | M68: 1345 | N68: 1311.4 | O68: 1790100 | P68: 3.15%
A69: 59 | B69: Pharma | C69: GRANULES | D69: 2021-04-29 | E69: 334.55 | F69: 336.92 | G69: 324.83 | H69: 315.12 | I69: 303.03 | J69: 346.63 | K69: 358.72 | L69: 368.43 | M69: 349 | N69: 327.2 | O69: 6826200 | P69: 4.06%
A70: 60 | B70: Cement | C70: GRASIM | D70: 2021-04-29 | E70: 1293.70 | F70: 1316.93 | G70: 1258.42 | H70: 1223.13 | I70: 1164.62 | J70: 1352.22 | K70: 1410.73 | L70: 1446.02 | M70: 1375.45 | N70: 1281.65 | O70: 16498650 | P70: 0.30%
A71: 61 | B71: Oil_Gas | C71: GUJGASLTD | D71: 2021-04-29 | E71: 542.40 | F71: 544.97 | G71: 533.03 | H71: 523.67 | I71: 511.73 | J71: 554.33 | K71: 566.27 | L71: 575.63 | M71: 556.9 | N71: 535.6 | O71: 901250 | P71: 11.78%
A72: 62 | B72: Capital_Goods | C72: HAVELLS | D72: 2021-04-29 | E72: 1004.55 | F72: 1007.92 | G72: 994.28 | H72: 984.02 | I72: 970.38 | J72: 1018.18 | K72: 1031.82 | L72: 1042.08 | M72: 1021.55 | N72: 997.65 | O72: 4760000 | P72: -1.18%
A73: 63 | B73: Technology | C73: HCLTECH | D73: 2021-04-29 | E73: 959.65 | F73: 970.80 | G73: 942.35 | H73: 925.05 | I73: 896.60 | J73: 988.10 | K73: 1016.55 | L73: 1033.85 | M73: 999.25 | N73: 953.5 | O73: 19914300 | P73: 6.05%
A74: 64 | B74: Finance | C74: HDFC | D74: 2021-04-29 | E74: 2421.85 | F74: 2462.87 | G74: 2373.23 | H74: 2324.62 | I74: 2234.98 | J74: 2511.48 | K74: 2601.12 | L74: 2649.73 | M74: 2552.5 | N74: 2414.25 | O74: 15447600 | P74: 4.11%
A75: 65 | B75: Finance | C75: HDFCAMC | D75: 2021-04-29 | E75: 2793.05 | F75: 2812.05 | G75: 2755.10 | H75: 2717.15 | I75: 2660.20 | J75: 2850.00 | K75: 2906.95 | L75: 2944.90 | M75: 2869 | N75: 2774.1 | O75: 592000 | P75: 5.08%
A76: 66 | B76: Banking | C76: HDFCBANK | D76: 2021-04-29 | E76: 1390.15 | F76: 1400.45 | G76: 1373.40 | H76: 1356.65 | I76: 1329.60 | J76: 1417.20 | K76: 1444.25 | L76: 1461.00 | M76: 1427.5 | N76: 1383.7 | O76: 30033300 | P76: -3.79%
A77: 67 | B77: Finance | C77: HDFCLIFE | D77: 2021-04-29 | E77: 685.05 | F77: 682.43 | G77: 674.37 | H77: 663.68 | I77: 655.62 | J77: 693.12 | K77: 701.18 | L77: 711.87 | M77: 690.5 | N77: 671.75 | O77: 9659100 | P77: 0.10%
A78: 68 | B78: Automobile | C78: HEROMOTOCO | D78: 2021-04-29 | E78: 2823.45 | F78: 2827.22 | G78: 2798.18 | H78: 2772.92 | I78: 2743.88 | J78: 2852.48 | K78: 2881.52 | L78: 2906.78 | M78: 2856.25 | N78: 2801.95 | O78: 3970500 | P78: -3.10%
A79: 69 | B79: Metals | C79: HINDALCO | D79: 2021-04-29 | E79: 359.75 | F79: 362.43 | G79: 353.07 | H79: 346.38 | I79: 337.02 | J79: 369.12 | K79: 378.48 | L79: 385.17 | M79: 371.8 | N79: 355.75 | O79: 29803300 | P79: -4.35%
A80: 70 | B80: Oil_Gas | C80: HINDPETRO | D80: 2021-04-29 | E80: 232.50 | F80: 232.83 | G80: 230.97 | H80: 229.43 | I80: 227.57 | J80: 234.37 | K80: 236.23 | L80: 237.77 | M80: 234.7 | N80: 231.3 | O80: 24267600 | P80: -0.12%
A81: 71 | B81: FMCG | C81: HINDUNILVR | D81: 2021-04-29 | E81: 2401.20 | F81: 2414.10 | G81: 2378.25 | H81: 2355.30 | I81: 2319.45 | J81: 2437.05 | K81: 2472.90 | L81: 2495.85 | M81: 2449.95 | N81: 2391.15 | O81: 6315900 | P81: 1.32%
A82: 72 | B82: Finance | C82: IBULHSGFIN | D82: 2021-04-29 | E82: 165.15 | F82: 165.48 | G82: 162.77 | H82: 160.38 | I82: 157.67 | J82: 167.87 | K82: 170.58 | L82: 172.97 | M82: 168.2 | N82: 163.1 | O82: 32581000 | P82: -1.48%
A83: 73 | B83: Banking | C83: ICICIBANK | D83: 2021-04-29 | E83: 559.40 | F83: 562.40 | G83: 550.80 | H83: 542.20 | I83: 530.60 | J83: 571.00 | K83: 582.60 | L83: 591.20 | M83: 574 | N83: 553.8 | O83: 90296250 | P83: -0.37%
A84: 74 | B84: Finance | C84: ICICIGI | D84: 2021-04-29 | E84: 1401.60 | F84: 1395.45 | G84: 1373.40 | H84: 1345.20 | I84: 1323.15 | J84: 1423.65 | K84: 1445.70 | L84: 1473.90 | M84: 1417.5 | N84: 1367.25 | O84: 1075675 | P84: 0.36%
A85: 75 | B85: Finance | C85: ICICIPRULI | D85: 2021-04-29 | E85: 479.45 | F85: 482.62 | G85: 459.43 | H85: 439.42 | I85: 416.23 | J85: 502.63 | K85: 525.82 | L85: 545.83 | M85: 505.8 | N85: 462.6 | O85: 10309500 | P85: 22.19%
A86: 76 | B86: Telecom | C86: IDEA | D86: 2021-04-29 | E86: 8.50 | F86: 8.50 | G86: 8.35 | H86: 8.20 | I86: 8.05 | J86: 8.65 | K86: 8.80 | L86: 8.95 | M86: 8.65 | N86: 8.35 | O86: 698390000 | P86: 0.78%
A87: 77 | B87: Banking | C87: IDFCFIRSTB | D87: 2021-04-29 | E87: 50.75 | F87: 51.17 | G87: 49.88 | H87: 49.02 | I87: 47.73 | J87: 52.03 | K87: 53.32 | L87: 54.18 | M87: 52.45 | N87: 50.3 | O87: 188860000 | P87: -0.30%
A88: 78 | B88: Oil_Gas | C88: IGL | D88: 2021-04-29 | E88: 504.00 | F88: 506.18 | G88: 497.82 | H88: 491.63 | I88: 483.27 | J88: 512.37 | K88: 520.73 | L88: 526.92 | M88: 514.55 | N88: 500 | O88: 4918375 | P88: -3.77%
A89: 79 | B89: Others | C89: INDIGO | D89: 2021-04-29 | E89: 1551.45 | F89: 1547.35 | G89: 1507.25 | H89: 1463.05 | I89: 1422.95 | J89: 1591.55 | K89: 1631.65 | L89: 1675.85 | M89: 1587.45 | N89: 1503.15 | O89: 4496500 | P89: -1.65%
A90: 80 | B90: Banking | C90: INDUSINDBK | D90: 2021-04-29 | E90: 844.10 | F90: 849.88 | G90: 833.97 | H90: 823.83 | I90: 807.92 | J90: 860.02 | K90: 875.93 | L90: 886.07 | M90: 865.8 | N90: 839.75 | O90: 20628000 | P90: -0.90%
A91: 81 | B91: Telecom | C91: INDUSTOWER | D91: 2021-04-29 | E91: 256.75 | F91: 257.98 | G91: 250.37 | H91: 243.98 | I91: 236.37 | J91: 264.37 | K91: 271.98 | L91: 278.37 | M91: 265.6 | N91: 251.6 | O91: 11491200 | P91: 2.42%
A92: 82 | B92: Technology | C92: INFY | D92: 2021-04-29 | E92: 1351.50 | F92: 1358.78 | G92: 1338.32 | H92: 1325.13 | I92: 1304.67 | J92: 1371.97 | K92: 1392.43 | L92: 1405.62 | M92: 1379.25 | N92: 1345.6 | O92: 32875800 | P92: -0.73%
A93: 83 | B93: Oil_Gas | C93: IOC | D93: 2021-04-29 | E93: 87.90 | F93: 88.20 | G93: 87.30 | H93: 86.70 | I93: 85.80 | J93: 88.80 | K93: 89.70 | L93: 90.30 | M93: 89.1 | N93: 87.6 | O93: 63134500 | P93: -1.49%
A94: 84 | B94: Others | C94: IRCTC | D94: 2021-04-29 | E94: 1639.25 | F94: 1636.35 | G94: 1622.90 | H94: 1606.55 | I94: 1593.10 | J94: 1652.70 | K94: 1666.15 | L94: 1682.50 | M94: 1649.8 | N94: 1620 | O94: 1498250 | P94: -6.30%
A95: 85 | B95: FMCG | C95: ITC | D95: 2021-04-29 | E95: 203.70 | F95: 204.58 | G95: 201.77 | H95: 199.83 | I95: 197.02 | J95: 206.52 | K95: 209.33 | L95: 211.27 | M95: 207.4 | N95: 202.65 | O95: 134915200 | P95: 3.57%
A96: 86 | B96: Metals | C96: JINDALSTEL | D96: 2021-04-29 | E96: 431.75 | F96: 429.52 | G96: 420.78 | H96: 409.82 | I96: 401.08 | J96: 440.48 | K96: 449.22 | L96: 460.18 | M96: 438.25 | N96: 418.55 | O96: 32440000 | P96: 4.38%
A97: 87 | B97: Metals | C97: JSWSTEEL | D97: 2021-04-29 | E97: 620.25 | F97: 621.18 | G97: 612.42 | H97: 604.58 | I97: 595.82 | J97: 629.02 | K97: 637.78 | L97: 645.62 | M97: 629.95 | N97: 613.35 | O97: 33925500 | P97: 0.10%
A98: 88 | B98: Others | C98: JUBLFOOD | D98: 2021-04-29 | E98: 2824.90 | F98: 2829.42 | G98: 2786.83 | H98: 2748.77 | I98: 2706.18 | J98: 2867.48 | K98: 2910.07 | L98: 2948.13 | M98: 2872 | N98: 2791.35 | O98: 1459000 | P98: -2.62%
A99: 89 | B99: Banking | C99: KOTAKBANK | D99: 2021-04-29 | E99: 1698.85 | F99: 1709.27 | G99: 1679.98 | H99: 1661.12 | I99: 1631.83 | J99: 1728.13 | K99: 1757.42 | L99: 1776.28 | M99: 1738.55 | N99: 1690.4 | O99: 11706800 | P99: -0.38%
A100: 90 | B100: Finance | C100: L&TFH | D100: 2021-04-29 | E100: 90.65 | F100: 90.98 | G100: 88.62 | H100: 86.58 | I100: 84.22 | J100: 93.02 | K100: 95.38 | L100: 97.42 | M100: 93.35 | N100: 88.95 | O100: 28565724 | P100: 2.99%
A101: 91 | B101: Others | C101: LALPATHLAB | D101: 2021-04-29 | E101: 2907.10 | F101: 2924.00 | G101: 2846.75 | H101: 2786.40 | I101: 2709.15 | J101: 2984.35 | K101: 3061.60 | L101: 3121.95 | M101: 3001.25 | N101: 2863.65 | O101: 522000 | P101: -0.90%
A102: 92 | B102: Finance | C102: LICHSGFIN | D102: 2021-04-29 | E102: 382.90 | F102: 385.08 | G102: 377.92 | H102: 372.93 | I102: 365.77 | J102: 390.07 | K102: 397.23 | L102: 402.22 | M102: 392.25 | N102: 380.1 | O102: 7298000 | P102: -1.06%
A103: 93 | B103: Capital_Goods | C103: LT | D103: 2021-04-29 | E103: 1332.35 | F103: 1332.12 | G103: 1322.23 | H103: 1312.12 | I103: 1302.23 | J103: 1342.23 | K103: 1352.12 | L103: 1362.23 | M103: 1342 | N103: 1322 | O103: 15215650 | P103: 2.26%
A104: 94 | B104: Technology | C104: LTI | D104: 2021-04-29 | E104: 3965.30 | F104: 4001.35 | G104: 3878.75 | H104: 3792.20 | I104: 3669.60 | J104: 4087.90 | K104: 4210.50 | L104: 4297.05 | M104: 4123.95 | N104: 3914.8 | O104: 424350 | P104: -2.28%
A105: 95 | B105: Technology | C105: LTTS | D105: 2021-04-29 | E105: 2617.60 | F105: 2655.12 | G105: 2565.68 | H105: 2513.77 | I105: 2424.33 | J105: 2707.03 | K105: 2796.47 | L105: 2848.38 | M105: 2744.55 | N105: 2603.2 | O105: 557400 | P105: 2.24%
A106: 96 | B106: Pharma | C106: LUPIN | D106: 2021-04-29 | E106: 1091.45 | F106: 1086.35 | G106: 1070.20 | H106: 1048.95 | I106: 1032.80 | J106: 1107.60 | K106: 1123.75 | L106: 1145.00 | M106: 1102.5 | N106: 1065.1 | O106: 8800900 | P106: 1.48%
A107: 97 | B107: Automobile | C107: M&M | D107: 2021-04-29 | E107: 810.65 | F107: 810.73 | G107: 800.02 | H107: 789.38 | I107: 778.67 | J107: 821.37 | K107: 832.08 | L107: 842.72 | M107: 821.45 | N107: 800.1 | O107: 8534400 | P107: -0.59%
A108: 98 | B108: Finance | C108: M&MFIN | D108: 2021-04-29 | E108: 170.90 | F108: 171.55 | G108: 167.20 | H108: 163.50 | I108: 159.15 | J108: 175.25 | K108: 179.60 | L108: 183.30 | M108: 175.9 | N108: 167.85 | O108: 17048000 | P108: -6.96%
A109: 99 | B109: Finance | C109: MANAPPURAM | D109: 2021-04-29 | E109: 142.10 | F109: 143.63 | G109: 139.47 | H109: 136.83 | I109: 132.67 | J109: 146.27 | K109: 150.43 | L109: 153.07 | M109: 147.8 | N109: 141 | O109: 27408000 | P109: 1.87%
A110: 100 | B110: FMCG | C110: MARICO | D110: 2021-04-29 | E110: 411.10 | F110: 415.15 | G110: 404.65 | H110: 398.20 | I110: 387.70 | J110: 421.60 | K110: 432.10 | L110: 438.55 | M110: 425.65 | N110: 408.7 | O110: 7842000 | P110: 6.43%
A111: 101 | B111: Automobile | C111: MARUTI | D111: 2021-04-29 | E111: 6650.05 | F111: 6631.02 | G111: 6587.13 | H111: 6524.22 | I111: 6480.33 | J111: 6693.93 | K111: 6737.82 | L111: 6800.73 | M111: 6674.9 | N111: 6568.1 | O111: 2722000 | P111: -1.73%
A112: 102 | B112: FMCG | C112: MCDOWELL-N | D112: 2021-04-29 | E112: 523.40 | F112: 523.43 | G112: 518.52 | H112: 513.63 | I112: 508.72 | J112: 528.32 | K112: 533.23 | L112: 538.12 | M112: 528.35 | N112: 518.55 | O112: 13128750 | P112: -1.22%
A113: 103 | B113: Finance | C113: MFSL | D113: 2021-04-29 | E113: 849.60 | F113: 860.37 | G113: 834.38 | H113: 819.17 | I113: 793.18 | J113: 875.58 | K113: 901.57 | L113: 916.78 | M113: 886.35 | N113: 845.15 | O113: 2399800 | P113: -1.07%
A114: 104 | B114: Oil_Gas | C114: MGL | D114: 2021-04-29 | E114: 1077.85 | F114: 1086.70 | G114: 1063.40 | H114: 1048.95 | I114: 1025.65 | J114: 1101.15 | K114: 1124.45 | L114: 1138.90 | M114: 1110 | N114: 1072.25 | O114: 1606800 | P114: -2.19%
A115: 105 | B115: Technology | C115: MINDTREE | D115: 2021-04-29 | E115: 2045.80 | F115: 2067.40 | G115: 2005.85 | H115: 1965.90 | I115: 1904.35 | J115: 2107.35 | K115: 2168.90 | L115: 2208.85 | M115: 2128.95 | N115: 2027.45 | O115: 2380800 | P115: -6.24%
A116: 106 | B116: Automobile | C116: MOTHERSUMI | D116: 2021-04-29 | E116: 204.20 | F116: 205.52 | G116: 201.63 | H116: 199.07 | I116: 195.18 | J116: 208.08 | K116: 211.97 | L116: 214.53 | M116: 209.4 | N116: 202.95 | O116: 29099000 | P116: 0.39%
A117: 107 | B117: Technology | C117: MPHASIS | D117: 2021-04-29 | E117: 1658.10 | F117: 1673.62 | G117: 1624.53 | H117: 1590.97 | I117: 1541.88 | J117: 1707.18 | K117: 1756.27 | L117: 1789.83 | M117: 1722.7 | N117: 1640.05 | O117: 670150 | P117: -12.96%
A118: 108 | B118: Automobile | C118: MRF | D118: 2021-04-29 | E118: 79499.25 | F118: 79713.98 | G118: 78554.22 | H118: 77609.18 | I118: 76449.42 | J118: 80659.02 | K118: 81818.78 | L118: 82763.82 | M118: 80873.75 | N118: 78768.95 | O118: 42560 | P118: -0.70%
A119: 109 | B119: Finance | C119: MUTHOOTFIN | D119: 2021-04-29 | E119: 1126.30 | F119: 1133.63 | G119: 1110.27 | H119: 1094.23 | I119: 1070.87 | J119: 1149.67 | K119: 1173.03 | L119: 1189.07 | M119: 1157 | N119: 1117.6 | O119: 3000000 | P119: 1.27%
A120: 110 | B120: Others | C120: NAM-INDIA | D120: 2021-04-29 | E120: 328.25 | F120: 329.48 | G120: 324.27 | H120: 320.28 | I120: 315.07 | J120: 333.47 | K120: 338.68 | L120: 342.67 | M120: 334.7 | N120: 325.5 | O120: 2236800 | P120: 13.29%
A121: 111 | B121: Metals | C121: NATIONALUM | D121: 2021-04-29 | E121: 56.70 | F121: 57.17 | G121: 55.53 | H121: 54.37 | I121: 52.73 | J121: 58.33 | K121: 59.97 | L121: 61.13 | M121: 58.8 | N121: 56 | O121: 78744000 | P121: 0.02%
A122: 112 | B122: Others | C122: NAUKRI | D122: 2021-04-29 | E122: 4777.50 | F122: 4760.60 | G122: 4677.00 | H122: 4576.50 | I122: 4492.90 | J122: 4861.10 | K122: 4944.70 | L122: 5045.20 | M122: 4844.2 | N122: 4660.1 | O122: 1436250 | P122: -1.24%
A123: 113 | B123: Chemical | C123: NAVINFLUOR | D123: 2021-04-29 | E123: 3013.95 | F123: 3051.98 | G123: 2958.97 | H123: 2903.98 | I123: 2810.97 | J123: 3106.97 | K123: 3199.98 | L123: 3254.97 | M123: 3145 | N123: 2997 | O123: 291600 | P123: -4.50%
A124: 114 | B124: FMCG | C124: NESTLEIND | D124: 2021-04-29 | E124: 16994.50 | F124: 17019.82 | G124: 16792.63 | H124: 16590.77 | I124: 16363.58 | J124: 17221.68 | K124: 17448.87 | L124: 17650.73 | M124: 17247 | N124: 16817.95 | O124: 314350 | P124: 2.90%
A125: 115 | B125: Metals | C125: NMDC | D125: 2021-04-29 | E125: 137.85 | F125: 138.53 | G125: 136.02 | H125: 134.18 | I125: 131.67 | J125: 140.37 | K125: 142.88 | L125: 144.72 | M125: 141.05 | N125: 136.7 | O125: 47080900 | P125: 1.37%
A126: 116 | B126: Power | C126: NTPC | D126: 2021-04-29 | E126: 98.95 | F126: 99.37 | G126: 97.88 | H126: 96.82 | I126: 95.33 | J126: 100.43 | K126: 101.92 | L126: 102.98 | M126: 100.85 | N126: 98.3 | O126: 75741600 | P126: -0.41%
A127: 117 | B127: Oil_Gas | C127: ONGC | D127: 2021-04-29 | E127: 103.20 | F127: 103.68 | G127: 102.02 | H127: 100.83 | I127: 99.17 | J127: 104.87 | K127: 106.53 | L127: 107.72 | M127: 105.35 | N127: 102.5 | O127: 36297800 | P127: 4.08%
A128: 118 | B128: Textile | C128: PAGEIND | D128: 2021-04-29 | E128: 30271.65 | F128: 30185.13 | G128: 29925.22 | H128: 29578.78 | I128: 29318.87 | J128: 30531.57 | K128: 30791.48 | L128: 31137.92 | M128: 30445.05 | N128: 29838.7 | O128: 56160 | P128: 0.75%
A129: 119 | B129: Pharma | C129: PEL | D129: 2021-04-29 | E129: 1703.20 | F129: 1715.37 | G129: 1667.83 | H129: 1632.47 | I129: 1584.93 | J129: 1750.73 | K129: 1798.27 | L129: 1833.63 | M129: 1762.9 | N129: 1680 | O129: 3458950 | P129: 1.68%
A130: 120 | B130: Oil_Gas | C130: PETRONET | D130: 2021-04-29 | E130: 220.40 | F130: 219.35 | G130: 217.00 | H130: 213.60 | I130: 211.25 | J130: 222.75 | K130: 225.10 | L130: 228.50 | M130: 221.7 | N130: 215.95 | O130: 18570000 | P130: -1.95%
A131: 121 | B131: Finance | C131: PFC | D131: 2021-04-29 | E131: 105.50 | F131: 106.20 | G131: 104.00 | H131: 102.50 | I131: 100.30 | J131: 107.70 | K131: 109.90 | L131: 111.40 | M131: 108.4 | N131: 104.7 | O131: 34031800 | P131: -0.49%
A132: 122 | B132: Pharma | C132: PFIZER | D132: 2021-04-29 | E132: 5509.40 | F132: 5514.05 | G132: 5399.15 | H132: 5288.90 | I132: 5174.00 | J132: 5624.30 | K132: 5739.20 | L132: 5849.45 | M132: 5628.95 | N132: 5403.8 | O132: 279375 | P132: 21.53%
A133: 123 | B133: FMCG | C133: PIDILITIND | D133: 2021-04-29 | E133: 1773.10 | F133: 1779.42 | G133: 1755.88 | H133: 1738.67 | I133: 1715.13 | J133: 1796.63 | K133: 1820.17 | L133: 1837.38 | M133: 1802.95 | N133: 1762.2 | O133: 2018500 | P133: -2.91%
A134: 124 | B134: Chemical | C134: PIIND | D134: 2021-04-29 | E134: 2560.85 | F134: 2531.55 | G134: 2480.35 | H134: 2399.85 | I134: 2348.65 | J134: 2612.05 | K134: 2663.25 | L134: 2743.75 | M134: 2582.75 | N134: 2451.05 | O134: 424250 | P134: -7.62%
A135: 125 | B135: Banking | C135: PNB | D135: 2021-04-29 | E135: 33.70 | F135: 33.77 | G135: 33.28 | H135: 32.87 | I135: 32.38 | J135: 34.18 | K135: 34.67 | L135: 35.08 | M135: 34.25 | N135: 33.35 | O135: 221744000 | P135: -2.33%
A136: 126 | B136: Power | C136: POWERGRID | D136: 2021-04-29 | E136: 203.70 | F136: 203.82 | G136: 201.73 | H136: 199.77 | I136: 197.68 | J136: 205.78 | K136: 207.87 | L136: 209.83 | M136: 205.9 | N136: 201.85 | O136: 19436000 | P136: -3.44%
A137: 127 | B137: Media | C137: PVR | D137: 2021-04-29 | E137: 1047.25 | F137: 1036.83 | G137: 1015.32 | H137: 983.38 | I137: 961.87 | J137: 1068.77 | K137: 1090.28 | L137: 1122.22 | M137: 1058.35 | N137: 1004.9 | O137: 2625150 | P137: 20.54%
A138: 128 | B138: Cement | C138: RAMCOCEM | D138: 2021-04-29 | E138: 966.55 | F138: 980.03 | G138: 946.22 | H138: 925.88 | I138: 892.07 | J138: 1000.37 | K138: 1034.18 | L138: 1054.52 | M138: 1013.85 | N138: 959.7 | O138: 1740800 | P138: -3.44%
A139: 129 | B139: Banking | C139: RBLBANK | D139: 2021-04-29 | E139: 174.40 | F139: 175.67 | G139: 171.18 | H139: 167.97 | I139: 163.48 | J139: 178.88 | K139: 183.37 | L139: 186.58 | M139: 180.15 | N139: 172.45 | O139: 27428200 | P139: 1.56%
A140: 130 | B140: Power | C140: RECLTD | D140: 2021-04-29 | E140: 125.55 | F140: 126.23 | G140: 124.17 | H140: 122.78 | I140: 120.72 | J140: 127.62 | K140: 129.68 | L140: 131.07 | M140: 128.3 | N140: 124.85 | O140: 19992000 | P140: 0.21%
A141: 131 | B141: Oil_Gas | C141: RELIANCE | D141: 2021-04-29 | E141: 1903.00 | F141: 1906.82 | G141: 1888.63 | H141: 1874.27 | I141: 1856.08 | J141: 1921.18 | K141: 1939.37 | L141: 1953.73 | M141: 1925 | N141: 1892.45 | O141: 30361500 | P141: -1.14%
A142: 132 | B142: Metals | C142: SAIL | D142: 2021-04-29 | E142: 88.80 | F142: 89.60 | G142: 87.20 | H142: 85.60 | I142: 83.20 | J142: 91.20 | K142: 93.60 | L142: 95.20 | M142: 92 | N142: 88 | O142: 126844000 | P142: -1.07%
A143: 133 | B143: Finance | C143: SBILIFE | D143: 2021-04-29 | E143: 901.85 | F143: 911.47 | G143: 888.88 | H143: 875.92 | I143: 853.33 | J143: 924.43 | K143: 947.02 | L143: 959.98 | M143: 934.05 | N143: 898.5 | O143: 5051250 | P143: 8.31%
A144: 134 | B144: Banking | C144: SBIN | D144: 2021-04-29 | E144: 330.15 | F144: 332.57 | G144: 324.73 | H144: 319.32 | I144: 311.48 | J144: 337.98 | K144: 345.82 | L144: 351.23 | M144: 340.4 | N144: 327.15 | O144: 102753000 | P144: -0.13%
A145: 135 | B145: Cement | C145: SHREECEM | D145: 2021-04-29 | E145: 29395.70 | F145: 29738.58 | G145: 28802.12 | H145: 28208.53 | I145: 27272.07 | J145: 30332.17 | K145: 31268.63 | L145: 31862.22 | M145: 30675.05 | N145: 29145 | O145: 197250 | P145: -0.03%
A146: 136 | B146: Capital_Goods | C146: SIEMENS | D146: 2021-04-29 | E146: 1800.80 | F146: 1803.68 | G146: 1777.37 | H146: 1753.93 | I146: 1727.62 | J146: 1827.12 | K146: 1853.43 | L146: 1876.87 | M146: 1830 | N146: 1780.25 | O146: 965250 | P146: 0.69%
A147: 137 | B147: Textile | C147: SRF | D147: 2021-04-29 | E147: 6148.75 | F147: 6166.92 | G147: 6041.83 | H147: 5934.92 | I147: 5809.83 | J147: 6273.83 | K147: 6398.92 | L147: 6505.83 | M147: 6292 | N147: 6060 | O147: 448625 | P147: -4.65%
A148: 138 | B148: Finance | C148: SRTRANSFIN | D148: 2021-04-29 | E148: 1341.95 | F148: 1351.35 | G148: 1314.60 | H148: 1287.25 | I148: 1250.50 | J148: 1378.70 | K148: 1415.45 | L148: 1442.80 | M148: 1388.1 | N148: 1324 | O148: 3660000 | P148: 0.75%
A149: 139 | B149: Pharma | C149: SUNPHARMA | D149: 2021-04-29 | E149: 646.35 | F149: 648.90 | G149: 637.90 | H149: 629.45 | I149: 618.45 | J149: 657.35 | K149: 668.35 | L149: 676.80 | M149: 659.9 | N149: 640.45 | O149: 42767200 | P149: 1.34%
A150: 140 | B150: Media | C150: SUNTV | D150: 2021-04-29 | E150: 466.35 | F150: 465.28 | G150: 455.57 | H150: 444.78 | I150: 435.07 | J150: 476.07 | K150: 485.78 | L150: 496.57 | M150: 475 | N150: 454.5 | O150: 13543500 | P150: -0.99%
A151: 141 | B151: Chemical | C151: TATACHEM | D151: 2021-04-29 | E151: 724.00 | F151: 730.50 | G151: 712.00 | H151: 700.00 | I151: 681.50 | J151: 742.50 | K151: 761.00 | L151: 773.00 | M151: 749 | N151: 718.5 | O151: 9732000 | P151: -3.34%
A152: 142 | B152: FMCG | C152: TATACONSUM | D152: 2021-04-29 | E152: 679.15 | F152: 682.33 | G152: 666.92 | H152: 654.68 | I152: 639.27 | J152: 694.57 | K152: 709.98 | L152: 722.22 | M152: 697.75 | N152: 670.1 | O152: 17540550 | P152: 2.80%
A153: 143 | B153: Automobile | C153: TATAMOTORS | D153: 2021-04-29 | E153: 298.15 | F153: 300.43 | G153: 292.22 | H153: 286.28 | I153: 278.07 | J153: 306.37 | K153: 314.58 | L153: 320.52 | M153: 308.65 | N153: 294.5 | O153: 99413700 | P153: 0.13%
A154: 144 | B154: Power | C154: TATAPOWER | D154: 2021-04-29 | E154: 93.55 | F154: 94.07 | G154: 91.88 | H154: 90.22 | I154: 88.03 | J154: 95.73 | K154: 97.92 | L154: 99.58 | M154: 96.25 | N154: 92.4 | O154: 129438000 | P154: -1.28%
A155: 145 | B155: Metals | C155: TATASTEEL | D155: 2021-04-29 | E155: 894.80 | F155: 895.10 | G155: 882.50 | H155: 870.20 | I155: 857.60 | J155: 907.40 | K155: 920.00 | L155: 932.30 | M155: 907.7 | N155: 882.8 | O155: 45512400 | P155: 0.86%
A156: 146 | B156: Technology | C156: TCS | D156: 2021-04-29 | E156: 3144.35 | F156: 3163.63 | G156: 3113.42 | H156: 3082.48 | I156: 3032.27 | J156: 3194.57 | K156: 3244.78 | L156: 3275.72 | M156: 3213.85 | N156: 3132.7 | O156: 6898500 | P156: 2.29%
A157: 147 | B157: Technology | C157: TECHM | D157: 2021-04-29 | E157: 982.55 | F157: 988.08 | G157: 967.72 | H157: 952.88 | I157: 932.52 | J157: 1002.92 | K157: 1023.28 | L157: 1038.12 | M157: 1008.45 | N157: 973.25 | O157: 12426000 | P157: 6.01%
A158: 148 | B158: FMCG | C158: TITAN | D158: 2021-04-29 | E158: 1521.80 | F158: 1530.43 | G158: 1500.87 | H158: 1479.93 | I158: 1450.37 | J158: 1551.37 | K158: 1580.93 | L158: 1601.87 | M158: 1560 | N158: 1509.5 | O158: 5836500 | P158: 6.69%
A159: 149 | B159: Pharma | C159: TORNTPHARM | D159: 2021-04-29 | E159: 2614.45 | F159: 2612.83 | G159: 2586.67 | H159: 2558.88 | I159: 2532.72 | J159: 2640.62 | K159: 2666.78 | L159: 2694.57 | M159: 2639 | N159: 2585.05 | O159: 1006000 | P159: 0.32%
A160: 150 | B160: Power | C160: TORNTPOWER | D160: 2021-04-29 | E160: 378.80 | F160: 382.92 | G160: 372.38 | H160: 365.97 | I160: 355.43 | J160: 389.33 | K160: 399.87 | L160: 406.28 | M160: 393.45 | N160: 376.5 | O160: 2322000 | P160: 5.02%
A161: 151 | B161: Others | C161: TRENT | D161: 2021-04-29 | E161: 736.00 | F161: 737.32 | G161: 726.93 | H161: 717.87 | I161: 707.48 | J161: 746.38 | K161: 756.77 | L161: 765.83 | M161: 747.7 | N161: 728.25 | O161: 1150575 | P161: -1.37%
A162: 152 | B162: Automobile | C162: TVSMOTOR | D162: 2021-04-29 | E162: 537.80 | F162: 540.38 | G162: 532.02 | H162: 526.23 | I162: 517.87 | J162: 546.17 | K162: 554.53 | L162: 560.32 | M162: 548.75 | N162: 534.6 | O162: 3775800 | P162: 0.78%
A163: 153 | B163: FMCG | C163: UBL | D163: 2021-04-29 | E163: 1120.65 | F163: 1119.67 | G163: 1106.33 | H163: 1092.02 | I163: 1078.68 | J163: 1133.98 | K163: 1147.32 | L163: 1161.63 | M163: 1133 | N163: 1105.35 | O163: 1460200 | P163: 5.04%
A164: 154 | B164: Cement | C164: ULTRACEMCO | D164: 2021-04-29 | E164: 6221.30 | F164: 6379.20 | G164: 6043.60 | H164: 5865.90 | I164: 5530.30 | J164: 6556.90 | K164: 6892.50 | L164: 7070.20 | M164: 6714.8 | N164: 6201.5 | O164: 2228200 | P164: 5.73%
A165: 155 | B165: Chemical | C165: UPL | D165: 2021-04-29 | E165: 591.50 | F165: 596.25 | G165: 580.75 | H165: 570.00 | I165: 554.50 | J165: 607.00 | K165: 622.50 | L165: 633.25 | M165: 611.75 | N165: 585.5 | O165: 21764600 | P165: -0.43%
A166: 156 | B166: Metals | C166: VEDL | D166: 2021-04-29 | E166: 226.30 | F166: 227.23 | G166: 222.12 | H166: 217.93 | I166: 212.82 | J166: 231.42 | K166: 236.53 | L166: 240.72 | M166: 232.35 | N166: 223.05 | O166: 84276600 | P166: -0.88%
A167: 157 | B167: Capital_Goods | C167: VOLTAS | D167: 2021-04-29 | E167: 941.45 | F167: 949.88 | G167: 926.12 | H167: 910.78 | I167: 887.02 | J167: 965.22 | K167: 988.98 | L167: 1004.32 | M167: 973.65 | N167: 934.55 | O167: 3909000 | P167: -1.41%
A168: 158 | B168: Technology | C168: WIPRO | D168: 2021-04-29 | E168: 469.80 | F168: 471.85 | G168: 465.95 | H168: 462.10 | I168: 456.20 | J168: 475.70 | K168: 481.60 | L168: 485.45 | M168: 477.75 | N168: 468 | O168: 41209600 | P168: -4.97%
A169: 159 | B169: Media | C169: ZEEL | D169: 2021-04-29 | E169: 197.50 | F169: 197.63 | G169: 192.87 | H169: 188.23 | I169: 183.47 | J169: 202.27 | K169: 207.03 | L169: 211.67 | M169: 202.4 | N169: 193 | O169: 60543000 | P169: 3.92%
A175: Pivot Point: This is trigger point for intra day buy/sell based on the price range of the previous day
A176: As per the tool,the trader should take BUY position just above Pivot and keep the stop loss of pivot point and the first target would be Resistance 1(R1)
A177: If R1 is crossed then R2 becomes the next target with stop loss of at R1
A178: Similarly if price goes below pivot point then the trader should sell and keep a stop loss of pivot point and the first target would be S1
A179: If S1 is crossed then S2 becomes the next target with stop loss of at S1
A181: Disclaimer:
A182: This document has been prepared by the Retail Research Desk of Asit C Mehta
A183: Investment Intermediates Ltd. and is meant for use of the recipient only
A184: and is not for circulation. This document is not to be reported or
A185: copied or made available to others. It should not be considered to be
A186: taken as an offer to sell or a solicitation to buy any security. The
A187: information contained herein is from sources believed reliable. We do
A188: not represent that it is accurate or complete and it should not be
A189: relied upon as such. We may from time to time have positions in and buy
A190: and sell securities referred to herein

Sheet Cash Intra
M5: Back to Main Page
A6: FOR INTRA DAY TRADING | K6: =Main!B10 -> 2021-04-22
A8: Sr.no | B8: Scrip | C8: CLOSE RATE | D8: Pivot Point | E8: Supports | H8: Resistances
C9: Point | E9: S1 | F9: S2 | G9: S3 | H9: R1 | I9: R2 | J9: R3 | K9: HIGH | L9: LOW | M9: Total Trade Quanity in Lakhs
A10: 1 | B10: Nifty 50 | C10: 14296.4 | D10: 14343.55 | E10: 14160.15 | F10: 14023.90 | G10: 13840.50 | H10: 14479.80 | I10: 14663.20 | J10: 14799.45 | K10: 14526.95 | L10: 14207.3
A11: 2 | B11: Nifty Bank | C11: 31112.7 | D11: 31245.12 | E11: 30758.58 | F11: 30404.47 | G11: 29917.93 | H11: 31599.23 | I11: 32085.77 | J11: 32439.88 | K11: 31731.65 | L11: 30891
A12: 3 | B12: Nifty CPSE | C12: 1709.65 | D12: 1713.78 | E12: 1695.72 | F12: 1681.78 | G12: 1663.72 | H12: 1727.72 | I12: 1745.78 | J12: 1759.72 | K12: 1731.85 | L12: 1699.85
A13: 4 | B13: Nifty Infra | C13: 3937.1 | D13: 3950.13 | E13: 3898.27 | F13: 3859.43 | G13: 3807.57 | H13: 3988.97 | I13: 4040.83 | J13: 4079.67 | K13: 4002 | L13: 3911.3
A14: 5 | B14: Nifty IT | C14: 25877.6 | D14: 26036.85 | E14: 25577.20 | F14: 25276.80 | G14: 24817.15 | H14: 26337.25 | I14: 26796.90 | J14: 27097.30 | K14: 26496.5 | L14: 25736.45
A15: 6 | B15: Nifty PSE | C15: 2992.5 | D15: 3001.73 | E15: 2966.77 | F15: 2941.03 | G15: 2906.07 | H15: 3027.47 | I15: 3062.43 | J15: 3088.17 | K15: 3036.7 | L15: 2976
A16: 7 | B16: Nifty Midcap 50 | C16: 6469.25 | D16: 6487.47 | E16: 6398.88 | F16: 6328.52 | G16: 6239.93 | H16: 6557.83 | I16: 6646.42 | J16: 6716.78 | K16: 6576.05 | L16: 6417.1
A17: 8 | B17: ACC | C17: 1825.8 | D17: 1871.93 | E17: 1763.87 | F17: 1701.93 | G17: 1593.87 | H17: 1933.87 | I17: 2041.93 | J17: 2103.87 | K17: 1980 | L17: 1810 | M17: 58.73433
A18: 9 | B18: AUBANK | C18: 1041.3 | D18: 1038.77 | E18: 1022.53 | F18: 1003.77 | G18: 987.53 | H18: 1057.53 | I18: 1073.77 | J18: 1092.53 | K18: 1055 | L18: 1020 | M18: 14.78306
A19: 10 | B19: AARTIIND | C19: 1434.7 | D19: 1431.25 | E19: 1414.45 | F19: 1394.20 | G19: 1377.40 | H19: 1451.50 | I19: 1468.30 | J19: 1488.55 | K19: 1448.05 | L19: 1411 | M19: 2.87111
A20: 11 | B20: ABBOTINDIA | C20: 14839.9 | D20: 14860.00 | E20: 14730.00 | F20: 14620.10 | G20: 14490.10 | H20: 14969.90 | I20: 15099.90 | J20: 15209.80 | K20: 14990 | L20: 14750.1 | M20: 0.11046
A21: 12 | B21: ADANIENT | C21: 1142.75 | D21: 1148.50 | E21: 1119.30 | F21: 1095.85 | G21: 1066.65 | H21: 1171.95 | I21: 1201.15 | J21: 1224.60 | K21: 1177.7 | L21: 1125.05 | M21: 82.61172
A22: 13 | B22: ADANIGREEN | C22: 1043.95 | D22: 1055.65 | E22: 1025.30 | F22: 1006.65 | G22: 976.30 | H22: 1074.30 | I22: 1104.65 | J22: 1123.30 | K22: 1086 | L22: 1037 | M22: 4.77549
A23: 14 | B23: ADANIPORTS | C23: 720.45 | D23: 725.45 | E23: 705.00 | F23: 689.55 | G23: 669.10 | H23: 740.90 | I23: 761.35 | J23: 776.80 | K23: 745.9 | L23: 710 | M23: 213.15167
A24: 15 | B24: ATGL | C24: 1154 | D24: 1167.07 | E24: 1120.13 | F24: 1086.27 | G24: 1039.33 | H24: 1200.93 | I24: 1247.87 | J24: 1281.73 | K24: 1214 | L24: 1133.2 | M24: 21.50909
A25: 16 | B25: ADANITRANS | C25: 1020.7 | D25: 1029.50 | E25: 1006.30 | F25: 991.90 | G25: 968.70 | H25: 1043.90 | I25: 1067.10 | J25: 1081.50 | K25: 1052.7 | L25: 1015.1 | M25: 7.25372
A26: 17 | B26: ABCAPITAL | C26: 117.3 | D26: 117.97 | E26: 115.33 | F26: 113.37 | G26: 110.73 | H26: 119.93 | I26: 122.57 | J26: 124.53 | K26: 120.6 | L26: 116 | M26: 36.98356
A27: 18 | B27: ABFRL | C27: 173.85 | D27: 172.33 | E27: 168.52 | F27: 163.18 | G27: 159.37 | H27: 177.67 | I27: 181.48 | J27: 186.82 | K27: 176.15 | L27: 167 | M27: 43.05098
A28: 19 | B28: AJANTPHARM | C28: 1797.4 | D28: 1779.50 | E28: 1749.00 | F28: 1700.60 | G28: 1670.10 | H28: 1827.90 | I28: 1858.40 | J28: 1906.80 | K28: 1810 | L28: 1731.1 | M28: 3.85307
A29: 20 | B29: APLLTD | C29: 995.8 | D29: 1000.20 | E29: 980.70 | F29: 965.60 | G29: 946.10 | H29: 1015.30 | I29: 1034.80 | J29: 1049.90 | K29: 1019.7 | L29: 985.1 | M29: 3.86639
A30: 21 | B30: ALKEM | C30: 2740.65 | D30: 2750.93 | E30: 2721.87 | F30: 2703.08 | G30: 2674.02 | H30: 2769.72 | I30: 2798.78 | J30: 2817.57 | K30: 2780 | L30: 2732.15 | M30: 1.3377
A31: 22 | B31: AMARAJABAT | C31: 800.85 | D31: 805.18 | E31: 794.47 | F31: 788.08 | G31: 777.37 | H31: 811.57 | I31: 822.28 | J31: 828.67 | K31: 815.9 | L31: 798.8 | M31: 10.62673
A32: 23 | B32: AMBUJACEM | C32: 295.7 | D32: 300.67 | E32: 287.48 | F32: 279.27 | G32: 266.08 | H32: 308.88 | I32: 322.07 | J32: 330.28 | K32: 313.85 | L32: 292.45 | M32: 122.22234
A33: 24 | B33: APOLLOHOSP | C33: 3269.65 | D33: 3253.47 | E33: 3197.93 | F33: 3126.22 | G33: 3070.68 | H33: 3325.18 | I33: 3380.72 | J33: 3452.43 | K33: 3309 | L33: 3181.75 | M33: 25.7542
A34: 25 | B34: APOLLOTYRE | C34: 202.2 | D34: 203.72 | E34: 198.93 | F34: 195.67 | G34: 190.88 | H34: 206.98 | I34: 211.77 | J34: 215.03 | K34: 208.5 | L34: 200.45 | M34: 43.18084
A35: 26 | B35: ASHOKLEY | C35: 112.85 | D35: 112.63 | E35: 110.97 | F35: 109.08 | G35: 107.42 | H35: 114.52 | I35: 116.18 | J35: 118.07 | K35: 114.3 | L35: 110.75 | M35: 320.76834
A36: 27 | B36: ASIANPAINT | C36: 2553.65 | D36: 2562.38 | E36: 2520.07 | F36: 2486.48 | G36: 2444.17 | H36: 2595.97 | I36: 2638.28 | J36: 2671.87 | K36: 2604.7 | L36: 2528.8 | M36: 14.89287
A37: 28 | B37: AUROPHARMA | C37: 987.3 | D37: 990.02 | E37: 973.78 | F37: 960.27 | G37: 944.03 | H37: 1003.53 | I37: 1019.77 | J37: 1033.28 | K37: 1006.25 | L37: 976.5 | M37: 69.61954
A38: 29 | B38: DMART | C38: 2778.25 | D38: 2808.02 | E38: 2726.23 | F38: 2674.22 | G38: 2592.43 | H38: 2860.03 | I38: 2941.82 | J38: 2993.83 | K38: 2889.8 | L38: 2756 | M38: 4.51846
A39: 30 | B39: AXISBANK | C39: 651.75 | D39: 652.25 | E39: 642.50 | F39: 633.25 | G39: 623.50 | H39: 661.50 | I39: 671.25 | J39: 680.50 | K39: 662 | L39: 643 | M39: 122.96248
A40: 31 | B40: BAJAJ-AUTO | C40: 3600.9 | D40: 3593.43 | E40: 3562.57 | F40: 3524.23 | G40: 3493.37 | H40: 3631.77 | I40: 3662.63 | J40: 3700.97 | K40: 3624.3 | L40: 3555.1 | M40: 6.76558
A41: 32 | B41: BAJFINANCE | C41: 4613.65 | D41: 4622.62 | E41: 4546.23 | F41: 4478.82 | G41: 4402.43 | H41: 4690.03 | I41: 4766.42 | J41: 4833.83 | K41: 4699 | L41: 4555.2 | M41: 33.94597
A42: 33 | B42: BAJAJFINSV | C42: 9819.4 | D42: 9788.30 | E42: 9631.10 | F42: 9442.80 | G42: 9285.60 | H42: 9976.60 | I42: 10133.80 | J42: 10322.10 | K42: 9945.5 | L42: 9600 | M42: 7.98732
A43: 34 | B43: BAJAJHLDNG | C43: 3377.7 | D43: 3352.93 | E43: 3307.17 | F43: 3236.63 | G43: 3190.87 | H43: 3423.47 | I43: 3469.23 | J43: 3539.77 | K43: 3398.7 | L43: 3282.4 | M43: 0.2114
A44: 35 | B44: BALKRISIND | C44: 1690.8 | D44: 1701.90 | E44: 1663.80 | F44: 1636.80 | G44: 1598.70 | H44: 1728.90 | I44: 1767.00 | J44: 1794.00 | K44: 1740 | L44: 1674.9 | M44: 12.25868
A45: 36 | B45: BANDHANBNK | C45: 309.15 | D45: 309.90 | E45: 304.80 | F45: 300.45 | G45: 295.35 | H45: 314.25 | I45: 319.35 | J45: 323.70 | K45: 315 | L45: 305.55 | M45: 67.66422
A46: 37 | B46: BANKBARODA | C46: 63.25 | D46: 63.92 | E46: 62.03 | F46: 60.82 | G46: 58.93 | H46: 65.13 | I46: 67.02 | J46: 68.23 | K46: 65.8 | L46: 62.7 | M46: 367.14142
A47: 38 | B47: BANKINDIA | C47: 64.6 | D47: 65.03 | E47: 63.57 | F47: 62.53 | G47: 61.07 | H47: 66.07 | I47: 67.53 | J47: 68.57 | K47: 66.5 | L47: 64 | M47: 52.4788
A48: 39 | B48: BATAINDIA | C48: 1297.65 | D48: 1305.13 | E48: 1280.52 | F48: 1263.38 | G48: 1238.77 | H48: 1322.27 | I48: 1346.88 | J48: 1364.02 | K48: 1329.75 | L48: 1288 | M48: 5.17858
A49: 40 | B49: BERGEPAINT | C49: 709.5 | D49: 713.43 | E49: 702.12 | F49: 694.73 | G49: 683.42 | H49: 720.82 | I49: 732.13 | J49: 739.52 | K49: 724.75 | L49: 706.05 | M49: 4.23302
A50: 41 | B50: BEL | C50: 124.3 | D50: 125.20 | E50: 122.75 | F50: 121.20 | G50: 118.75 | H50: 126.75 | I50: 129.20 | J50: 130.75 | K50: 127.65 | L50: 123.65 | M50: 88.78113
A51: 42 | B51: BHARATFORG | C51: 575.35 | D51: 576.70 | E51: 562.65 | F51: 549.95 | G51: 535.90 | H51: 589.40 | I51: 603.45 | J51: 616.15 | K51: 590.75 | L51: 564 | M51: 26.30705
A52: 43 | B52: BHEL | C52: 44.2 | D52: 44.48 | E52: 43.62 | F52: 43.03 | G52: 42.17 | H52: 45.07 | I52: 45.93 | J52: 46.52 | K52: 45.35 | L52: 43.9 | M52: 325.91936
A53: 44 | B53: BPCL | C53: 408.1 | D53: 409.55 | E53: 404.65 | F53: 401.20 | G53: 396.30 | H53: 413.00 | I53: 417.90 | J53: 421.35 | K53: 414.45 | L53: 406.1 | M53: 35.13444
A54: 45 | B54: BHARTIARTL | C54: 530.2 | D54: 531.03 | E54: 525.07 | F54: 519.93 | G54: 513.97 | H54: 536.17 | I54: 542.13 | J54: 547.27 | K54: 537 | L54: 525.9 | M54: 72.33304
A55: 46 | B55: BIOCON | C55: 401.15 | D55: 402.97 | E55: 395.98 | F55: 390.82 | G55: 383.83 | H55: 408.13 | I55: 415.12 | J55: 420.28 | K55: 409.95 | L55: 397.8 | M55: 44.36026
A56: 47 | B56: BBTC | C56: 1162.1 | D56: 1167.92 | E56: 1153.18 | F56: 1144.27 | G56: 1129.53 | H56: 1176.83 | I56: 1191.57 | J56: 1200.48 | K56: 1182.65 | L56: 1159 | M56: 0.20446
A57: 48 | B57: BOSCHLTD | C57: 13416.8 | D57: 13470.22 | E57: 13250.58 | F57: 13084.37 | G57: 12864.73 | H57: 13636.43 | I57: 13856.07 | J57: 14022.28 | K57: 13689.85 | L57: 13304 | M57: 0.23995
A58: 49 | B58: BRITANNIA | C58: 3729.9 | D58: 3724.25 | E58: 3695.75 | F58: 3661.60 | G58: 3633.10 | H58: 3758.40 | I58: 3786.90 | J58: 3821.05 | K58: 3752.75 | L58: 3690.1 | M58: 3.31477
A59: 50 | B59: CESC | C59: 583.45 | D59: 589.22 | E59: 575.43 | F59: 567.42 | G59: 553.63 | H59: 597.23 | I59: 611.02 | J59: 619.03 | K59: 603 | L59: 581.2 | M59: 5.01571
A60: 51 | B60: CADILAHC | C60: 556.25 | D60: 552.60 | E60: 536.30 | F60: 516.35 | G60: 500.05 | H60: 572.55 | I60: 588.85 | J60: 608.80 | K60: 568.9 | L60: 532.65 | M60: 280.4818
A61: 52 | B61: CANBK | C61: 128.05 | D61: 129.30 | E61: 125.60 | F61: 123.15 | G61: 119.45 | H61: 131.75 | I61: 135.45 | J61: 137.90 | K61: 133 | L61: 126.85 | M61: 130.38499
A62: 53 | B62: CASTROLIND | C62: 120.85 | D62: 121.45 | E62: 120.05 | F62: 119.25 | G62: 117.85 | H62: 122.25 | I62: 123.65 | J62: 124.45 | K62: 122.85 | L62: 120.65 | M62: 11.9313
A63: 54 | B63: CHOLAFIN | C63: 538.75 | D63: 543.73 | E63: 528.27 | F63: 517.78 | G63: 502.32 | H63: 554.22 | I63: 569.68 | J63: 580.17 | K63: 559.2 | L63: 533.25 | M63: 60.39565
A64: 55 | B64: CIPLA | C64: 949.3 | D64: 952.25 | E64: 938.15 | F64: 927.00 | G64: 912.90 | H64: 963.40 | I64: 977.50 | J64: 988.65 | K64: 966.35 | L64: 941.1 | M64: 102.05616
A65: 56 | B65: CUB | C65: 158.3 | D65: 159.07 | E65: 157.13 | F65: 155.97 | G65: 154.03 | H65: 160.23 | I65: 162.17 | J65: 163.33 | K65: 161 | L65: 157.9 | M65: 10.88175
A66: 57 | B66: COALINDIA | C66: 124.5 | D66: 124.93 | E66: 123.62 | F66: 122.73 | G66: 121.42 | H66: 125.82 | I66: 127.13 | J66: 128.02 | K66: 126.25 | L66: 124.05 | M66: 77.38871
A67: 58 | B67: COFORGE | C67: 3010 | D67: 3048.57 | E67: 2949.18 | F67: 2888.37 | G67: 2788.98 | H67: 3109.38 | I67: 3208.77 | J67: 3269.58 | K67: 3147.95 | L67: 2987.75 | M67: 4.94558
A68: 59 | B68: COLPAL | C68: 1521.8 | D68: 1527.78 | E68: 1505.02 | F68: 1488.23 | G68: 1465.47 | H68: 1544.57 | I68: 1567.33 | J68: 1584.12 | K68: 1550.55 | L68: 1511 | M68: 4.29114
A69: 60 | B69: CONCOR | C69: 549.1 | D69: 556.07 | E69: 539.13 | F69: 529.17 | G69: 512.23 | H69: 566.03 | I69: 582.97 | J69: 592.93 | K69: 573 | L69: 546.1 | M69: 16.6954
A70: 61 | B70: COROMANDEL | C70: 737.3 | D70: 737.05 | E70: 727.85 | F70: 718.40 | G70: 709.20 | H70: 746.50 | I70: 755.70 | J70: 765.15 | K70: 746.25 | L70: 727.6 | M70: 1.95272
A71: 62 | B71: CROMPTON | C71: 367.3 | D71: 369.47 | E71: 361.83 | F71: 356.37 | G71: 348.73 | H71: 374.93 | I71: 382.57 | J71: 388.03 | K71: 377.1 | L71: 364 | M71: 14.16259
A72: 63 | B72: CUMMINSIND | C72: 833.4 | D72: 837.55 | E72: 820.10 | F72: 806.80 | G72: 789.35 | H72: 850.85 | I72: 868.30 | J72: 881.60 | K72: 855 | L72: 824.25 | M72: 4.07772
A73: 64 | B73: DLF | C73: 234.4 | D73: 235.97 | E73: 230.48 | F73: 226.57 | G73: 221.08 | H73: 239.88 | I73: 245.37 | J73: 249.28 | K73: 241.45 | L73: 232.05 | M73: 121.62782
A74: 65 | B74: DABUR | C74: 569 | D74: 570.25 | E74: 564.55 | F74: 560.10 | G74: 554.40 | H74: 574.70 | I74: 580.40 | J74: 584.85 | K74: 575.95 | L74: 565.8 | M74: 23.21346
A75: 66 | B75: DALBHARAT | C75: 1447.35 | D75: 1480.03 | E75: 1395.32 | F75: 1343.28 | G75: 1258.57 | H75: 1532.07 | I75: 1616.78 | J75: 1668.82 | K75: 1564.75 | L75: 1428 | M75: 2.60999
A76: 67 | B76: DHANI | C76: 187.05 | D76: 190.80 | E76: 181.75 | F76: 176.45 | G76: 167.40 | H76: 196.10 | I76: 205.15 | J76: 210.45 | K76: 199.85 | L76: 185.5 | M76: 11.35889
A77: 68 | B77: DIVISLAB | C77: 3779.7 | D77: 3792.87 | E77: 3736.83 | F77: 3693.97 | G77: 3637.93 | H77: 3835.73 | I77: 3891.77 | J77: 3934.63 | K77: 3848.9 | L77: 3750 | M77: 5.9457
A78: 69 | B78: LALPATHLAB | C78: 2904.75 | D78: 2922.20 | E78: 2843.55 | F78: 2782.35 | G78: 2703.70 | H78: 2983.40 | I78: 3062.05 | J78: 3123.25 | K78: 3000.85 | L78: 2861 | M78: 7.6776
A79: 70 | B79: DRREDDY | C79: 5156.75 | D79: 5152.33 | E79: 5093.92 | F79: 5031.08 | G79: 4972.67 | H79: 5215.17 | I79: 5273.58 | J79: 5336.42 | K79: 5210.75 | L79: 5089.5 | M79: 34.84976
A80: 71 | B80: EDELWEISS | C80: 60.7 | D80: 61.45 | E80: 59.50 | F80: 58.30 | G80: 56.35 | H80: 62.65 | I80: 64.60 | J80: 65.80 | K80: 63.4 | L80: 60.25 | M80: 10.49133
A81: 72 | B81: EICHERMOT | C81: 2340 | D81: 2354.45 | E81: 2304.45 | F81: 2268.90 | G81: 2218.90 | H81: 2390.00 | I81: 2440.00 | J81: 2475.55 | K81: 2404.45 | L81: 2318.9 | M81: 10.40931
A82: 73 | B82: EMAMILTD | C82: 517 | D82: 520.17 | E82: 505.33 | F82: 493.67 | G82: 478.83 | H82: 531.83 | I82: 546.67 | J82: 558.33 | K82: 535 | L82: 508.5 | M82: 4.38194
A83: 74 | B83: ENDURANCE | C83: 1288.45 | D83: 1288.45 | E83: 1275.90 | F83: 1263.35 | G83: 1250.80 | H83: 1301.00 | I83: 1313.55 | J83: 1326.10 | K83: 1301 | L83: 1275.9 | M83: 2.49137
A84: 75 | B84: ESCORTS | C84: 1210.6 | D84: 1214.60 | E84: 1189.85 | F84: 1169.10 | G84: 1144.35 | H84: 1235.35 | I84: 1260.10 | J84: 1280.85 | K84: 1239.35 | L84: 1193.85 | M84: 7.45098
A85: 76 | B85: EXIDEIND | C85: 173.45 | D85: 173.93 | E85: 171.87 | F85: 170.28 | G85: 168.22 | H85: 175.52 | I85: 177.58 | J85: 179.17 | K85: 176 | L85: 172.35 | M85: 24.91575
A86: 77 | B86: FEDERALBNK | C86: 72.1 | D86: 72.77 | E86: 71.03 | F86: 69.97 | G86: 68.23 | H86: 73.83 | I86: 75.57 | J86: 76.63 | K86: 74.5 | L86: 71.7 | M86: 224.45564
A87: 78 | B87: FORTIS | C87: 207.9 | D87: 209.50 | E87: 201.50 | F87: 195.10 | G87: 187.10 | H87: 215.90 | I87: 223.90 | J87: 230.30 | K87: 217.5 | L87: 203.1 | M87: 109.49396
A88: 79 | B88: FRETAIL | C88: 47.7 | D88: 47.88 | E88: 47.22 | F88: 46.73 | G88: 46.07 | H88: 48.37 | I88: 49.03 | J88: 49.52 | K88: 48.55 | L88: 47.4 | M88: 15.64787
A89: 80 | B89: GAIL | C89: 134.4 | D89: 135.88 | E89: 132.02 | F89: 129.63 | G89: 125.77 | H89: 138.27 | I89: 142.13 | J89: 144.52 | K89: 139.75 | L89: 133.5 | M89: 189.26713
A90: 81 | B90: GMRINFRA | C90: 23.05 | D90: 23.13 | E90: 22.67 | F90: 22.28 | G90: 21.82 | H90: 23.52 | I90: 23.98 | J90: 24.37 | K90: 23.6 | L90: 22.75 | M90: 129.67967
A91: 82 | B91: GICRE | C91: 203.45 | D91: 205.15 | E91: 199.30 | F91: 195.15 | G91: 189.30 | H91: 209.30 | I91: 215.15 | J91: 219.30 | K91: 211 | L91: 201 | M91: 10.90404
A92: 83 | B92: GLENMARK | C92: 571.6 | D92: 576.18 | E92: 562.37 | F92: 553.13 | G92: 539.32 | H92: 585.42 | I92: 599.23 | J92: 608.47 | K92: 590 | L92: 566.95 | M92: 67.23905
A93: 84 | B93: GODREJAGRO | C93: 484.95 | D93: 485.87 | E93: 480.73 | F93: 476.52 | G93: 471.38 | H93: 490.08 | I93: 495.22 | J93: 499.43 | K93: 491 | L93: 481.65 | M93: 0.39977
A94: 85 | B94: GODREJCP | C94: 725.65 | D94: 725.65 | E94: 717.55 | F94: 709.45 | G94: 701.35 | H94: 733.75 | I94: 741.85 | J94: 749.95 | K94: 733.75 | L94: 717.55 | M94: 11.18993
A95: 86 | B95: GODREJIND | C95: 515.9 | D95: 523.50 | E95: 502.50 | F95: 489.10 | G95: 468.10 | H95: 536.90 | I95: 557.90 | J95: 571.30 | K95: 544.5 | L95: 510.1 | M95: 0.87716
A96: 87 | B96: GODREJPROP | C96: 1327.55 | D96: 1330.88 | E96: 1309.77 | F96: 1291.98 | G96: 1270.87 | H96: 1348.67 | I96: 1369.78 | J96: 1387.57 | K96: 1352 | L96: 1313.1 | M96: 6.88204
A97: 88 | B97: GRASIM | C97: 1291.9 | D97: 1315.62 | E97: 1257.88 | F97: 1223.87 | G97: 1166.13 | H97: 1349.63 | I97: 1407.37 | J97: 1441.38 | K97: 1373.35 | L97: 1281.6 | M97: 36.88197
A98: 89 | B98: GUJGASLTD | C98: 543.05 | D98: 544.33 | E98: 532.72 | F98: 522.38 | G98: 510.77 | H98: 554.67 | I98: 566.28 | J98: 576.62 | K98: 555.95 | L98: 534 | M98: 17.2619
A99: 90 | B99: GSPL | C99: 248.6 | D99: 251.15 | E99: 244.30 | F99: 240.00 | G99: 233.15 | H99: 255.45 | I99: 262.30 | J99: 266.60 | K99: 258 | L99: 246.85 | M99: 7.291
A100: 91 | B100: HCLTECH | C100: 961.3 | D100: 974.77 | E100: 943.53 | F100: 925.77 | G100: 894.53 | H100: 992.53 | I100: 1023.77 | J100: 1041.53 | K100: 1006 | L100: 957 | M100: 97.42418
A101: 92 | B101: HDFCAMC | C101: 2790.9 | D101: 2806.97 | E101: 2758.93 | F101: 2726.97 | G101: 2678.93 | H101: 2838.93 | I101: 2886.97 | J101: 2918.93 | K101: 2855 | L101: 2775 | M101: 2.36066
A102: 93 | B102: HDFCBANK | C102: 1391.4 | D102: 1400.58 | E102: 1374.77 | F102: 1358.13 | G102: 1332.32 | H102: 1417.22 | I102: 1443.03 | J102: 1459.67 | K102: 1426.4 | L102: 1383.95 | M102: 115.93135
A103: 94 | B103: HDFCLIFE | C103: 685.2 | D103: 681.43 | E103: 673.87 | F103: 662.53 | G103: 654.97 | H103: 692.77 | I103: 700.33 | J103: 711.67 | K103: 689 | L103: 670.1 | M103: 53.73233
A104: 95 | B104: HAVELLS | C104: 1004.8 | D104: 1007.40 | E104: 993.90 | F104: 983.00 | G104: 969.50 | H104: 1018.30 | I104: 1031.80 | J104: 1042.70 | K104: 1020.9 | L104: 996.5 | M104: 9.24983
A105: 96 | B105: HEROMOTOCO | C105: 2823.7 | D105: 2824.47 | E105: 2800.08 | F105: 2776.47 | G105: 2752.08 | H105: 2848.08 | I105: 2872.47 | J105: 2896.08 | K105: 2848.85 | L105: 2800.85 | M105: 7.40095
A106: 97 | B106: HINDALCO | C106: 359.35 | D106: 361.80 | E106: 352.10 | F106: 344.85 | G106: 335.15 | H106: 369.05 | I106: 378.75 | J106: 386.00 | K106: 371.5 | L106: 354.55 | M106: 155.26407
A107: 98 | B107: HINDPETRO | C107: 232.7 | D107: 232.92 | E107: 231.03 | F107: 229.37 | G107: 227.48 | H107: 234.58 | I107: 236.47 | J107: 238.13 | K107: 234.8 | L107: 231.25 | M107: 44.07677
A108: 99 | B108: HINDUNILVR | C108: 2397.45 | D108: 2412.42 | E108: 2368.83 | F108: 2340.22 | G108: 2296.63 | H108: 2441.03 | I108: 2484.62 | J108: 2513.23 | K108: 2456 | L108: 2383.8 | M108: 15.89508
A109: 100 | B109: HINDZINC | C109: 284.4 | D109: 285.22 | E109: 280.28 | F109: 276.17 | G109: 271.23 | H109: 289.33 | I109: 294.27 | J109: 298.38 | K109: 290.15 | L109: 281.1 | M109: 7.38454
A110: 101 | B110: HUDCO | C110: 40.95 | D110: 41.23 | E110: 40.22 | F110: 39.48 | G110: 38.47 | H110: 41.97 | I110: 42.98 | J110: 43.72 | K110: 42.25 | L110: 40.5 | M110: 29.14015
A111: 102 | B111: HDFC | C111: 2415.9 | D111: 2455.37 | E111: 2366.73 | F111: 2317.57 | G111: 2228.93 | H111: 2504.53 | I111: 2593.17 | J111: 2642.33 | K111: 2544 | L111: 2406.2 | M111: 73.65765
A112: 103 | B112: ICICIBANK | C112: 559.1 | D112: 561.45 | E112: 550.25 | F112: 541.40 | G112: 530.20 | H112: 570.30 | I112: 581.50 | J112: 590.35 | K112: 572.65 | L112: 552.6 | M112: 244.25842
A113: 104 | B113: ICICIGI | C113: 1399 | D113: 1394.37 | E113: 1370.73 | F113: 1342.47 | G113: 1318.83 | H113: 1422.63 | I113: 1446.27 | J113: 1474.53 | K113: 1418 | L113: 1366.1 | M113: 9.28686
A114: 105 | B114: ICICIPRULI | C114: 477.95 | D114: 486.12 | E114: 457.33 | F114: 436.72 | G114: 407.93 | H114: 506.73 | I114: 535.52 | J114: 556.13 | K114: 514.9 | L114: 465.5 | M114: 230.54764
A115: 106 | B115: ISEC | C115: 424.6 | D115: 422.53 | E115: 416.27 | F115: 407.93 | G115: 401.67 | H115: 430.87 | I115: 437.13 | J115: 445.47 | K115: 428.8 | L115: 414.2 | M115: 15.40584
A116: 107 | B116: IDFCFIRSTB | C116: 50.65 | D116: 51.08 | E116: 49.77 | F116: 48.88 | G116: 47.57 | H116: 51.97 | I116: 53.28 | J116: 54.17 | K116: 52.4 | L116: 50.2 | M116: 351.91058
A117: 108 | B117: ITC | C117: 203.55 | D117: 204.35 | E117: 201.70 | F117: 199.85 | G117: 197.20 | H117: 206.20 | I117: 208.85 | J117: 210.70 | K117: 207 | L117: 202.5 | M117: 213.64882
A118: 109 | B118: IBULHSGFIN | C118: 165.1 | D118: 165.37 | E118: 162.73 | F118: 160.37 | G118: 157.73 | H118: 167.73 | I118: 170.37 | J118: 172.73 | K118: 168 | L118: 163 | M118: 149.95164
A119: 110 | B119: INDHOTEL | C119: 95.95 | D119: 97.65 | E119: 93.05 | F119: 90.15 | G119: 85.55 | H119: 100.55 | I119: 105.15 | J119: 108.05 | K119: 102.25 | L119: 94.75 | M119: 94.28938
A120: 111 | B120: IOC | C120: 87.8 | D120: 88.38 | E120: 86.77 | F120: 85.73 | G120: 84.12 | H120: 89.42 | I120: 91.03 | J120: 92.07 | K120: 90 | L120: 87.35 | M120: 108.66044
A121: 112 | B121: IRCTC | C121: 1640.05 | D121: 1635.00 | E121: 1621.05 | F121: 1602.05 | G121: 1588.10 | H121: 1654.00 | I121: 1667.95 | J121: 1686.95 | K121: 1648.95 | L121: 1616 | M121: 11.43229
A122: 113 | B122: IGL | C122: 504.2 | D122: 506.07 | E122: 498.13 | F122: 492.07 | G122: 484.13 | H122: 512.13 | I122: 520.07 | J122: 526.13 | K122: 514 | L122: 500 | M122: 16.63453
A123: 114 | B123: INDUSTOWER | C123: 255.95 | D123: 257.28 | E123: 249.22 | F123: 242.48 | G123: 234.42 | H123: 264.02 | I123: 272.08 | J123: 278.82 | K123: 265.35 | L123: 250.55 | M123: 54.29078
A124: 115 | B124: INDUSINDBK | C124: 845 | D124: 849.95 | E124: 835.10 | F124: 825.20 | G124: 810.35 | H124: 859.85 | I124: 874.70 | J124: 884.60 | K124: 864.8 | L124: 840.05 | M124: 82.40669
A125: 116 | B125: NAUKRI | C125: 4777 | D125: 4754.00 | E125: 4678.00 | F125: 4579.00 | G125: 4503.00 | H125: 4853.00 | I125: 4929.00 | J125: 5028.00 | K125: 4830 | L125: 4655 | M125: 8.0131
A126: 117 | B126: INFY | C126: 1351.35 | D126: 1357.58 | E126: 1336.17 | F126: 1320.98 | G126: 1299.57 | H126: 1372.77 | I126: 1394.18 | J126: 1409.37 | K126: 1379 | L126: 1342.4 | M126: 85.60766
A127: 118 | B127: INDIGO | C127: 1554.3 | D127: 1547.72 | E127: 1509.58 | F127: 1464.87 | G127: 1426.73 | H127: 1592.43 | I127: 1630.57 | J127: 1675.28 | K127: 1585.85 | L127: 1503 | M127: 19.64923
A128: 119 | B128: IPCALAB | C128: 2155.7 | D128: 2165.85 | E128: 2129.65 | F128: 2103.60 | G128: 2067.40 | H128: 2191.90 | I128: 2228.10 | J128: 2254.15 | K128: 2202.05 | L128: 2139.8 | M128: 2.31993
A129: 120 | B129: JSWENERGY | C129: 100.8 | D129: 101.53 | E129: 98.37 | F129: 95.93 | G129: 92.77 | H129: 103.97 | I129: 107.13 | J129: 109.57 | K129: 104.7 | L129: 99.1 | M129: 109.99733
A130: 121 | B130: JSWSTEEL | C130: 620.6 | D130: 621.33 | E130: 612.67 | F130: 604.73 | G130: 596.07 | H130: 629.27 | I130: 637.93 | J130: 645.87 | K130: 630 | L130: 613.4 | M130: 136.26064
A131: 122 | B131: JINDALSTEL | C131: 431.55 | D131: 428.82 | E131: 420.73 | F131: 409.92 | G131: 401.83 | H131: 439.63 | I131: 447.72 | J131: 458.53 | K131: 436.9 | L131: 418 | M131: 192.20825
A132: 123 | B132: JUBLFOOD | C132: 2830.15 | D132: 2831.07 | E132: 2792.13 | F132: 2754.12 | G132: 2715.18 | H132: 2869.08 | I132: 2908.02 | J132: 2946.03 | K132: 2870 | L132: 2793.05 | M132: 6.30248
A133: 124 | B133: KOTAKBANK | C133: 1697.7 | D133: 1705.22 | E133: 1676.83 | F133: 1655.97 | G133: 1627.58 | H133: 1726.08 | I133: 1754.47 | J133: 1775.33 | K133: 1733.6 | L133: 1684.35 | M133: 33.17008
A134: 125 | B134: L&TFH | C134: 90.75 | D134: 90.93 | E134: 88.77 | F134: 86.78 | G134: 84.62 | H134: 92.92 | I134: 95.08 | J134: 97.07 | K134: 93.1 | L134: 88.95 | M134: 242.61623
A135: 126 | B135: LTTS | C135: 2608.65 | D135: 2650.85 | E135: 2552.80 | F135: 2496.95 | G135: 2398.90 | H135: 2706.70 | I135: 2804.75 | J135: 2860.60 | K135: 2748.9 | L135: 2595 | M135: 4.42373
A136: 127 | B136: LICHSGFIN | C136: 382.55 | D136: 384.63 | E136: 377.92 | F136: 373.28 | G136: 366.57 | H136: 389.27 | I136: 395.98 | J136: 400.62 | K136: 391.35 | L136: 380 | M136: 24.53675
A137: 128 | B137: LTI | C137: 3969.25 | D137: 4001.45 | E137: 3882.90 | F137: 3796.55 | G137: 3678.00 | H137: 4087.80 | I137: 4206.35 | J137: 4292.70 | K137: 4120 | L137: 3915.1 | M137: 2.69477
A138: 129 | B138: LT | C138: 1331.5 | D138: 1329.55 | E138: 1319.65 | F138: 1307.80 | G138: 1297.90 | H138: 1341.40 | I138: 1351.30 | J138: 1363.15 | K138: 1339.45 | L138: 1317.7 | M138: 29.89204
A139: 130 | B139: LUPIN | C139: 1089.8 | D139: 1083.98 | E139: 1068.97 | F139: 1048.13 | G139: 1033.12 | H139: 1104.82 | I139: 1119.83 | J139: 1140.67 | K139: 1099 | L139: 1063.15 | M139: 38.14733
A140: 131 | B140: MRF | C140: 79339.8 | D140: 79563.15 | E140: 78476.20 | F140: 77612.60 | G140: 76525.65 | H140: 80426.75 | I140: 81513.70 | J140: 82377.30 | K140: 80650.1 | L140: 78699.55 | M140: 0.27667
A141: 132 | B141: MGL | C141: 1076.35 | D141: 1086.00 | E141: 1062.05 | F141: 1047.75 | G141: 1023.80 | H141: 1100.30 | I141: 1124.25 | J141: 1138.55 | K141: 1109.95 | L141: 1071.7 | M141: 5.17026
A142: 133 | B142: M&MFIN | C142: 170.4 | D142: 170.95 | E142: 166.55 | F142: 162.70 | G142: 158.30 | H142: 174.80 | I142: 179.20 | J142: 183.05 | K142: 175.35 | L142: 167.1 | M142: 96.0292
A143: 134 | B143: M&M | C143: 811.15 | D143: 810.97 | E143: 800.73 | F143: 790.32 | G143: 780.08 | H143: 821.38 | I143: 831.62 | J143: 842.03 | K143: 821.2 | L143: 800.55 | M143: 48.30957
A144: 135 | B144: MANAPPURAM | C144: 141.8 | D144: 143.28 | E144: 139.27 | F144: 136.73 | G144: 132.72 | H144: 145.82 | I144: 149.83 | J144: 152.37 | K144: 147.3 | L144: 140.75 | M144: 48.97471
A145: 136 | B145: MARICO | C145: 410.2 | D145: 414.32 | E145: 403.33 | F145: 396.47 | G145: 385.48 | H145: 421.18 | I145: 432.17 | J145: 439.03 | K145: 425.3 | L145: 407.45 | M145: 18.81478
A146: 137 | B146: MARUTI | C146: 6646.65 | D146: 6627.97 | E146: 6577.23 | F146: 6507.82 | G146: 6457.08 | H146: 6697.38 | I146: 6748.12 | J146: 6817.53 | K146: 6678.7 | L146: 6558.55 | M146: 9.14142
A147: 138 | B147: MFSL | C147: 848.4 | D147: 858.32 | E147: 833.08 | F147: 817.77 | G147: 792.53 | H147: 873.63 | I147: 898.87 | J147: 914.18 | K147: 883.55 | L147: 843 | M147: 3.95434
A148: 139 | B148: MINDTREE | C148: 2042 | D148: 2063.68 | E148: 2001.52 | F148: 1961.03 | G148: 1898.87 | H148: 2104.17 | I148: 2166.33 | J148: 2206.82 | K148: 2125.85 | L148: 2023.2 | M148: 14.56195
A149: 140 | B149: MOTHERSUMI | C149: 204.35 | D149: 205.40 | E149: 201.95 | F149: 199.55 | G149: 196.10 | H149: 207.80 | I149: 211.25 | J149: 213.65 | K149: 208.85 | L149: 203 | M149: 96.0964
A150: 141 | B150: MPHASIS | C150: 1657.65 | D150: 1677.22 | E150: 1624.53 | F150: 1591.42 | G150: 1538.73 | H150: 1710.33 | I150: 1763.02 | J150: 1796.13 | K150: 1729.9 | L150: 1644.1 | M150: 4.11238
A151: 142 | B151: MUTHOOTFIN | C151: 1141.95 | D151: 1149.43 | E151: 1126.52 | F151: 1111.08 | G151: 1088.17 | H151: 1164.87 | I151: 1187.78 | J151: 1203.22 | K151: 1172.35 | L151: 1134 | M151: 8.74884
A152: 143 | B152: NATCOPHARM | C152: 893.25 | D152: 898.75 | E152: 882.50 | F152: 871.75 | G152: 855.50 | H152: 909.50 | I152: 925.75 | J152: 936.50 | K152: 915 | L152: 888 | M152: 2.9748
A153: 144 | B153: NMDC | C153: 137.6 | D153: 138.33 | E153: 135.77 | F153: 133.93 | G153: 131.37 | H153: 140.17 | I153: 142.73 | J153: 144.57 | K153: 140.9 | L153: 136.5 | M153: 67.0505
A154: 145 | B154: NTPC | C154: 99.05 | D154: 99.37 | E154: 97.83 | F154: 96.62 | G154: 95.08 | H154: 100.58 | I154: 102.12 | J154: 103.33 | K154: 100.9 | L154: 98.15 | M154: 165.28675
A155: 146 | B155: NATIONALUM | C155: 56.6 | D155: 57.13 | E155: 55.47 | F155: 54.33 | G155: 52.67 | H155: 58.27 | I155: 59.93 | J155: 61.07 | K155: 58.8 | L155: 56 | M155: 170.92853
A156: 147 | B156: NAVINFLUOR | C156: 3013 | D156: 3049.63 | E156: 2958.37 | F156: 2903.73 | G156: 2812.47 | H156: 3104.27 | I156: 3195.53 | J156: 3250.17 | K156: 3140.9 | L156: 2995 | M156: 1.92965
A157: 148 | B157: NESTLEIND | C157: 17095.65 | D157: 17135.23 | E157: 16850.47 | F157: 16605.28 | G157: 16320.52 | H157: 17380.42 | I157: 17665.18 | J157: 17910.37 | K157: 17420 | L157: 16890.05 | M157: 1.03687
A158: 149 | B158: NAM-INDIA | C158: 327.7 | D158: 328.68 | E158: 323.87 | F158: 320.03 | G158: 315.22 | H158: 332.52 | I158: 337.33 | J158: 341.17 | K158: 333.5 | L158: 324.85 | M158: 10.02282
A159: 150 | B159: OBEROIRLTY | C159: 533.25 | D159: 537.37 | E159: 524.73 | F159: 516.22 | G159: 503.58 | H159: 545.88 | I159: 558.52 | J159: 567.03 | K159: 550 | L159: 528.85 | M159: 1.53315
A160: 151 | B160: ONGC | C160: 102.85 | D160: 103.35 | E160: 101.70 | F160: 100.55 | G160: 98.90 | H160: 104.50 | I160: 106.15 | J160: 107.30 | K160: 105 | L160: 102.2 | M160: 230.82015
A161: 152 | B161: OIL | C161: 116.9 | D161: 116.97 | E161: 115.43 | F161: 113.97 | G161: 112.43 | H161: 118.43 | I161: 119.97 | J161: 121.43 | K161: 118.5 | L161: 115.5 | M161: 5.74505
A162: 153 | B162: OFSS | C162: 3296.85 | D162: 3315.20 | E162: 3227.65 | F162: 3158.45 | G162: 3070.90 | H162: 3384.40 | I162: 3471.95 | J162: 3541.15 | K162: 3402.75 | L162: 3246 | M162: 0.47588
A163: 154 | B163: PIIND | C163: 2542 | D163: 2526.18 | E163: 2454.37 | F163: 2366.73 | G163: 2294.92 | H163: 2613.82 | I163: 2685.63 | J163: 2773.27 | K163: 2598 | L163: 2438.55 | M163: 5.26983
A164: 155 | B164: PAGEIND | C164: 30248.8 | D164: 30204.60 | E164: 29809.20 | F164: 29369.60 | G164: 28974.20 | H164: 30644.20 | I164: 31039.60 | J164: 31479.20 | K164: 30600 | L164: 29765 | M164: 0.24174
A165: 156 | B165: PETRONET | C165: 219.85 | D165: 218.80 | E165: 216.60 | F165: 213.35 | G165: 211.15 | H165: 222.05 | I165: 224.25 | J165: 227.50 | K165: 221 | L165: 215.55 | M165: 33.92176
A166: 157 | B166: PFIZER | C166: 5492.35 | D166: 5497.88 | E166: 5386.77 | F166: 5281.18 | G166: 5170.07 | H166: 5603.47 | I166: 5714.58 | J166: 5820.17 | K166: 5609 | L166: 5392.3 | M166: 5.09034
A167: 158 | B167: PIDILITIND | C167: 1773.1 | D167: 1778.20 | E167: 1756.00 | F167: 1738.90 | G167: 1716.70 | H167: 1795.30 | I167: 1817.50 | J167: 1834.60 | K167: 1800.4 | L167: 1761.1 | M167: 4.23329
A168: 159 | B168: PEL | C168: 1704 | D168: 1714.12 | E168: 1669.88 | F168: 1635.77 | G168: 1591.53 | H168: 1748.23 | I168: 1792.47 | J168: 1826.58 | K168: 1758.35 | L168: 1680 | M168: 13.98433
A169: 160 | B169: POLYCAB | C169: 1413.05 | D169: 1406.28 | E169: 1377.67 | F169: 1342.28 | G169: 1313.67 | H169: 1441.67 | I169: 1470.28 | J169: 1505.67 | K169: 1434.9 | L169: 1370.9 | M169: 3.072
A170: 161 | B170: PFC | C170: 105.55 | D170: 106.20 | E170: 104.10 | F170: 102.65 | G170: 100.55 | H170: 107.65 | I170: 109.75 | J170: 111.20 | K170: 108.3 | L170: 104.75 | M170: 25.92866
A171: 162 | B171: POWERGRID | C171: 203.7 | D171: 203.68 | E171: 201.67 | F171: 199.63 | G171: 197.62 | H171: 205.72 | I171: 207.73 | J171: 209.77 | K171: 205.7 | L171: 201.65 | M171: 81.38061
A172: 163 | B172: PRESTIGE | C172: 275.1 | D172: 277.38 | E172: 270.72 | F172: 266.33 | G172: 259.67 | H172: 281.77 | I172: 288.43 | J172: 292.82 | K172: 284.05 | L172: 273 | M172: 2.75581
A173: 164 | B173: PGHH | C173: 13624.35 | D173: 13658.10 | E173: 13526.25 | F173: 13428.15 | G173: 13296.30 | H173: 13756.20 | I173: 13888.05 | J173: 13986.15 | K173: 13789.95 | L173: 13560 | M173: 0.05471
A174: 165 | B174: PNB | C174: 33.7 | D174: 33.77 | E174: 33.33 | F174: 32.97 | G174: 32.53 | H174: 34.13 | I174: 34.57 | J174: 34.93 | K174: 34.2 | L174: 33.4 | M174: 1173.71947
A175: 166 | B175: RBLBANK | C175: 174.55 | D175: 175.70 | E175: 171.45 | F175: 168.35 | G175: 164.10 | H175: 178.80 | I175: 183.05 | J175: 186.15 | K175: 179.95 | L175: 172.6 | M175: 175.58354
A176: 167 | B176: RECLTD | C176: 125.6 | D176: 126.18 | E176: 124.37 | F176: 123.13 | G176: 121.32 | H176: 127.42 | I176: 129.23 | J176: 130.47 | K176: 128 | L176: 124.95 | M176: 33.03665
A177: 168 | B177: RAJESHEXPO | C177: 495.15 | D177: 497.02 | E177: 491.13 | F177: 487.12 | G177: 481.23 | H177: 501.03 | I177: 506.92 | J177: 510.93 | K177: 502.9 | L177: 493 | M177: 1.45706
A178: 169 | B178: RELIANCE | C178: 1901.15 | D178: 1903.53 | E178: 1888.07 | F178: 1874.98 | G178: 1859.52 | H178: 1916.62 | I178: 1932.08 | J178: 1945.17 | K178: 1919 | L178: 1890.45 | M178: 79.3949
A179: 170 | B179: SBICARD | C179: 964.8 | D179: 968.85 | E179: 948.70 | F179: 932.60 | G179: 912.45 | H179: 984.95 | I179: 1005.10 | J179: 1021.20 | K179: 989 | L179: 952.75 | M179: 18.98536
A180: 171 | B180: SBILIFE | C180: 898.95 | D180: 908.47 | E180: 885.83 | F180: 872.72 | G180: 850.08 | H180: 921.58 | I180: 944.22 | J180: 957.33 | K180: 931.1 | L180: 895.35 | M180: 35.93124
A181: 172 | B181: SRF | C181: 6150.5 | D181: 6164.27 | E181: 6038.98 | F181: 5927.47 | G181: 5802.18 | H181: 6275.78 | I181: 6401.07 | J181: 6512.58 | K181: 6289.55 | L181: 6052.75 | M181: 1.72396
A182: 173 | B182: SANOFI | C182: 7682.05 | D182: 7714.65 | E182: 7609.40 | F182: 7536.75 | G182: 7431.50 | H182: 7787.30 | I182: 7892.55 | J182: 7965.20 | K182: 7819.9 | L182: 7642 | M182: 0.23848
A183: 174 | B183: SHREECEM | C183: 29320.7 | D183: 29675.83 | E183: 28695.87 | F183: 28071.03 | G183: 27091.07 | H183: 30300.67 | I183: 31280.63 | J183: 31905.47 | K183: 30655.8 | L183: 29051 | M183: 0.72618
A184: 175 | B184: SRTRANSFIN | C184: 1345.05 | D184: 1351.22 | E184: 1316.43 | F184: 1287.82 | G184: 1253.03 | H184: 1379.83 | I184: 1414.62 | J184: 1443.23 | K184: 1386 | L184: 1322.6 | M184: 24.99745
A185: 176 | B185: SIEMENS | C185: 1795.9 | D185: 1799.90 | E185: 1770.00 | F185: 1744.10 | G185: 1714.20 | H185: 1825.80 | I185: 1855.70 | J185: 1881.60 | K185: 1829.8 | L185: 1774 | M185: 2.33616
A186: 177 | B186: SBIN | C186: 329.5 | D186: 332.03 | E186: 324.17 | F186: 318.83 | G186: 310.97 | H186: 337.37 | I186: 345.23 | J186: 350.57 | K186: 339.9 | L186: 326.7 | M186: 412.96147
A187: 178 | B187: SAIL | C187: 89 | D187: 89.62 | E187: 87.08 | F187: 85.17 | G187: 82.63 | H187: 91.53 | I187: 94.07 | J187: 95.98 | K187: 92.15 | L187: 87.7 | M187: 360.41449
A188: 179 | B188: SUNPHARMA | C188: 645.15 | D188: 647.93 | E188: 636.37 | F188: 627.58 | G188: 616.02 | H188: 656.72 | I188: 668.28 | J188: 677.07 | K188: 659.5 | L188: 639.15 | M188: 138.31258
A189: 180 | B189: SUNTV | C189: 466.65 | D189: 465.23 | E189: 458.72 | F189: 450.78 | G189: 444.27 | H189: 473.17 | I189: 479.68 | J189: 487.62 | K189: 471.75 | L189: 457.3 | M189: 13.87405
A190: 181 | B190: SYNGENE | C190: 598.1 | D190: 600.33 | E190: 589.87 | F190: 581.63 | G190: 571.17 | H190: 608.57 | I190: 619.03 | J190: 627.27 | K190: 610.8 | L190: 592.1 | M190: 5.41286
A191: 182 | B191: TVSMOTOR | C191: 536.95 | D191: 539.10 | E191: 530.65 | F191: 524.35 | G191: 515.90 | H191: 545.40 | I191: 553.85 | J191: 560.15 | K191: 547.55 | L191: 532.8 | M191: 12.9248
A192: 183 | B192: TATACHEM | C192: 724.6 | D192: 730.77 | E192: 712.58 | F192: 700.57 | G192: 682.38 | H192: 742.78 | I192: 760.97 | J192: 772.98 | K192: 748.95 | L192: 718.75 | M192: 35.71306
A193: 184 | B193: TCS | C193: 3144.55 | D193: 3165.42 | E193: 3105.48 | F193: 3066.42 | G193: 3006.48 | H193: 3204.48 | I193: 3264.42 | J193: 3303.48 | K193: 3225.35 | L193: 3126.35 | M193: 31.41893
A194: 185 | B194: TATACONSUM | C194: 680.1 | D194: 681.47 | E194: 664.93 | F194: 649.77 | G194: 633.23 | H194: 696.63 | I194: 713.17 | J194: 728.33 | K194: 698 | L194: 666.3 | M194: 82.30341
A195: 186 | B195: TATAMOTORS | C195: 298.05 | D195: 300.13 | E195: 292.12 | F195: 286.18 | G195: 278.17 | H195: 306.07 | I195: 314.08 | J195: 320.02 | K195: 308.15 | L195: 294.2 | M195: 567.40291
A196: 187 | B196: TATAPOWER | C196: 93.6 | D196: 94.00 | E196: 92.00 | F196: 90.40 | G196: 88.40 | H196: 95.60 | I196: 97.60 | J196: 99.20 | K196: 96 | L196: 92.4 | M196: 356.31799
A197: 188 | B197: TATASTEEL | C197: 894 | D197: 893.92 | E197: 882.08 | F197: 870.17 | G197: 858.33 | H197: 905.83 | I197: 917.67 | J197: 929.58 | K197: 905.75 | L197: 882 | M197: 169.15293
A198: 189 | B198: TECHM | C198: 983.4 | D198: 988.08 | E198: 968.67 | F198: 953.93 | G198: 934.52 | H198: 1002.82 | I198: 1022.23 | J198: 1036.97 | K198: 1007.5 | L198: 973.35 | M198: 40.28636
A199: 190 | B199: RAMCOCEM | C199: 966.7 | D199: 978.57 | E199: 945.58 | F199: 924.47 | G199: 891.48 | H199: 999.68 | I199: 1032.67 | J199: 1053.78 | K199: 1011.55 | L199: 957.45 | M199: 6.61599
A200: 191 | B200: TITAN | C200: 1522.9 | D200: 1530.97 | E200: 1501.93 | F200: 1480.97 | G200: 1451.93 | H200: 1551.93 | I200: 1580.97 | J200: 1601.93 | K200: 1560 | L200: 1510 | M200: 17.89104
A201: 192 | B201: TORNTPHARM | C201: 2604.85 | D201: 2605.97 | E201: 2576.93 | F201: 2549.02 | G201: 2519.98 | H201: 2633.88 | I201: 2662.92 | J201: 2690.83 | K201: 2635 | L201: 2578.05 | M201: 2.60221
A202: 193 | B202: TORNTPOWER | C202: 377.75 | D202: 382.33 | E202: 370.92 | F202: 364.08 | G202: 352.67 | H202: 389.17 | I202: 400.58 | J202: 407.42 | K202: 393.75 | L202: 375.5 | M202: 15.45319
A203: 194 | B203: TRENT | C203: 736.5 | D203: 737.30 | E203: 727.00 | F203: 717.50 | G203: 707.20 | H203: 746.80 | I203: 757.10 | J203: 766.60 | K203: 747.6 | L203: 727.8 | M203: 4.75888
A204: 195 | B204: UPL | C204: 591.75 | D204: 596.78 | E204: 580.57 | F204: 569.38 | G204: 553.17 | H204: 607.97 | I204: 624.18 | J204: 635.37 | K204: 613 | L204: 585.6 | M204: 34.03144
A205: 196 | B205: ULTRACEMCO | C205: 6200.85 | D205: 6356.48 | E205: 6024.37 | F205: 5847.88 | G205: 5515.77 | H205: 6532.97 | I205: 6865.08 | J205: 7041.57 | K205: 6688.6 | L205: 6180 | M205: 12.72134
... 29 more rows

Sheet MidCap Intra
L5: Back To Main Page
A6: FOR INTRA DAY TRADING | K6: =Main!B10 -> 2021-04-22
A9: Sr.no | B9: Scrip | C9: CLOSE RATE | D9: Pivot Point | E9: Supports | H9: Resistances
C10: Point | E10: S1 | F10: S2 | G10: S3 | H10: R1 | I10: R2 | J10: R3 | K10: HIGH | L10: LOW | M10: Total Trade Quanity in Lakhs
A11: 1 | B11: 3MINDIA | C11: 26511.65 | D11: 26953.53 | E11: 25937.07 | F11: 25362.48 | G11: 24346.02 | H11: 27528.12 | I11: 28544.58 | J11: 29119.17 | K11: 27970 | L11: 26378.95 | M11: 0.06205
A12: 2 | B12: ABB | C12: 1395.4 | D12: 1398.17 | E12: 1378.33 | F12: 1361.27 | G12: 1341.43 | H12: 1415.23 | I12: 1435.07 | J12: 1452.13 | K12: 1418 | L12: 1381.1 | M12: 1.73676
A13: 3 | B13: POWERINDIA | C13: 1501.8 | D13: 1509.55 | E13: 1484.75 | F13: 1467.70 | G13: 1442.90 | H13: 1526.60 | I13: 1551.40 | J13: 1568.45 | K13: 1534.35 | L13: 1492.5 | M13: 0.14614
A14: 4 | B14: ACC | C14: 1825.8 | D14: 1871.93 | E14: 1763.87 | F14: 1701.93 | G14: 1593.87 | H14: 1933.87 | I14: 2041.93 | J14: 2103.87 | K14: 1980 | L14: 1810 | M14: 58.73433
A15: 5 | B15: AIAENG | C15: 1856.75 | D15: 1859.90 | E15: 1826.85 | F15: 1796.95 | G15: 1763.90 | H15: 1889.80 | I15: 1922.85 | J15: 1952.75 | K15: 1892.95 | L15: 1830 | M15: 0.24855
A16: 6 | B16: APLAPOLLO | C16: 1259.15 | D16: 1246.22 | E16: 1210.43 | F16: 1161.72 | G16: 1125.93 | H16: 1294.93 | I16: 1330.72 | J16: 1379.43 | K16: 1282 | L16: 1197.5 | M16: 3.43311
A17: 7 | B17: AUBANK | C17: 1041.3 | D17: 1038.77 | E17: 1022.53 | F17: 1003.77 | G17: 987.53 | H17: 1057.53 | I17: 1073.77 | J17: 1092.53 | K17: 1055 | L17: 1020 | M17: 14.78306
A18: 8 | B18: AARTIDRUGS | C18: 722.2 | D18: 728.77 | E18: 709.58 | F18: 696.97 | G18: 677.78 | H18: 741.38 | I18: 760.57 | J18: 773.18 | K18: 747.95 | L18: 716.15 | M18: 13.6274
A19: 9 | B19: AARTIIND | C19: 1434.7 | D19: 1431.25 | E19: 1414.45 | F19: 1394.20 | G19: 1377.40 | H19: 1451.50 | I19: 1468.30 | J19: 1488.55 | K19: 1448.05 | L19: 1411 | M19: 2.87111
A20: 10 | B20: AAVAS | C20: 2244.7 | D20: 2255.82 | E20: 2218.88 | F20: 2193.07 | G20: 2156.13 | H20: 2281.63 | I20: 2318.57 | J20: 2344.38 | K20: 2292.75 | L20: 2230 | M20: 0.2264
A21: 11 | B21: ABBOTINDIA | C21: 14839.9 | D21: 14860.00 | E21: 14730.00 | F21: 14620.10 | G21: 14490.10 | H21: 14969.90 | I21: 15099.90 | J21: 15209.80 | K21: 14990 | L21: 14750.1 | M21: 0.11046
A22: 12 | B22: ADANIENT | C22: 1142.75 | D22: 1148.50 | E22: 1119.30 | F22: 1095.85 | G22: 1066.65 | H22: 1171.95 | I22: 1201.15 | J22: 1224.60 | K22: 1177.7 | L22: 1125.05 | M22: 82.61172
A23: 13 | B23: ADANIGREEN | C23: 1043.95 | D23: 1055.65 | E23: 1025.30 | F23: 1006.65 | G23: 976.30 | H23: 1074.30 | I23: 1104.65 | J23: 1123.30 | K23: 1086 | L23: 1037 | M23: 4.77549
A24: 14 | B24: ADANIPORTS | C24: 720.45 | D24: 725.45 | E24: 705.00 | F24: 689.55 | G24: 669.10 | H24: 740.90 | I24: 761.35 | J24: 776.80 | K24: 745.9 | L24: 710 | M24: 213.15167
A25: 15 | B25: ATGL | C25: 1154 | D25: 1167.07 | E25: 1120.13 | F25: 1086.27 | G25: 1039.33 | H25: 1200.93 | I25: 1247.87 | J25: 1281.73 | K25: 1214 | L25: 1133.2 | M25: 21.50909
A26: 16 | B26: ADANITRANS | C26: 1020.7 | D26: 1029.50 | E26: 1006.30 | F26: 991.90 | G26: 968.70 | H26: 1043.90 | I26: 1067.10 | J26: 1081.50 | K26: 1052.7 | L26: 1015.1 | M26: 7.25372
A27: 17 | B27: ABCAPITAL | C27: 117.3 | D27: 117.97 | E27: 115.33 | F27: 113.37 | G27: 110.73 | H27: 119.93 | I27: 122.57 | J27: 124.53 | K27: 120.6 | L27: 116 | M27: 36.98356
A28: 18 | B28: ABFRL | C28: 173.85 | D28: 172.33 | E28: 168.52 | F28: 163.18 | G28: 159.37 | H28: 177.67 | I28: 181.48 | J28: 186.82 | K28: 176.15 | L28: 167 | M28: 43.05098
A29: 19 | B29: ADVENZYMES | C29: 375.4 | D29: 375.97 | E29: 364.43 | F29: 353.47 | G29: 341.93 | H29: 386.93 | I29: 398.47 | J29: 409.43 | K29: 387.5 | L29: 365 | M29: 7.67149
A30: 20 | B30: AEGISCHEM | C30: 286.65 | D30: 286.38 | E30: 282.92 | F30: 279.18 | G30: 275.72 | H30: 290.12 | I30: 293.58 | J30: 297.32 | K30: 289.85 | L30: 282.65 | M30: 3.15211
A31: 21 | B31: AFFLE | C31: 5343.75 | D31: 5361.93 | E31: 5253.82 | F31: 5163.88 | G31: 5055.77 | H31: 5451.87 | I31: 5559.98 | J31: 5649.92 | K31: 5470.05 | L31: 5272 | M31: 0.35547
A32: 22 | B32: AJANTPHARM | C32: 1797.4 | D32: 1779.50 | E32: 1749.00 | F32: 1700.60 | G32: 1670.10 | H32: 1827.90 | I32: 1858.40 | J32: 1906.80 | K32: 1810 | L32: 1731.1 | M32: 3.85307
A33: 23 | B33: AKZOINDIA | C33: 2208.85 | D33: 2209.87 | E33: 2188.98 | F33: 2169.12 | G33: 2148.23 | H33: 2229.73 | I33: 2250.62 | J33: 2270.48 | K33: 2230.75 | L33: 2190 | M33: 0.06754
A34: 24 | B34: ALEMBICLTD | C34: 105.05 | D34: 105.28 | E34: 100.87 | F34: 96.68 | G34: 92.27 | H34: 109.47 | I34: 113.88 | J34: 118.07 | K34: 109.7 | L34: 101.1 | M34: 16.69538
A35: 25 | B35: APLLTD | C35: 995.8 | D35: 1000.20 | E35: 980.70 | F35: 965.60 | G35: 946.10 | H35: 1015.30 | I35: 1034.80 | J35: 1049.90 | K35: 1019.7 | L35: 985.1 | M35: 3.86639
A36: 26 | B36: ALKEM | C36: 2740.65 | D36: 2750.93 | E36: 2721.87 | F36: 2703.08 | G36: 2674.02 | H36: 2769.72 | I36: 2798.78 | J36: 2817.57 | K36: 2780 | L36: 2732.15 | M36: 1.3377
A37: 27 | B37: ALKYLAMINE | C37: 5739.35 | D37: 5775.47 | E37: 5673.98 | F37: 5608.62 | G37: 5507.13 | H37: 5840.83 | I37: 5942.32 | J37: 6007.68 | K37: 5876.95 | L37: 5710.1 | M37: 0.20451
A38: 28 | B38: ALOKINDS | C38: 20.25 | D38: 20.38 | E38: 20.07 | F38: 19.88 | G38: 19.57 | H38: 20.57 | I38: 20.88 | J38: 21.07 | K38: 20.7 | L38: 20.2 | M38: 63.10668
A39: 29 | B39: AMARAJABAT | C39: 800.85 | D39: 805.18 | E39: 794.47 | F39: 788.08 | G39: 777.37 | H39: 811.57 | I39: 822.28 | J39: 828.67 | K39: 815.9 | L39: 798.8 | M39: 10.62673
A40: 30 | B40: AMBER | C40: 3178.95 | D40: 3150.10 | E40: 3110.20 | F40: 3041.45 | G40: 3001.55 | H40: 3218.85 | I40: 3258.75 | J40: 3327.50 | K40: 3190 | L40: 3081.35 | M40: 0.62782
A41: 31 | B41: AMBUJACEM | C41: 295.7 | D41: 300.67 | E41: 287.48 | F41: 279.27 | G41: 266.08 | H41: 308.88 | I41: 322.07 | J41: 330.28 | K41: 313.85 | L41: 292.45 | M41: 122.22234
A42: 32 | B42: APOLLOHOSP | C42: 3269.65 | D42: 3253.47 | E42: 3197.93 | F42: 3126.22 | G42: 3070.68 | H42: 3325.18 | I42: 3380.72 | J42: 3452.43 | K42: 3309 | L42: 3181.75 | M42: 25.7542
A43: 33 | B43: APOLLOTYRE | C43: 202.2 | D43: 203.72 | E43: 198.93 | F43: 195.67 | G43: 190.88 | H43: 206.98 | I43: 211.77 | J43: 215.03 | K43: 208.5 | L43: 200.45 | M43: 43.18084
A44: 34 | B44: ASHOKLEY | C44: 112.85 | D44: 112.63 | E44: 110.97 | F44: 109.08 | G44: 107.42 | H44: 114.52 | I44: 116.18 | J44: 118.07 | K44: 114.3 | L44: 110.75 | M44: 320.76834
A45: 35 | B45: ASHOKA | C45: 83.95 | D45: 85.08 | E45: 81.97 | F45: 79.98 | G45: 76.87 | H45: 87.07 | I45: 90.18 | J45: 92.17 | K45: 88.2 | L45: 83.1 | M45: 18.25864
A46: 36 | B46: ASIANPAINT | C46: 2553.65 | D46: 2562.38 | E46: 2520.07 | F46: 2486.48 | G46: 2444.17 | H46: 2595.97 | I46: 2638.28 | J46: 2671.87 | K46: 2604.7 | L46: 2528.8 | M46: 14.89287
A47: 37 | B47: ASTERDM | C47: 146.95 | D47: 149.50 | E47: 143.00 | F47: 139.05 | G47: 132.55 | H47: 153.45 | I47: 159.95 | J47: 163.90 | K47: 156 | L47: 145.55 | M47: 15.42421
A48: 38 | B48: ASTRAZEN | C48: 3904 | D48: 3859.67 | E48: 3744.33 | F48: 3584.67 | G48: 3469.33 | H48: 4019.33 | I48: 4134.67 | J48: 4294.33 | K48: 3975 | L48: 3700 | M48: 6.2719
A49: 39 | B49: ASTRAL | C49: 1668.45 | D49: 1671.90 | E49: 1630.65 | F49: 1592.85 | G49: 1551.60 | H49: 1709.70 | I49: 1750.95 | J49: 1788.75 | K49: 1713.15 | L49: 1634.1 | M49: 1.90572
A50: 40 | B50: ATUL | C50: 7591.75 | D50: 7645.58 | E50: 7416.17 | F50: 7240.58 | G50: 7011.17 | H50: 7821.17 | I50: 8050.58 | J50: 8226.17 | K50: 7875 | L50: 7470 | M50: 0.28391
A51: 41 | B51: AUROPHARMA | C51: 987.3 | D51: 990.02 | E51: 973.78 | F51: 960.27 | G51: 944.03 | H51: 1003.53 | I51: 1019.77 | J51: 1033.28 | K51: 1006.25 | L51: 976.5 | M51: 69.61954
A52: 42 | B52: AVANTIFEED | C52: 492.9 | D52: 489.75 | E52: 480.15 | F52: 467.40 | G52: 457.80 | H52: 502.50 | I52: 512.10 | J52: 524.85 | K52: 499.35 | L52: 477 | M52: 6.36975
A53: 43 | B53: DMART | C53: 2778.25 | D53: 2808.02 | E53: 2726.23 | F53: 2674.22 | G53: 2592.43 | H53: 2860.03 | I53: 2941.82 | J53: 2993.83 | K53: 2889.8 | L53: 2756 | M53: 4.51846
A54: 44 | B54: AXISBANK | C54: 651.75 | D54: 652.25 | E54: 642.50 | F54: 633.25 | G54: 623.50 | H54: 661.50 | I54: 671.25 | J54: 680.50 | K54: 662 | L54: 643 | M54: 122.96248
A55: 45 | B55: BASF | C55: 2020.15 | D55: 2038.38 | E55: 1991.77 | F55: 1963.38 | G55: 1916.77 | H55: 2066.77 | I55: 2113.38 | J55: 2141.77 | K55: 2085 | L55: 2010 | M55: 0.22378
A56: 46 | B56: BEML | C56: 1163.6 | D56: 1164.35 | E56: 1137.20 | F56: 1110.80 | G56: 1083.65 | H56: 1190.75 | I56: 1217.90 | J56: 1244.30 | K56: 1191.5 | L56: 1137.95 | M56: 2.78369
A57: 47 | B57: BSE | C57: 591.65 | D57: 589.18 | E57: 579.47 | F57: 567.28 | G57: 557.57 | H57: 601.37 | I57: 611.08 | J57: 623.27 | K57: 598.9 | L57: 577 | M57: 4.18387
A58: 48 | B58: BAJAJ-AUTO | C58: 3600.9 | D58: 3593.43 | E58: 3562.57 | F58: 3524.23 | G58: 3493.37 | H58: 3631.77 | I58: 3662.63 | J58: 3700.97 | K58: 3624.3 | L58: 3555.1 | M58: 6.76558
A59: 49 | B59: BAJAJCON | C59: 292.85 | D59: 298.10 | E59: 280.30 | F59: 267.75 | G59: 249.95 | H59: 310.65 | I59: 328.45 | J59: 341.00 | K59: 315.9 | L59: 285.55 | M59: 31.14114
A60: 50 | B60: BAJAJELEC | C60: 1118.6 | D60: 1134.47 | E60: 1099.13 | F60: 1079.67 | G60: 1044.33 | H60: 1153.93 | I60: 1189.27 | J60: 1208.73 | K60: 1169.8 | L60: 1115 | M60: 0.59595
A61: 51 | B61: BAJFINANCE | C61: 4613.65 | D61: 4622.62 | E61: 4546.23 | F61: 4478.82 | G61: 4402.43 | H61: 4690.03 | I61: 4766.42 | J61: 4833.83 | K61: 4699 | L61: 4555.2 | M61: 33.94597
A62: 52 | B62: BAJAJFINSV | C62: 9819.4 | D62: 9788.30 | E62: 9631.10 | F62: 9442.80 | G62: 9285.60 | H62: 9976.60 | I62: 10133.80 | J62: 10322.10 | K62: 9945.5 | L62: 9600 | M62: 7.98732
A63: 53 | B63: BAJAJHLDNG | C63: 3377.7 | D63: 3352.93 | E63: 3307.17 | F63: 3236.63 | G63: 3190.87 | H63: 3423.47 | I63: 3469.23 | J63: 3539.77 | K63: 3398.7 | L63: 3282.4 | M63: 0.2114
A64: 54 | B64: BALKRISIND | C64: 1690.8 | D64: 1701.90 | E64: 1663.80 | F64: 1636.80 | G64: 1598.70 | H64: 1728.90 | I64: 1767.00 | J64: 1794.00 | K64: 1740 | L64: 1674.9 | M64: 12.25868
A65: 55 | B65: BALMLAWRIE | C65: 118.15 | D65: 118.70 | E65: 116.45 | F65: 114.75 | G65: 112.50 | H65: 120.40 | I65: 122.65 | J65: 124.35 | K65: 120.95 | L65: 117 | M65: 2.26563
A66: 56 | B66: BALRAMCHIN | C66: 250.45 | D66: 251.12 | E66: 245.53 | F66: 240.62 | G66: 235.03 | H66: 256.03 | I66: 261.62 | J66: 266.53 | K66: 256.7 | L66: 246.2 | M66: 20.36766
A67: 57 | B67: BANDHANBNK | C67: 309.15 | D67: 309.90 | E67: 304.80 | F67: 300.45 | G67: 295.35 | H67: 314.25 | I67: 319.35 | J67: 323.70 | K67: 315 | L67: 305.55 | M67: 67.66422
A68: 58 | B68: BANKBARODA | C68: 63.25 | D68: 63.92 | E68: 62.03 | F68: 60.82 | G68: 58.93 | H68: 65.13 | I68: 67.02 | J68: 68.23 | K68: 65.8 | L68: 62.7 | M68: 367.14142
A69: 59 | B69: BANKINDIA | C69: 64.6 | D69: 65.03 | E69: 63.57 | F69: 62.53 | G69: 61.07 | H69: 66.07 | I69: 67.53 | J69: 68.57 | K69: 66.5 | L69: 64 | M69: 52.4788
A70: 60 | B70: MAHABANK | C70: 22.7 | D70: 23.20 | E70: 22.05 | F70: 21.40 | G70: 20.25 | H70: 23.85 | I70: 25.00 | J70: 25.65 | K70: 24.35 | L70: 22.55 | M70: 123.29593
A71: 61 | B71: BATAINDIA | C71: 1297.65 | D71: 1305.13 | E71: 1280.52 | F71: 1263.38 | G71: 1238.77 | H71: 1322.27 | I71: 1346.88 | J71: 1364.02 | K71: 1329.75 | L71: 1288 | M71: 5.17858
A72: 62 | B72: BAYERCROP | C72: 5162.6 | D72: 5128.53 | E72: 5044.07 | F72: 4925.53 | G72: 4841.07 | H72: 5247.07 | I72: 5331.53 | J72: 5450.07 | K72: 5213 | L72: 5010 | M72: 0.12419
A73: 63 | B73: BERGEPAINT | C73: 709.5 | D73: 713.43 | E73: 702.12 | F73: 694.73 | G73: 683.42 | H73: 720.82 | I73: 732.13 | J73: 739.52 | K73: 724.75 | L73: 706.05 | M73: 4.23302
A74: 64 | B74: BDL | C74: 330.15 | D74: 329.95 | E74: 328.00 | F74: 325.85 | G74: 323.90 | H74: 332.10 | I74: 334.05 | J74: 336.20 | K74: 331.9 | L74: 327.8 | M74: 0.73755
A75: 65 | B75: BEL | C75: 124.3 | D75: 125.20 | E75: 122.75 | F75: 121.20 | G75: 118.75 | H75: 126.75 | I75: 129.20 | J75: 130.75 | K75: 127.65 | L75: 123.65 | M75: 88.78113
A76: 66 | B76: BHARATFORG | C76: 575.35 | D76: 576.70 | E76: 562.65 | F76: 549.95 | G76: 535.90 | H76: 589.40 | I76: 603.45 | J76: 616.15 | K76: 590.75 | L76: 564 | M76: 26.30705
A77: 67 | B77: BHEL | C77: 44.2 | D77: 44.48 | E77: 43.62 | F77: 43.03 | G77: 42.17 | H77: 45.07 | I77: 45.93 | J77: 46.52 | K77: 45.35 | L77: 43.9 | M77: 325.91936
A78: 68 | B78: BPCL | C78: 408.1 | D78: 409.55 | E78: 404.65 | F78: 401.20 | G78: 396.30 | H78: 413.00 | I78: 417.90 | J78: 421.35 | K78: 414.45 | L78: 406.1 | M78: 35.13444
A79: 69 | B79: BHARATRAS | C79: 9682.95 | D79: 9775.98 | E79: 9551.97 | F79: 9420.98 | G79: 9196.97 | H79: 9906.97 | I79: 10130.98 | J79: 10261.97 | K79: 10000 | L79: 9645 | M79: 0.01459
A80: 70 | B80: BHARTIARTL | C80: 530.2 | D80: 531.03 | E80: 525.07 | F80: 519.93 | G80: 513.97 | H80: 536.17 | I80: 542.13 | J80: 547.27 | K80: 537 | L80: 525.9 | M80: 72.33304
A81: 71 | B81: BIOCON | C81: 401.15 | D81: 402.97 | E81: 395.98 | F81: 390.82 | G81: 383.83 | H81: 408.13 | I81: 415.12 | J81: 420.28 | K81: 409.95 | L81: 397.8 | M81: 44.36026
A82: 72 | B82: BIRLACORPN | C82: 942.2 | D82: 949.22 | E82: 923.93 | F82: 905.67 | G82: 880.38 | H82: 967.48 | I82: 992.77 | J82: 1011.03 | K82: 974.5 | L82: 930.95 | M82: 2.3807
A83: 73 | B83: BSOFT | C83: 245.05 | D83: 246.85 | E83: 239.20 | F83: 233.35 | G83: 225.70 | H83: 252.70 | I83: 260.35 | J83: 266.20 | K83: 254.5 | L83: 241 | M83: 2.95062
A84: 74 | B84: BLISSGVS | C84: 96.9 | D84: 97.25 | E84: 92.95 | F84: 89.00 | G84: 84.70 | H84: 101.20 | I84: 105.50 | J84: 109.45 | K84: 101.55 | L84: 93.3 | M84: 14.82012
A85: 75 | B85: BLUEDART | C85: 5053.7 | D85: 5106.20 | E85: 4962.25 | F85: 4870.80 | G85: 4726.85 | H85: 5197.65 | I85: 5341.60 | J85: 5433.05 | K85: 5250.15 | L85: 5014.75 | M85: 0.26492
A86: 76 | B86: BLUESTARCO | C86: 835.05 | D86: 835.03 | E86: 828.62 | F86: 822.18 | G86: 815.77 | H86: 841.47 | I86: 847.88 | J86: 854.32 | K86: 841.45 | L86: 828.6 | M86: 0.71424
A87: 77 | B87: BBTC | C87: 1162.1 | D87: 1167.92 | E87: 1153.18 | F87: 1144.27 | G87: 1129.53 | H87: 1176.83 | I87: 1191.57 | J87: 1200.48 | K87: 1182.65 | L87: 1159 | M87: 0.20446
A88: 78 | B88: BOMDYEING | C88: 66 | D88: 66.13 | E88: 65.37 | F88: 64.73 | G88: 63.97 | H88: 66.77 | I88: 67.53 | J88: 68.17 | K88: 66.9 | L88: 65.5 | M88: 8.54953
A89: 79 | B89: BOSCHLTD | C89: 13416.8 | D89: 13470.22 | E89: 13250.58 | F89: 13084.37 | G89: 12864.73 | H89: 13636.43 | I89: 13856.07 | J89: 14022.28 | K89: 13689.85 | L89: 13304 | M89: 0.23995
A90: 80 | B90: BRIGADE | C90: 246.8 | D90: 246.30 | E90: 243.05 | F90: 239.30 | G90: 236.05 | H90: 250.05 | I90: 253.30 | J90: 257.05 | K90: 249.55 | L90: 242.55 | M90: 1.42155
A91: 81 | B91: BRITANNIA | C91: 3729.9 | D91: 3724.25 | E91: 3695.75 | F91: 3661.60 | G91: 3633.10 | H91: 3758.40 | I91: 3786.90 | J91: 3821.05 | K91: 3752.75 | L91: 3690.1 | M91: 3.31477
A92: 82 | B92: CARERATING | C92: 477.5 | D92: 483.13 | E92: 463.27 | F92: 449.03 | G92: 429.17 | H92: 497.37 | I92: 517.23 | J92: 531.47 | K92: 503 | L92: 468.9 | M92: 3.99444
A93: 83 | B93: CCL | C93: 254.65 | D93: 256.78 | E93: 249.07 | F93: 243.48 | G93: 235.77 | H93: 262.37 | I93: 270.08 | J93: 275.67 | K93: 264.5 | L93: 251.2 | M93: 3.69675
A94: 84 | B94: CESC | C94: 583.45 | D94: 589.22 | E94: 575.43 | F94: 567.42 | G94: 553.63 | H94: 597.23 | I94: 611.02 | J94: 619.03 | K94: 603 | L94: 581.2 | M94: 5.01571
A95: 85 | B95: CRISIL | C95: 1827.05 | D95: 1847.77 | E95: 1790.28 | F95: 1753.52 | G95: 1696.03 | H95: 1884.53 | I95: 1942.02 | J95: 1978.78 | K95: 1905.25 | L95: 1811 | M95: 0.39192
A96: 86 | B96: CSBBANK | C96: 253.6 | D96: 254.33 | E96: 249.67 | F96: 245.73 | G96: 241.07 | H96: 258.27 | I96: 262.93 | J96: 266.87 | K96: 259 | L96: 250.4 | M96: 1.59989
A97: 87 | B97: CADILAHC | C97: 556.25 | D97: 552.60 | E97: 536.30 | F97: 516.35 | G97: 500.05 | H97: 572.55 | I97: 588.85 | J97: 608.80 | K97: 568.9 | L97: 532.65 | M97: 280.4818
A98: 88 | B98: CANFINHOME | C98: 512.4 | D98: 510.63 | E98: 503.27 | F98: 494.13 | G98: 486.77 | H98: 519.77 | I98: 527.13 | J98: 536.27 | K98: 518 | L98: 501.5 | M98: 2.53757
A99: 89 | B99: CANBK | C99: 128.05 | D99: 129.30 | E99: 125.60 | F99: 123.15 | G99: 119.45 | H99: 131.75 | I99: 135.45 | J99: 137.90 | K99: 133 | L99: 126.85 | M99: 130.38499
A100: 90 | B100: CAPLIPOINT | C100: 507.55 | D100: 509.85 | E100: 499.70 | F100: 491.85 | G100: 481.70 | H100: 517.70 | I100: 527.85 | J100: 535.70 | K100: 520 | L100: 502 | M100: 10.68631
A101: 91 | B101: CGCL | C101: 393.85 | D101: 394.73 | E101: 392.12 | F101: 390.38 | G101: 387.77 | H101: 396.47 | I101: 399.08 | J101: 400.82 | K101: 397.35 | L101: 393 | M101: 1.36492
A102: 92 | B102: CARBORUNIV | C102: 482.75 | D102: 484.13 | E102: 473.62 | F102: 464.48 | G102: 453.97 | H102: 493.27 | I102: 503.78 | J102: 512.92 | K102: 494.65 | L102: 475 | M102: 1.34772
A103: 93 | B103: CASTROLIND | C103: 120.85 | D103: 121.45 | E103: 120.05 | F103: 119.25 | G103: 117.85 | H103: 122.25 | I103: 123.65 | J103: 124.45 | K103: 122.85 | L103: 120.65 | M103: 11.9313
A104: 94 | B104: CEATLTD | C104: 1404.7 | D104: 1393.60 | E104: 1345.05 | F104: 1285.40 | G104: 1236.85 | H104: 1453.25 | I104: 1501.80 | J104: 1561.45 | K104: 1442.15 | L104: 1333.95 | M104: 2.41229
A105: 95 | B105: CENTRALBK | C105: 16.25 | D105: 16.40 | E105: 16.00 | F105: 15.75 | G105: 15.35 | H105: 16.65 | I105: 17.05 | J105: 17.30 | K105: 16.8 | L105: 16.15 | M105: 71.6588
A106: 96 | B106: CDSL | C106: 718.7 | D106: 719.25 | E106: 710.55 | F106: 702.40 | G106: 693.70 | H106: 727.40 | I106: 736.10 | J106: 744.25 | K106: 727.95 | L106: 711.1 | M106: 3.2028
A107: 97 | B107: CENTURYPLY | C107: 338.9 | D107: 336.67 | E107: 326.33 | F107: 313.77 | G107: 303.43 | H107: 349.23 | I107: 359.57 | J107: 372.13 | K107: 347 | L107: 324.1 | M107: 3.35824
A108: 98 | B108: CENTURYTEX | C108: 445.1 | D108: 448.03 | E108: 436.32 | F108: 427.53 | G108: 415.82 | H108: 456.82 | I108: 468.53 | J108: 477.32 | K108: 459.75 | L108: 439.25 | M108: 7.79265
A109: 99 | B109: CERA | C109: 3905 | D109: 3911.32 | E109: 3850.53 | F109: 3796.07 | G109: 3735.28 | H109: 3965.78 | I109: 4026.57 | J109: 4081.03 | K109: 3972.1 | L109: 3856.85 | M109: 0.04127
A110: 100 | B110: CHALET | C110: 141.35 | D110: 141.13 | E110: 134.37 | F110: 127.38 | G110: 120.62 | H110: 148.12 | I110: 154.88 | J110: 161.87 | K110: 147.9 | L110: 134.15 | M110: 4.32672
A111: 101 | B111: CHAMBLFERT | C111: 216.45 | D111: 217.65 | E111: 214.10 | F111: 211.75 | G111: 208.20 | H111: 220.00 | I111: 223.55 | J111: 225.90 | K111: 221.2 | L111: 215.3 | M111: 1.95384
A112: 102 | B112: CHENNPETRO | C112: 96 | D112: 96.02 | E112: 95.03 | F112: 94.07 | G112: 93.08 | H112: 96.98 | I112: 97.97 | J112: 98.93 | K112: 97 | L112: 95.05 | M112: 4.45803
A113: 103 | B113: CHOLAHLDNG | C113: 562.9 | D113: 561.57 | E113: 556.43 | F113: 549.97 | G113: 544.83 | H113: 568.03 | I113: 573.17 | J113: 579.63 | K113: 566.7 | L113: 555.1 | M113: 0.43272
A114: 104 | B114: CHOLAFIN | C114: 538.75 | D114: 543.73 | E114: 528.27 | F114: 517.78 | G114: 502.32 | H114: 554.22 | I114: 569.68 | J114: 580.17 | K114: 559.2 | L114: 533.25 | M114: 60.39565
A115: 105 | B115: CIPLA | C115: 949.3 | D115: 952.25 | E115: 938.15 | F115: 927.00 | G115: 912.90 | H115: 963.40 | I115: 977.50 | J115: 988.65 | K115: 966.35 | L115: 941.1 | M115: 102.05616
A116: 106 | B116: CUB | C116: 158.3 | D116: 159.07 | E116: 157.13 | F116: 155.97 | G116: 154.03 | H116: 160.23 | I116: 162.17 | J116: 163.33 | K116: 161 | L116: 157.9 | M116: 10.88175
A117: 107 | B117: COALINDIA | C117: 124.5 | D117: 124.93 | E117: 123.62 | F117: 122.73 | G117: 121.42 | H117: 125.82 | I117: 127.13 | J117: 128.02 | K117: 126.25 | L117: 124.05 | M117: 77.38871
A118: 108 | B118: COCHINSHIP | C118: 349.95 | D118: 351.85 | E118: 347.00 | F118: 344.05 | G118: 339.20 | H118: 354.80 | I118: 359.65 | J118: 362.60 | K118: 356.7 | L118: 348.9 | M118: 0.77661
A119: 109 | B119: COFORGE | C119: 3010 | D119: 3048.57 | E119: 2949.18 | F119: 2888.37 | G119: 2788.98 | H119: 3109.38 | I119: 3208.77 | J119: 3269.58 | K119: 3147.95 | L119: 2987.75 | M119: 4.94558
A120: 110 | B120: COLPAL | C120: 1521.8 | D120: 1527.78 | E120: 1505.02 | F120: 1488.23 | G120: 1465.47 | H120: 1544.57 | I120: 1567.33 | J120: 1584.12 | K120: 1550.55 | L120: 1511 | M120: 4.29114
A121: 111 | B121: CONCOR | C121: 549.1 | D121: 556.07 | E121: 539.13 | F121: 529.17 | G121: 512.23 | H121: 566.03 | I121: 582.97 | J121: 592.93 | K121: 573 | L121: 546.1 | M121: 16.6954
A122: 112 | B122: COROMANDEL | C122: 737.3 | D122: 737.05 | E122: 727.85 | F122: 718.40 | G122: 709.20 | H122: 746.50 | I122: 755.70 | J122: 765.15 | K122: 746.25 | L122: 727.6 | M122: 1.95272
A123: 113 | B123: CREDITACC | C123: 562.85 | D123: 566.85 | E123: 556.70 | F123: 550.55 | G123: 540.40 | H123: 573.00 | I123: 583.15 | J123: 589.30 | K123: 577 | L123: 560.7 | M123: 0.49794
A124: 114 | B124: CROMPTON | C124: 367.3 | D124: 369.47 | E124: 361.83 | F124: 356.37 | G124: 348.73 | H124: 374.93 | I124: 382.57 | J124: 388.03 | K124: 377.1 | L124: 364 | M124: 14.16259
A125: 115 | B125: CUMMINSIND | C125: 833.4 | D125: 837.55 | E125: 820.10 | F125: 806.80 | G125: 789.35 | H125: 850.85 | I125: 868.30 | J125: 881.60 | K125: 855 | L125: 824.25 | M125: 4.07772
A126: 116 | B126: CYIENT | C126: 684.65 | D126: 683.55 | E126: 672.10 | F126: 659.55 | G126: 648.10 | H126: 696.10 | I126: 707.55 | J126: 720.10 | K126: 695 | L126: 671 | M126: 1.09907
A127: 117 | B127: DBCORP | C127: 80.15 | D127: 81.42 | E127: 78.53 | F127: 76.92 | G127: 74.03 | H127: 83.03 | I127: 85.92 | J127: 87.53 | K127: 84.3 | L127: 79.8 | M127: 3.59836
A128: 118 | B128: DCBBANK | C128: 92.7 | D128: 91.67 | E128: 89.43 | F128: 86.17 | G128: 83.93 | H128: 94.93 | I128: 97.17 | J128: 100.43 | K128: 93.9 | L128: 88.4 | M128: 23.23937
A129: 119 | B129: DCMSHRIRAM | C129: 653.8 | D129: 674.70 | E129: 620.90 | F129: 588.00 | G129: 534.20 | H129: 707.60 | I129: 761.40 | J129: 794.30 | K129: 728.5 | L129: 641.8 | M129: 12.13678
A130: 120 | B130: DLF | C130: 234.4 | D130: 235.97 | E130: 230.48 | F130: 226.57 | G130: 221.08 | H130: 239.88 | I130: 245.37 | J130: 249.28 | K130: 241.45 | L130: 232.05 | M130: 121.62782
A131: 121 | B131: DABUR | C131: 569 | D131: 570.25 | E131: 564.55 | F131: 560.10 | G131: 554.40 | H131: 574.70 | I131: 580.40 | J131: 584.85 | K131: 575.95 | L131: 565.8 | M131: 23.21346
A132: 122 | B132: DALBHARAT | C132: 1447.35 | D132: 1480.03 | E132: 1395.32 | F132: 1343.28 | G132: 1258.57 | H132: 1532.07 | I132: 1616.78 | J132: 1668.82 | K132: 1564.75 | L132: 1428 | M132: 2.60999
A133: 123 | B133: DEEPAKNTR | C133: 1559.85 | D133: 1568.53 | E133: 1541.32 | F133: 1522.78 | G133: 1495.57 | H133: 1587.07 | I133: 1614.28 | J133: 1632.82 | K133: 1595.75 | L133: 1550 | M133: 4.30408
A134: 124 | B134: DELTACORP | C134: 146.4 | D134: 146.13 | E134: 144.37 | F134: 142.33 | G134: 140.57 | H134: 148.17 | I134: 149.93 | J134: 151.97 | K134: 147.9 | L134: 144.1 | M134: 12.04135
A135: 125 | B135: DHANI | C135: 187.05 | D135: 190.80 | E135: 181.75 | F135: 176.45 | G135: 167.40 | H135: 196.10 | I135: 205.15 | J135: 210.45 | K135: 199.85 | L135: 185.5 | M135: 11.35889
A136: 126 | B136: DHANUKA | C136: 714.3 | D136: 716.80 | E136: 703.60 | F136: 692.90 | G136: 679.70 | H136: 727.50 | I136: 740.70 | J136: 751.40 | K136: 730 | L136: 706.1 | M136: 0.52316
A137: 127 | B137: DBL | C137: 595.25 | D137: 593.40 | E137: 579.80 | F137: 564.35 | G137: 550.75 | H137: 608.85 | I137: 622.45 | J137: 637.90 | K137: 607 | L137: 577.95 | M137: 5.0073
A138: 128 | B138: DISHTV | C138: 8.8 | D138: 8.87 | E138: 8.63 | F138: 8.47 | G138: 8.23 | H138: 9.03 | I138: 9.27 | J138: 9.43 | K138: 9.1 | L138: 8.7 | M138: 55.8357
A139: 129 | B139: DCAL | C139: 146.05 | D139: 142.70 | E139: 135.90 | F139: 125.75 | G139: 118.95 | H139: 152.85 | I139: 159.65 | J139: 169.80 | K139: 149.5 | L139: 132.55 | M139: 65.24413
A140: 130 | B140: DIVISLAB | C140: 3779.7 | D140: 3792.87 | E140: 3736.83 | F140: 3693.97 | G140: 3637.93 | H140: 3835.73 | I140: 3891.77 | J140: 3934.63 | K140: 3848.9 | L140: 3750 | M140: 5.9457
A141: 131 | B141: DIXON | C141: 3934.75 | D141: 3917.18 | E141: 3860.57 | F141: 3786.38 | G141: 3729.77 | H141: 3991.37 | I141: 4047.98 | J141: 4122.17 | K141: 3973.8 | L141: 3843 | M141: 5.8578
A142: 132 | B142: LALPATHLAB | C142: 2904.75 | D142: 2922.20 | E142: 2843.55 | F142: 2782.35 | G142: 2703.70 | H142: 2983.40 | I142: 3062.05 | J142: 3123.25 | K142: 3000.85 | L142: 2861 | M142: 7.6776
A143: 133 | B143: DRREDDY | C143: 5156.75 | D143: 5152.33 | E143: 5093.92 | F143: 5031.08 | G143: 4972.67 | H143: 5215.17 | I143: 5273.58 | J143: 5336.42 | K143: 5210.75 | L143: 5089.5 | M143: 34.84976
A144: 134 | B144: EIDPARRY | C144: 314.1 | D144: 315.73 | E144: 310.57 | F144: 307.03 | G144: 301.87 | H144: 319.27 | I144: 324.43 | J144: 327.97 | K144: 320.9 | L144: 312.2 | M144: 1.75578
A145: 135 | B145: EIHOTEL | C145: 83.8 | D145: 84.55 | E145: 82.70 | F145: 81.60 | G145: 79.75 | H145: 85.65 | I145: 87.50 | J145: 88.60 | K145: 86.4 | L145: 83.45 | M145: 4.24594
A146: 136 | B146: EPL | C146: 210.05 | D146: 210.17 | E146: 208.38 | F146: 206.72 | G146: 204.93 | H146: 211.83 | I146: 213.62 | J146: 215.28 | K146: 211.95 | L146: 208.5 | M146: 4.24212
A147: 137 | B147: ESABINDIA | C147: 1826.15 | D147: 1834.38 | E147: 1798.77 | F147: 1771.38 | G147: 1735.77 | H147: 1861.77 | I147: 1897.38 | J147: 1924.77 | K147: 1870 | L147: 1807 | M147: 0.04792
A148: 138 | B148: EDELWEISS | C148: 60.7 | D148: 61.45 | E148: 59.50 | F148: 58.30 | G148: 56.35 | H148: 62.65 | I148: 64.60 | J148: 65.80 | K148: 63.4 | L148: 60.25 | M148: 10.49133
A149: 139 | B149: EICHERMOT | C149: 2340 | D149: 2354.45 | E149: 2304.45 | F149: 2268.90 | G149: 2218.90 | H149: 2390.00 | I149: 2440.00 | J149: 2475.55 | K149: 2404.45 | L149: 2318.9 | M149: 10.40931
A150: 140 | B150: ELGIEQUIP | C150: 219.7 | D150: 226.37 | E150: 209.73 | F150: 199.77 | G150: 183.13 | H150: 236.33 | I150: 252.97 | J150: 262.93 | K150: 243 | L150: 216.4 | M150: 16.77946
A151: 141 | B151: EMAMILTD | C151: 517 | D151: 520.17 | E151: 505.33 | F151: 493.67 | G151: 478.83 | H151: 531.83 | I151: 546.67 | J151: 558.33 | K151: 535 | L151: 508.5 | M151: 4.38194
A152: 142 | B152: ENDURANCE | C152: 1288.45 | D152: 1288.45 | E152: 1275.90 | F152: 1263.35 | G152: 1250.80 | H152: 1301.00 | I152: 1313.55 | J152: 1326.10 | K152: 1301 | L152: 1275.9 | M152: 2.49137
A153: 143 | B153: ENGINERSIN | C153: 70.85 | D153: 71.12 | E153: 70.33 | F153: 69.82 | G153: 69.03 | H153: 71.63 | I153: 72.42 | J153: 72.93 | K153: 71.9 | L153: 70.6 | M153: 9.83073
A154: 144 | B154: EQUITAS | C154: 76.15 | D154: 76.65 | E154: 75.05 | F154: 73.95 | G154: 72.35 | H154: 77.75 | I154: 79.35 | J154: 80.45 | K154: 78.25 | L154: 75.55 | M154: 7.93288
A155: 145 | B155: ERIS | C155: 594 | D155: 594.12 | E155: 580.88 | F155: 567.77 | G155: 554.53 | H155: 607.23 | I155: 620.47 | J155: 633.58 | K155: 607.35 | L155: 581 | M155: 1.24585
A156: 146 | B156: ESCORTS | C156: 1210.6 | D156: 1214.60 | E156: 1189.85 | F156: 1169.10 | G156: 1144.35 | H156: 1235.35 | I156: 1260.10 | J156: 1280.85 | K156: 1239.35 | L156: 1193.85 | M156: 7.45098
A157: 147 | B157: EXIDEIND | C157: 173.45 | D157: 173.93 | E157: 171.87 | F157: 170.28 | G157: 168.22 | H157: 175.52 | I157: 177.58 | J157: 179.17 | K157: 176 | L157: 172.35 | M157: 24.91575
A158: 148 | B158: FDC | C158: 316.8 | D158: 318.97 | E158: 311.08 | F158: 305.37 | G158: 297.48 | H158: 324.68 | I158: 332.57 | J158: 338.28 | K158: 326.85 | L158: 313.25 | M158: 5.9428
A159: 149 | B159: FEDERALBNK | C159: 72.1 | D159: 72.77 | E159: 71.03 | F159: 69.97 | G159: 68.23 | H159: 73.83 | I159: 75.57 | J159: 76.63 | K159: 74.5 | L159: 71.7 | M159: 224.45564
A160: 150 | B160: FINEORG | C160: 2479.4 | D160: 2520.07 | E160: 2424.33 | F160: 2369.27 | G160: 2273.53 | H160: 2575.13 | I160: 2670.87 | J160: 2725.93 | K160: 2615.8 | L160: 2465 | M160: 0.70591
A161: 151 | B161: FINCABLES | C161: 358.85 | D161: 361.17 | E161: 353.98 | F161: 349.12 | G161: 341.93 | H161: 366.03 | I161: 373.22 | J161: 378.08 | K161: 368.35 | L161: 356.3 | M161: 0.89636
A162: 152 | B162: FINPIPE | C162: 142.8 | D162: 143.75 | E162: 141.05 | F162: 139.30 | G162: 136.60 | H162: 145.50 | I162: 148.20 | J162: 149.95 | K162: 146.45 | L162: 142 | M162: 11.02697
A163: 153 | B163: FSL | C163: 111.9 | D163: 112.92 | E163: 110.08 | F163: 108.27 | G163: 105.43 | H163: 114.73 | I163: 117.57 | J163: 119.38 | K163: 115.75 | L163: 111.1 | M163: 21.89464
A164: 154 | B164: FORTIS | C164: 207.9 | D164: 209.50 | E164: 201.50 | F164: 195.10 | G164: 187.10 | H164: 215.90 | I164: 223.90 | J164: 230.30 | K164: 217.5 | L164: 203.1 | M164: 109.49396
A165: 155 | B165: FCONSUMER | C165: 6.75 | D165: 6.80 | E165: 6.65 | F165: 6.55 | G165: 6.40 | H165: 6.90 | I165: 7.05 | J165: 7.15 | K165: 6.95 | L165: 6.7 | M165: 31.44671
A166: 156 | B166: FRETAIL | C166: 47.7 | D166: 47.88 | E166: 47.22 | F166: 46.73 | G166: 46.07 | H166: 48.37 | I166: 49.03 | J166: 49.52 | K166: 48.55 | L166: 47.4 | M166: 15.64787
A167: 157 | B167: GAIL | C167: 134.4 | D167: 135.88 | E167: 132.02 | F167: 129.63 | G167: 125.77 | H167: 138.27 | I167: 142.13 | J167: 144.52 | K167: 139.75 | L167: 133.5 | M167: 189.26713
A168: 158 | B168: GEPIL | C168: 248.65 | D168: 249.50 | E168: 246.25 | F168: 243.85 | G168: 240.60 | H168: 251.90 | I168: 255.15 | J168: 257.55 | K168: 252.75 | L168: 247.1 | M168: 0.47507
A169: 159 | B169: GHCL | C169: 228.6 | D169: 228.02 | E169: 224.33 | F169: 220.07 | G169: 216.38 | H169: 232.28 | I169: 235.97 | J169: 240.23 | K169: 231.7 | L169: 223.75 | M169: 1.89729
A170: 160 | B170: GMMPFAUDLR | C170: 4090.2 | D170: 4080.07 | E170: 4010.13 | F170: 3930.07 | G170: 3860.13 | H170: 4160.13 | I170: 4230.07 | J170: 4310.13 | K170: 4150 | L170: 4000 | M170: 0.46447
A171: 161 | B171: GMRINFRA | C171: 23.05 | D171: 23.13 | E171: 22.67 | F171: 22.28 | G171: 21.82 | H171: 23.52 | I171: 23.98 | J171: 24.37 | K171: 23.6 | L171: 22.75 | M171: 129.67967
A172: 162 | B172: GALAXYSURF | C172: 2582.6 | D172: 2586.43 | E172: 2528.42 | F172: 2474.23 | G172: 2416.22 | H172: 2640.62 | I172: 2698.63 | J172: 2752.82 | K172: 2644.45 | L172: 2532.25 | M172: 0.1307
A173: 163 | B173: GRSE | C173: 176.5 | D173: 177.47 | E173: 174.78 | F173: 173.07 | G173: 170.38 | H173: 179.18 | I173: 181.87 | J173: 183.58 | K173: 180.15 | L173: 175.75 | M173: 0.54623
A174: 164 | B174: GARFIBRES | C174: 2620.95 | D174: 2636.65 | E174: 2574.30 | F174: 2527.65 | G174: 2465.30 | H174: 2683.30 | I174: 2745.65 | J174: 2792.30 | K174: 2699 | L174: 2590 | M174: 0.159
A175: 165 | B175: GICRE | C175: 203.45 | D175: 205.15 | E175: 199.30 | F175: 195.15 | G175: 189.30 | H175: 209.30 | I175: 215.15 | J175: 219.30 | K175: 211 | L175: 201 | M175: 10.90404
A176: 166 | B176: GILLETTE | C176: 5455.2 | D176: 5478.05 | E176: 5427.15 | F176: 5399.10 | G176: 5348.20 | H176: 5506.10 | I176: 5557.00 | J176: 5585.05 | K176: 5528.95 | L176: 5450 | M176: 0.02768
A177: 167 | B177: GLAXO | C177: 1436.1 | D177: 1431.72 | E177: 1418.43 | F177: 1400.77 | G177: 1387.48 | H177: 1449.38 | I177: 1462.67 | J177: 1480.33 | K177: 1445 | L177: 1414.05 | M177: 0.50901
A178: 168 | B178: GLENMARK | C178: 571.6 | D178: 576.18 | E178: 562.37 | F178: 553.13 | G178: 539.32 | H178: 585.42 | I178: 599.23 | J178: 608.47 | K178: 590 | L178: 566.95 | M178: 67.23905
A179: 169 | B179: GODFRYPHLP | C179: 860.8 | D179: 858.48 | E179: 852.97 | F179: 845.13 | G179: 839.62 | H179: 866.32 | I179: 871.83 | J179: 879.67 | K179: 864 | L179: 850.65 | M179: 0.24448
A180: 170 | B180: GODREJAGRO | C180: 484.95 | D180: 485.87 | E180: 480.73 | F180: 476.52 | G180: 471.38 | H180: 490.08 | I180: 495.22 | J180: 499.43 | K180: 491 | L180: 481.65 | M180: 0.39977
A181: 171 | B181: GODREJCP | C181: 725.65 | D181: 725.65 | E181: 717.55 | F181: 709.45 | G181: 701.35 | H181: 733.75 | I181: 741.85 | J181: 749.95 | K181: 733.75 | L181: 717.55 | M181: 11.18993
A182: 172 | B182: GODREJIND | C182: 515.9 | D182: 523.50 | E182: 502.50 | F182: 489.10 | G182: 468.10 | H182: 536.90 | I182: 557.90 | J182: 571.30 | K182: 544.5 | L182: 510.1 | M182: 0.87716
A183: 173 | B183: GODREJPROP | C183: 1327.55 | D183: 1330.88 | E183: 1309.77 | F183: 1291.98 | G183: 1270.87 | H183: 1348.67 | I183: 1369.78 | J183: 1387.57 | K183: 1352 | L183: 1313.1 | M183: 6.88204
A184: 174 | B184: GRANULES | C184: 334.55 | D184: 337.22 | E184: 325.43 | F184: 316.32 | G184: 304.53 | H184: 346.33 | I184: 358.12 | J184: 367.23 | K184: 349 | L184: 328.1 | M184: 55.04427
A185: 175 | B185: GRAPHITE | C185: 639.85 | D185: 641.90 | E185: 626.95 | F185: 614.05 | G185: 599.10 | H185: 654.80 | I185: 669.75 | J185: 682.65 | K185: 656.85 | L185: 629 | M185: 24.19882
A186: 176 | B186: GRASIM | C186: 1291.9 | D186: 1315.62 | E186: 1257.88 | F186: 1223.87 | G186: 1166.13 | H186: 1349.63 | I186: 1407.37 | J186: 1441.38 | K186: 1373.35 | L186: 1281.6 | M186: 36.88197
A187: 177 | B187: GESHIP | C187: 288.1 | D187: 290.38 | E187: 284.02 | F187: 279.93 | G187: 273.57 | H187: 294.47 | I187: 300.83 | J187: 304.92 | K187: 296.75 | L187: 286.3 | M187: 0.84271
A188: 178 | B188: GREAVESCOT | C188: 128.75 | D188: 128.37 | E188: 126.58 | F188: 124.42 | G188: 122.63 | H188: 130.53 | I188: 132.32 | J188: 134.48 | K188: 130.15 | L188: 126.2 | M188: 7.74269
A189: 179 | B189: GRINDWELL | C189: 899.9 | D189: 901.30 | E189: 887.60 | F189: 875.30 | G189: 861.60 | H189: 913.60 | I189: 927.30 | J189: 939.60 | K189: 915 | L189: 889 | M189: 0.58764
A190: 180 | B190: GUJALKALI | C190: 414.5 | D190: 418.52 | E190: 408.03 | F190: 401.57 | G190: 391.08 | H190: 424.98 | I190: 435.47 | J190: 441.93 | K190: 429 | L190: 412.05 | M190: 5.94297
A191: 181 | B191: GAEL | C191: 127.6 | D191: 130.40 | E191: 123.80 | F191: 120.00 | G191: 113.40 | H191: 134.20 | I191: 140.80 | J191: 144.60 | K191: 137 | L191: 126.6 | M191: 2.03257
A192: 182 | B192: FLUOROCHEM | C192: 707.9 | D192: 714.90 | E192: 694.80 | F192: 681.70 | G192: 661.60 | H192: 728.00 | I192: 748.10 | J192: 761.20 | K192: 735 | L192: 701.8 | M192: 1.05534
A193: 183 | B193: GUJGASLTD | C193: 543.05 | D193: 544.33 | E193: 532.72 | F193: 522.38 | G193: 510.77 | H193: 554.67 | I193: 566.28 | J193: 576.62 | K193: 555.95 | L193: 534 | M193: 17.2619
A194: 184 | B194: GMDCLTD | C194: 53.05 | D194: 53.43 | E194: 52.17 | F194: 51.28 | G194: 50.02 | H194: 54.32 | I194: 55.58 | J194: 56.47 | K194: 54.7 | L194: 52.55 | M194: 7.51073
A195: 185 | B195: GNFC | C195: 307.15 | D195: 308.18 | E195: 303.22 | F195: 299.28 | G195: 294.32 | H195: 312.12 | I195: 317.08 | J195: 321.02 | K195: 313.15 | L195: 304.25 | M195: 4.25771
A196: 186 | B196: GPPL | C196: 96.65 | D196: 96.83 | E196: 94.87 | F196: 93.08 | G196: 91.12 | H196: 98.62 | I196: 100.58 | J196: 102.37 | K196: 98.8 | L196: 95.05 | M196: 6.07923
A197: 187 | B197: GSFC | C197: 90.4 | D197: 90.12 | E197: 89.33 | F197: 88.27 | G197: 87.48 | H197: 91.18 | I197: 91.97 | J197: 93.03 | K197: 90.9 | L197: 89.05 | M197: 12.40364
A198: 188 | B198: GSPL | C198: 248.6 | D198: 251.15 | E198: 244.30 | F198: 240.00 | G198: 233.15 | H198: 255.45 | I198: 262.30 | J198: 266.60 | K198: 258 | L198: 246.85 | M198: 7.291
A199: 189 | B199: GULFOILLUB | C199: 707.45 | D199: 708.15 | E199: 699.30 | F199: 691.15 | G199: 682.30 | H199: 716.30 | I199: 725.15 | J199: 733.30 | K199: 717 | L199: 700 | M199: 0.05277
A200: 190 | B200: HEG | C200: 2044.3 | D200: 2058.42 | E200: 1991.88 | F200: 1939.47 | G200: 1872.93 | H200: 2110.83 | I200: 2177.37 | J200: 2229.78 | K200: 2124.95 | L200: 2006 | M200: 5.68224
A201: 191 | B201: HCLTECH | C201: 961.3 | D201: 974.77 | E201: 943.53 | F201: 925.77 | G201: 894.53 | H201: 992.53 | I201: 1023.77 | J201: 1041.53 | K201: 1006 | L201: 957 | M201: 97.42418
A202: 192 | B202: HDFCAMC | C202: 2790.9 | D202: 2806.97 | E202: 2758.93 | F202: 2726.97 | G202: 2678.93 | H202: 2838.93 | I202: 2886.97 | J202: 2918.93 | K202: 2855 | L202: 2775 | M202: 2.36066
A203: 193 | B203: HDFCBANK | C203: 1391.4 | D203: 1400.58 | E203: 1374.77 | F203: 1358.13 | G203: 1332.32 | H203: 1417.22 | I203: 1443.03 | J203: 1459.67 | K203: 1426.4 | L203: 1383.95 | M203: 115.93135
A204: 194 | B204: HDFCLIFE | C204: 685.2 | D204: 681.43 | E204: 673.87 | F204: 662.53 | G204: 654.97 | H204: 692.77 | I204: 700.33 | J204: 711.67 | K204: 689 | L204: 670.1 | M204: 53.73233
A205: 195 | B205: HFCL | C205: 24.1 | D205: 24.22 | E205: 23.78 | F205: 23.47 | G205: 23.03 | H205: 24.53 | I205: 24.97 | J205: 25.28 | K205: 24.65 | L205: 23.9 | M205: 37.79326
A206: 196 | B206: HATHWAY | C206: 21.8 | D206: 22.10 | E206: 21.40 | F206: 21.00 | G206: 20.30 | H206: 22.50 | I206: 23.20 | J206: 23.60 | K206: 22.8 | L206: 21.7 | M206: 20.24858
... 321 more rows

Sheet Bulk Deals
E6: Back To Main Page
A7: Subject : | B7: BULK DEAL | D7: =Main!B10 -> 2021-04-22
A9: Date | B9: Scrip code | C9: Scrip Name | D9: Client Name | E9: Buy / Sell | F9: Quantity Traded | G9: Trade Price / Wt.Avg.trade price | H9: Exchange
A10: 2021-04-20 | B10: 530881 | C10: ABVL | D10: EYANTRA INDUSTRIES PRIVATE LIMITED | E10: BUY | F10: 31,000 | G10: 8.62 | H10: BSE
A11: 2021-04-20 | B11: 541299 | C11: DLCL | D11: AJAY KUMAR SEHGAL . | E11: SELL | F11: 24,000 | G11: 25.22 | H11: BSE
A12: 2021-04-20 | B12: 507960 | C12: GUJHOTE | D12: VIREN SHANTILAL SHAH | E12: BUY | F12: 20,000 | G12: 101.25 | H12: BSE
A13: 2021-04-20 | B13: 539767 | C13: MNIL | D13: REKHA DAGAR | E13: BUY | F13: 188,818 | G13: 6.31 | H13: BSE
A14: 2021-04-20 | B14: 539767 | C14: MNIL | D14: DEEPAK KUMAR | E14: SELL | F14: 74,069 | G14: 6.31 | H14: BSE
A15: 2021-04-20 | B15: 539767 | C15: MNIL | D15: ALKA SINGH | E15: SELL | F15: 102,074 | G15: 6.31 | H15: BSE
A16: 2021-04-20 | B16: 540198 | C16: OSIAJEE | D16: ACVC FOREX PRIVATE LIMITED | E16: BUY | F16: 38,026 | G16: 24.77 | H16: BSE
A17: 2021-04-20 | B17: 539291 | C17: OZONEWORLD | D17: AARNAH CAPITAL ADVISORS PVT LTD | E17: SELL | F17: 22,500 | G17: 67.45 | H17: BSE
A18: 2021-04-20 | B18: 539291 | C18: OZONEWORLD | D18: JAYANTA RAY CHOUDHURY | E18: BUY | F18: 22,501 | G18: 67.34 | H18: BSE
A19: 2021-04-20 | B19: 539291 | C19: OZONEWORLD | D19: RAJKUMAR SINGH | E19: SELL | F19: 21,701 | G19: 59.13 | H19: BSE
A20: 2021-04-20 | B20: 539291 | C20: OZONEWORLD | D20: ARUN DASHRATHBHAI PRAJAPATI | E20: BUY | F20: 30,607 | G20: 66.86 | H20: BSE
A21: 2021-04-20 | B21: 539291 | C21: OZONEWORLD | D21: ARUN DASHRATHBHAI PRAJAPATI | E21: SELL | F21: 18,901 | G21: 67.25 | H21: BSE
A22: 2021-04-20 | B22: 541634 | C22: RAWEDGE | D22: NNM SECURITIES PVT LTD | E22: BUY | F22: 64,000 | G22: 38 | H22: BSE
A23: 2021-04-20 | B23: 541634 | C23: RAWEDGE | D23: NNM SECURITIES PVT LTD | E23: SELL | F23: 3,200 | G23: 38.4 | H23: BSE
A24: 2021-04-20 | B24: 541634 | C24: RAWEDGE | D24: SHASHANK PRAVINCHANDRA DOSHI | E24: SELL | F24: 64,000 | G24: 38 | H24: BSE
A25: 2021-04-20 | B25: 539026 | C25: SSPNFIN | D25: SHIVA KUMAR | E25: BUY | F25: 8,000 | G25: 15 | H25: BSE
A26: 2021-04-20 | B26: 539026 | C26: SSPNFIN | D26: CHANDA SONI | E26: BUY | F26: 80,000 | G26: 13.93 | H26: BSE
A27: 2021-04-20 | B27: 539026 | C27: SSPNFIN | D27: BHARAT BHUSHAN | E27: SELL | F27: 40,000 | G27: 14.3 | H27: BSE
A28: 2021-04-20 | B28: 539026 | C28: SSPNFIN | D28: SHIVA KUMAR | E28: SELL | F28: 44,000 | G28: 13.75 | H28: BSE
A29: 2021-04-20 | B29: 539026 | C29: SSPNFIN | D29: ESPS FINSERVE PRIVATE LIMITED | E29: BUY | F29: 84,000 | G29: 14.01 | H29: BSE
A30: 2021-04-20 | B30: 539026 | C30: SSPNFIN | D30: SUBASH RAMASHISH MISHRA | E30: SELL | F30: 84,000 | G30: 13.93 | H30: BSE
A31: 2021-04-20 | B31: 539406 | C31: SWAGTAM | D31: RAMILABEN RASIKLAL DOSHI | E31: SELL | F31: 48,300 | G31: 13.38 | H31: BSE
A32: 2021-04-20 | B32: 539406 | C32: SWAGTAM | D32: PUSHP LATA SHARMA | E32: BUY | F32: 48,730 | G32: 13.38 | H32: BSE
A33: 2021-04-20 | B33: 539406 | C33: SWAGTAM | D33: OMOLARA TEXTILES PRIVATE LIMITED | E33: SELL | F33: 20,000 | G33: 13.38 | H33: BSE
A34: 2021-04-20 | B34: 539406 | C34: SWAGTAM | D34: GOPAL AGARWAL | E34: BUY | F34: 20,500 | G34: 13.38 | H34: BSE
A35: 2021-04-20 | B35: 513305 | C35: TERRASCOPE | D35: DHARMENDRA LAKHAN SINGH SINH | E35: SELL | F35: 103,556 | G35: 1.96 | H35: BSE
A36: 2021-04-20 | B36: 513305 | C36: TERRASCOPE | D36: SHANKARLAL KUMHAR | E36: SELL | F36: 100,000 | G36: 1.96 | H36: BSE
A37: 2021-04-20 | B37: 513305 | C37: TERRASCOPE | D37: SUNIL . | E37: SELL | F37: 215,000 | G37: 1.96 | H37: BSE
A38: 2021-04-20 | B38: 531771 | C38: TOWASOK | D38: SHARAD KANAYALAL SHAH | E38: BUY | F38: 42,575 | G38: 4.95 | H38: BSE
A39: 2021-04-20 | B39: 531771 | C39: TOWASOK | D39: ANJU DEVI AGRAWAL | E39: SELL | F39: 35,675 | G39: 4.95 | H39: BSE
A40: 2021-04-20 | B40: 539222 | C40: VMV | D40: RAMESH RAMSHANKAR VYAS | E40: BUY | F40: 35,000 | G40: 9.67 | H40: BSE
A41: 2021-04-20 | B41: 539222 | C41: VMV | D41: RANA PARTHRAJSINH SIDDHRAJSINH | E41: SELL | F41: 30,000 | G41: 9.6 | H41: BSE
A42: 2021-04-20 | B42: ALPA | C42: Alpa Laboratories Limited | D42: GAURAV DOSHI | E42: BUY | F42: 141,987 | G42: 56.73 | H42: NSE
A43: 2021-04-20 | B43: ALPA | C43: Alpa Laboratories Limited | D43: URMILA DOSHI | E43: BUY | F43: 180,420 | G43: 55.85 | H43: NSE
A44: 2021-04-20 | B44: GSS | C44: GSS Infotech Limited | D44: VIKRAMKUMAR KARANRAJ SAKARIA HUF DAKSH CORPORATION | E44: BUY | F44: 182,997 | G44: 64.79 | H44: NSE
A45: 2021-04-20 | B45: MAHESHWARI | C45: Maheshwari Logistics Limi | D45: NIRMAN COMMODITIES PRIVATE LIMITED | E45: BUY | F45: 371,595 | G45: 102.65 | H45: NSE
A46: 2021-04-20 | B46: SONAHISONA | C46: Sona Hi Sona Jewell G Ltd | D46: NNM SECURITIES PVT LTD | E46: BUY | F46: 150,000 | G46: 12 | H46: NSE
A47: 2021-04-20 | B47: VIKASECO | C47: Vikas EcoTech Limited | D47: TOPGAIN FINANCE PRIVATE LIMITED | E47: BUY | F47: 3,162,679 | G47: 1.65 | H47: NSE
A48: 2021-04-20 | B48: WOCKPHARMA | C48: Wockhardt Ltd. | D48: XTX MARKETS LLP | E48: BUY | F48: 700,523 | G48: 507.25 | H48: NSE
A49: 2021-04-20 | B49: ALPA | C49: Alpa Laboratories Limited | D49: URMILA DOSHI | E49: SELL | F49: 160,420 | G49: 56.9 | H49: NSE
A50: 2021-04-20 | B50: ALPA | C50: Alpa Laboratories Limited | D50: GAURAV DOSHI | E50: SELL | F50: 129,221 | G50: 56.72 | H50: NSE
A51: 2021-04-20 | B51: GSS | C51: GSS Infotech Limited | D51: VIKRAMKUMAR KARANRAJ SAKARIA HUF DAKSH CORPORATION | E51: SELL | F51: 175,531 | G51: 65.57 | H51: NSE
A52: 2021-04-20 | B52: KDDL-RE | C52: KDDL RE | D52: JUPITER INDIA FUND | E52: SELL | F52: 18,758 | G52: 350.46 | H52: NSE
A53: 2021-04-20 | B53: KDDL-RE | C53: KDDL RE | D53: ELEVATION CAPITAL V FII HOLDINGS LIMITED | E53: SELL | F53: 8,791 | G53: 360.21 | H53: NSE
A54: 2021-04-20 | B54: MAHESHWARI | C54: Maheshwari Logistics Limi | D54: NIRMAN COMMODITIES PRIVATE LIMITED | E54: SELL | F54: 371,595 | G54: 103.77 | H54: NSE
A55: 2021-04-20 | B55: MITTAL | C55: Mittal Life Style Limited | D55: NAGARATHNAMMA . | E55: SELL | F55: 71,362 | G55: 8.72 | H55: NSE
A56: 2021-04-20 | B56: SOLARA | C56: Solara Active Pha Sci Ltd | D56: JITESH DEVENDRA | E56: SELL | F56: 230,000 | G56: 1462.3 | H56: NSE
A57: 2021-04-20 | B57: SONAHISONA | C57: Sona Hi Sona Jewell G Ltd | D57: SHASHANK PRAVINCHANDRA DOSHI | E57: SELL | F57: 150,000 | G57: 12 | H57: NSE
A58: 2021-04-20 | B58: VIKASECO | C58: Vikas EcoTech Limited | D58: CANARA BANK SECURITIES LTD | E58: SELL | F58: 4,812,015 | G58: 1.67 | H58: NSE
A59: 2021-04-20 | B59: VIKASECO | C59: Vikas EcoTech Limited | D59: TOPGAIN FINANCE PRIVATE LIMITED | E59: SELL | F59: 1,799,908 | G59: 1.7 | H59: NSE
A60: 2021-04-20 | B60: VIVIMEDLAB | C60: Vivimed Labs Limited | D60: TUSHAR RAMESHCHANDRA MEHTA | E60: SELL | F60: 743,486 | G60: 27.6 | H60: NSE
A61: 2021-04-20 | B61: WOCKPHARMA | C61: Wockhardt Ltd. | D61: XTX MARKETS LLP | E61: SELL | F61: 698,192 | G61: 507.89 | H61: NSE

Sheet Call Tracker (Equity & F&O)
M5: Back To Main Page
A6: Retail Research Technical Calls & Fundamental Performance Report for the month of April-2021
M7: =Main!B10 -> 2021-04-22
B8: Positional Call
A9: Sr.no | B9: Date | D9: Company | E9: Rec | F9: Rec Price | G9: Stop Loss*** | H9: Call Closed At | I9: Target | J9: Remark | K9: Profit / Loss per Share | L9: All charges | M9: Net Gain / Loss % | N9: Status | O9: Closed Date
A10: 1 | B10: 2021-02-26 | D10: IOC | E10: Buy<> | F10: 95.5 | G10: 88.5 | H10: 94.25 | I10: 107-112 | J10: Loss of Rs.1.25/- | K10: =H10-F10 -> -1.25 | L10: =(F10*-0.8)/100 -> -0.76 | M10: =(K10+L10)/F10 -> -2.11% | N10: Unsuccessful | O10: 2021-04-12 | R10: N
A11: 2 | B11: 2021-03-18 | D11: IRCTC | E11: Buy | F11: 1785 | G11: 1670 | H11: =(1872.5+1775)/2 -> 1,823.75 | I11: 2000 | J11: Profit of Rs.38.75/- | K11: =H11-F11 -> 38.75 | L11: =(F11*-0.8)/100 -> -14.28 | M11: 1.37% | N11: Successful | O11: 2021-04-01 | R11: H
A12: 3 | B12: 2021-03-19 | D12: HDFCAMC | E12: Buy | F12: 2850 | G12: 2650 | H12: 3,025.00 | I12: 3050-3250 | J12: Profit of Rs.175/- | K12: 175 | L12: -22.80 | M12: 5.34% | N12: Successful | O12: 2021-04-08 | R12: N
A13: 4 | B13: 2021-03-19 | D13: SRF | E13: Buy | F13: 5275 | G13: 4950 | H13: 5,725.00 | I13: 5700-5800 | J13: Profit of Rs.450/- | K13: =H13-F13 -> 450 | L13: =(F13*-0.8)/100 -> -42.20 | M13: =(K13+L13)/F13 -> 7.73% | N13: Successful | O13: 2021-04-01 | R13: N
A14: 5 | B14: 2021-03-22 | D14: RELIANCE | E14: Buy | F14: 2050 | G14: 1940 | H14: 1,925.00 | I14: 2300-2400 | J14: Loss of Rs.125/- | K14: -125 | L14: -16.40 | M14: -6.90% | N14: Unsuccessful | O14: 2021-04-12 | R14: H
A15: 6 | B15: 2021-03-22 | D15: IGL | E15: Buy | F15: 507 | G15: 478 | H15: 536.5 | I15: 545-564 | J15: Profit of Rs.29.50/- | K15: =H15-F15 -> 29.5 | L15: =(F15*-0.8)/100 -> -4.06 | M15: =(K15+L15)/F15 -> 5.02% | N15: Successful | O15: 2021-04-09 | R15: H
A16: 7 | B16: 2021-03-26 | D16: PIDILITIND | E16: Buy | F16: 1785 | G16: 1675 | H16: 1895 | I16: 2000-2050 | J16: Profit of Rs.110/- | K16: =H16-F16 -> 110 | L16: =(F16*-0.8)/100 -> -14.28 | M16: =(K16+L16)/F16 -> 5.36% | N16: Successful | O16: 2021-04-07 | R16: N
A17: 8 | B17: 2021-03-30 | D17: SUDARSCHEM | E17: Buy | F17: 516 | G17: 477 | H17: 547.5 | I17: 560-580 | J17: Profit of Rs.31.5/- | K17: 31.5 | L17: -4.13 | M17: 5.30% | N17: Successful | O17: 2021-04-07 | R17: H
A18: 5 | B18: 2021-03-22 | D18: ESCORT | E18: Buy | F18: 1270 | G18: 1195 | H18: 1,195.00 | I18: 1450 | J18: Loss of Rs.75/- | K18: -75 | L18: -10.16 | M18: -6.71% | N18: Unsuccessful | O18: 2021-04-15 | R18: N
A19: 10 | B19: 2021-04-05 | D19: HDFCBANK | E19: Buy | F19: 1465-1475 | G19: 1370 | I19: 1600-1700 | J19: Open | R19: H
A20: 11 | B20: 2021-04-05 | D20: EXIDEIND | E20: Buy | F20: 181-183 | G20: 174 | I20: 195-200 | J20: Open | R20: H
A21: 12 | B21: 2021-04-07 | D21: ICICIBANK | E21: Buy | F21: 567-571 | G21: 534 | I21: 620-640 | J21: Open | R21: H
A22: 13 | B22: 2021-04-09 | D22: GLAXO | E22: Buy | F22: 1430-1450 | G22: 1370 | I22: 1550-1600 | J22: Open | R22: H
A23: 14 | B23: 2021-04-15 | D23: GMMPFAUDLR | E23: Buy | F23: 4100-4150 | G23: 3850 | I23: 4500-4600 | J23: Open | R23: N
A24: 15 | B24: 2021-04-19 | D24: PIDILITIND | E24: Buy | F24: 1760-1770 | G24: 1680 | I24: 1900-1950 | J24: Open | R24: H
A30: CLBS = Closing Basis ***
A31: Dividend adjusted <> | F31: Reinitiated $
A32: Part book {} | F32: Revised stoploss #
B34: Momentum Call
A35: Sr.no | B35: Date | D35: Company | E35: Rec | F35: Rec Price | G35: Stop Loss | H35: Call Closed At | I35: Target | J35: Remark | K35: Profit / Loss per Share/Lot | L35: All charges | M35: Net Gain / Loss % | N35: Status | O35: Closed Date
A36: 1 | B36: 2021-03-22 | D36: HDFCLIFE | E36: Buy | F36: 688.5 | G36: 668 | H36: 703 | I36: 715-725 | J36: Profit of Rs.14.5/- | K36: =H36-F36 -> 14.5 | L36: =(F36*-0.7)/100 -> -4.82 | M36: =(K36+L36)/F36 -> 1.41% | N36: Successful | O36: 2021-04-07 | R36: H
A37: 2 | B37: 2021-03-30 | D37: DHANUKA | E37: Buy | F37: 681 | G37: 660 | H37: 702.5 | I37: 710-720 | J37: Profit of Rs.21.5/- | K37: =H37-F37 -> 21.5 | L37: -4.77 | M37: =(K37+L37)/F37 -> 2.46% | N37: Successful | O37: 2021-04-01 | R37: H
A38: 3 | B38: 2021-03-31 | D38: DIVISLAB | E38: Buy | F38: 3685 | G38: 3490 | H38: 3775 | I38: 3750-3800 | J38: Profit of Rs.90/- | K38: =H38-F38 -> 90 | L38: -25.80 | M38: =(K38+L38)/F38 -> 1.74% | N38: Successful | O38: 2021-04-05 | R38: H
A39: 4 | B39: 2021-03-31 | D39: CSBBANK | E39: Buy | F39: 234.5 | G39: 228 | H39: 241 | I39: 245-250 | J39: Profit of Rs.6.5/- | K39: 6.5 | L39: -1.64 | M39: 2.07% | N39: Successful | O39: 2021-04-06 | R39: H
A40: 5 | B40: 2021-04-05 | D40: KOTAKBANK | E40: Buy | F40: 1782.5 | G40: 1730 | H40: 1710 | I40: 1880 | J40: Loss of Rs.72.5/- | K40: -72.5 | L40: -12.48 | M40: -4.77% | N40: Unsuccessful | O40: 2021-04-19 | R40: H
A41: 6 | B41: 2021-04-05 | D41: CUMMINSIND | E41: Buy | F41: 885 | G41: 855 | H41: 855 | I41: 930-940 | J41: Loss of Rs.30/- | K41: =H41-F41 -> -30 | L41: -6.20 | M41: =(K41+L41)/F41 -> -4.09% | N41: Unsuccessful | O41: 2021-04-12 | R41: N
A42: 7 | B42: 2021-04-05 | D42: GUJGASLTD | E42: Buy | F42: 548 | G42: 530 | H42: 568 | I42: 585-590 | J42: Profit of Rs.20/- | K42: =H42-F42 -> 20 | L42: -3.84 | M42: =(K42+L42)/F42 -> 2.95% | N42: Successful | O42: 2021-04-09 | R42: N
A43: 8 | B43: 2021-04-06 | D43: TVSMOTOR | E43: Sell | F43: 590 | G43: 608 | H43: 580.5 | I43: 560 | J43: Profit of Rs.9.5/- | K43: =F43-H43 -> 9.5 | L43: =(F43*-0.07)/100 -> -0.41 | M43: =(K43+L43)/F43 -> 1.54% | N43: Successful | O43: 2021-04-06 | R43: N
A44: 9 | B44: 2021-04-07 | D44: WIPRO | E44: Buy | F44: 425 | G44: 412 | H44: 435.5 | I44: 440-450 | J44: Profit of Rs.10.5/- | K44: =H44-F44 -> 10.5 | L44: =(F44*-0.07)/100 -> -0.30 | M44: 2.40% | N44: Successful | O44: 2021-04-07 | R44: H
A45: 10 | B45: 2021-04-07 | D45: GLENMARK | E45: Buy | F45: 501 | G45: 486 | H45: 515 | I45: 524-530 | J45: Profit of Rs.14/- | K45: 14 | L45: =(F45*-0.7)/100 -> -3.51 | M45: 2.09% | N45: Successful | O45: 2021-04-08 | R45: H
A46: 11 | B46: 2021-04-08 | D46: LTI | E46: Buy | F46: 4320 | G46: 4190 | H46: 4435 | I46: 4500 -4550 | J46: Profit of Rs.115/- | K46: =H46-F46 -> 115 | L46: =(F46*-0.7)/100 -> -30.24 | M46: =(K46+L46)/F46 -> 1.96% | N46: Successful | O46: 2021-04-09 | R46: N
A47: 12 | B47: 2021-04-09 | D47: GLAXO | E47: Buy | F47: 1425 | G47: 1380 | H47: 1475 | I47: 1500-1530 | J47: Profit of Rs.50/- | K47: =H47-F47 -> 50 | L47: =(F47*-0.07)/100 -> -1.00 | M47: =(K47+L47)/F47 -> 3.44% | N47: Successful | O47: 2021-04-09 | R47: H
A48: 13 | B48: 2021-04-09 | D48: NATIONALUM | E48: Sell | F48: 59.25 | G48: 61 | H48: 56.75 | I48: 56-55 | J48: Profit of Rs.2.5/- | K48: =F48-H48 -> 2.5 | L48: =(F48*-0.7)/100 -> -0.41 | M48: 3.52% | N48: Successful | O48: 2021-04-12 | R48: H
A49: 14 | B49: 2021-04-09 | D49: RAYMOND | E49: Buy | F49: 365 | G49: 353 | H49: 351.5 | I49: 385 | J49: Loss of Rs.13.5/- | K49: =H49-F49 -> -13.5 | L49: -2.56 | M49: =(K49+L49)/F49 -> -4.40% | N49: Unsuccessful | O49: 2021-04-12 | R49: N
A50: 15 | B50: 2021-04-09 | D50: PEL | E50: Buy | F50: 1810 | G50: 1760 | H50: 1760 | I50: 1900-1920 | J50: Loss of Rs.50/- | K50: =H50-F50 -> -50 | L50: -12.67 | M50: =(K50+L50)/F50 -> -3.46% | N50: Unsuccessful | O50: 2021-04-12 | R50: N
A51: 16 | B51: 2021-04-09 | D51: POWERGRID | E51: Buy | F51: 209.5 | G51: 204 | H51: 204 | I51: 220 | J51: Loss of Rs.5.5/- | K51: -5.5 | L51: -1.47 | M51: -3.33% | N51: Unsuccessful | O51: 2021-04-12 | R51: H
A52: 17 | B52: 2021-04-13 | D52: ASIANPAINT | E52: Buy | F52: 2595 | G52: 2520 | H52: 2658.5 | I52: 2700-2750 | J52: Profit of Rs.63.5/- | K52: 63.5 | L52: -18.17 | M52: 1.75% | N52: Successful | O52: 2021-04-16 | R52: H
A53: 18 | B53: 2021-04-15 | D53: HDFCLIFE | E53: Buy | F53: 698.5 | G53: 678 | H53: 675 | I53: 730-735 | J53: Loss of Rs.23.5/- | K53: -23.5 | L53: -4.89 | M53: -4.06% | N53: Unsuccessful | O53: 2021-04-19 | R53: H
A54: 19 | B54: 2021-04-16 | D54: GUJGASLTD | E54: Buy | F54: 535.5 | G54: 520 | H54: 548 | I54: 560-565 | J54: Profit of Rs.12.5/- | K54: =H54-F54 -> 12.5 | L54: =(F54*-0.07)/100 -> -0.37 | M54: =(K54+L54)/F54 -> 2.26% | N54: Successful | O54: 2021-04-16 | R54: N
A55: 20 | B55: 2021-04-16 | D55: LTI | E55: Buy | F55: 4100 | G55: 3945 | H55: 3945 | I55: 4300-4400 | J55: Loss of Rs.155/- | K55: -155 | L55: =(F55*-0.7)/100 -> -28.70 | M55: -4.48% | N55: Unsuccessful | O55: 2021-04-20 | R55: H
A56: 21 | B56: 2021-04-19 | D56: GLENMARK | E56: Buy | F56: 558 | G56: 538 | H56: 574 | I56: 590-600 | J56: Profit of Rs.16/- | K56: =H56-F56 -> 16 | L56: =(F56*-0.07)/100 -> -0.39 | M56: =(K56+L56)/F56 -> 2.80% | N56: Successful | O56: 2021-04-19 | R56: N
A57: 22 | B57: 2021-04-19 | D57: ESCORTS | E57: Buy | F57: 1209 | G57: 1174 | H57: 1238 | I57: 1270-1280 | J57: Profit of Rs.29/- | K57: 29 | L57: =(F57*-0.7)/100 -> -8.46 | M57: 1.70% | N57: Successful | O57: 2021-04-20 | R57: H
A58: 23 | B58: 2021-04-19 | D58: ASIANPAINT | E58: Buy | F58: 2585-2595 | G58: 2520 | I58: 2700-2750 | J58: Open | R58: H
A59: 24 | B59: 2021-04-19 | D59: GUJGASLTD | E59: Buy | F59: 534 | G59: 517 | H59: 550.5 | I59: 560-565 | J59: Profit of Rs.16.5/- | K59: =H59-F59 -> 16.5 | L59: =(F59*-0.7)/100 -> -3.74 | M59: =(K59+L59)/F59 -> 2.39% | N59: Successful | O59: 2021-04-20 | R59: N
A60: 25 | B60: 2021-04-20 | D60: IGL | E60: Buy | F60: 508-512 | G60: 494 | I60: 535-545 | J60: Open | R60: H
A61: 26 | B61: 2021-04-20 | D61: ESCORTS | E61: Buy | F61: 1210 | G61: 1174 | H61: 1215 | I61: 1270-1280 | J61: Profit of Rs.5/- | K61: =H61-F61 -> 5 | L61: =(F61*-0.07)/100 -> -0.85 | M61: =(K61+L61)/F61 -> 0.34% | N61: Neutral | O61: 2021-04-20 | R61: H
A66: CLBS = Closing Basis *** | H66: *
A67: Dividend adjusted <> | F67: Reinitiated $
F68: Revised stoploss #
A70: Master Trade High Risk
A71: Sr.no | B71: Date | D71: Company | E71: Rec | F71: Rec Price | G71: Stop Loss | H71: Call Closed At | I71: Target | J71: Remark | K71: Profit / Loss per share | L71: All charges | M71: Gain / Loss per Lot | N71: Lot | O71: Status | P71: Closed Date
A72: 1 | B72: 2021-04-01 | D72: PIIND APRIL FUT | E72: Buy | F72: 2250 | G72: 2198 | H72: 2295 | I72: 2350-2370 | J72: Profit of Rs.45/- | K72: =H72-F72 -> 45 | L72: =(H72*N72)*0.035% -> 200.81 | M72: =(K72*N72)-L72 -> 11049.2 | N72: 250 | O72: Successful | P72: 2021-04-06 | R72: H
A73: 2 | B73: 2021-04-01 | D73: BHARTIARTL APRIL FUT | E73: Buy | F73: 524.5 | G73: 517 | H73: 527 | I73: 535-540 | J73: Profit of Rs.2.5/- | K73: =H73-F73 -> 2.5 | L73: =(H73*N73)*0.035% -> 341.42 | M73: =(K73*N73)-L73 -> 4286.1 | N73: 1851 | O73: Successful | P73: 2021-04-05 | R73: H
A74: 3 | B74: 2021-04-07 | D74: AARTIIND APRIL FUT | E74: Buy | F74: 1352 | G74: 1320 | H74: 1383.5 | I74: 1400-1410 | J74: Profit of Rs.31.5/- | K74: =H74-F74 -> 31.5 | L74: =(H74*N74)*0.035% -> 193.69 | M74: =(K74*N74)-L74 -> 12406.3 | N74: 400 | O74: Successful | P74: 2021-04-07 | R74: N
A75: 4 | B75: 2021-04-07 | D75: TCS APRIL FUT | E75: Buy | F75: 3292.5 | G75: 3245 | H75: 3321 | I75: 3380-3390 | J75: Profit of Rs.28.5/- | K75: =H75-F75 -> 28.5 | L75: =(H75*N75)*0.035% -> 348.71 | M75: =(K75*N75)-L75 -> 8201.3 | N75: 300 | O75: Successful | P75: 2021-04-08 | R75: N
A76: 5 | B76: 2021-04-07 | D76: HEROMOTOCO APRIL FUT | E76: Buy | F76: 2943 | G76: 2870 | H76: 2870 | I76: 3100 | J76: Loss of Rs.46/- | K76: -73.00 | L76: 200.81 | M76: =(-46*300)-300.81 -> -14100.81 | N76: 300 | O76: Unsuccessful | P76: 2021-03-12 | R76: H
D77: HEROMOTOCO APR 3050 CE | E77: Sell | F77: 48.5 | H77: 21.5 | K77: =F77-H77 -> 27.00 | L77: 100.00 | R77: H
A78: 6 | B78: 2021-04-07 | D78: HCLTECH APR FUT | E78: Buy | F78: 1048 | G78: 1018 | H78: 1018 | I78: 1100 | J78: Loss of Rs.22/- | K78: =H78-F78 -> -30.00 | L78: 200.81 | M78: =(-22*700)-300.81 -> -15700.81 | N78: 700 | O78: Unsuccessful | P78: 2021-03-12 | R78: H
D79: HCLTECH APR 1090 CE | E79: Sell | F79: 21 | H79: 13 | K79: 8.00 | L79: 100.00 | R79: H
A80: 7 | B80: 2021-04-08 | D80: TECHM APR FUT | E80: Buy | F80: 1049 | G80: 1018 | H80: 1034 | I80: 1100 | J80: Loss of Rs.10/- | K80: -15.00 | L80: =(H80*N80)*0.035% -> 434.28 | M80: -12000 | N80: 1200 | O80: Unsuccessful | P80: 2021-04-08 | R80: H
D81: TECHM APR 1100 CE | E81: Sell | F81: 21 | H81: 16 | K81: 5.00 | L81: 100.00 | R81: H
A82: 8 | B82: 2021-04-16 | D82: GRANULES APR FUT | E82: Buy | F82: 327.5 | G82: 318 | H82: 333.5 | I82: 345 | J82: Profit of Rs.6/- | K82: =H82-F82 -> 6 | L82: =(H82*N82)*0.035% -> 180.92 | M82: =(K82*N82)-L82 -> 9119.1 | N82: 1550 | O82: Successful | P82: 2021-04-19 | R82: H
A83: 9 | B83: 2021-04-19 | D83: ALKEM APR FUT | E83: Buy | F83: 2760-2770 | G83: 2695 | I83: 2880-2900 | J83: Open | R83: H
A84: 10 | B84: 2021-04-19 | D84: AUROPHARMA APR FUT | E84: Buy | F84: 949 | G84: 928 | H84: 962 | I84: 990 | J84: Profit of Rs.13/- | K84: =H84-F84 -> 13 | L84: =(H84*N84)*0.035% -> 218.86 | M84: =(K84*N84)-L84 -> 8231.1 | N84: 650 | O84: Successful | P84: 2021-04-19 | R84: N
A85: 11 | B85: 2021-04-19 | D85: HCLTECH APR FUT | E85: Buy | F85: 992 | G85: 972 | H85: 972 | I85: 1030 | J85: Loss of Rs.20/- | K85: -20 | L85: 238.14 | M85: -14238.1 | N85: 700 | O85: Unsuccessful | P85: 2021-04-20 | R85: H
A94: Master Trade Medium Risk
A95: Sr.no | B95: Date | D95: Company | E95: Rec | F95: Rec Price | G95: Stop Loss | H95: Call Closed At | I95: Target | J95: Remark | K95: Profit/ Loss per lot | L95: All charges | M95: Gain / Loss per Lot | N95: Lot | O95: Status | P95: Closed Date
A96: 1 | B96: 2021-04-01 | D96: NIFTY 14600 PE 08-APR | E96: Buy | F96: 94 | G96: 58 | H96: 58 | I96: 150-170 | J96: Loss of Rs.36/- | K96: =H96-F96 -> -36 | L96: 100 | M96: =++++++++-M139 -> 0.0 | N96: 75 | O96: Unsuccessful | P96: 2021-04-01 | R96: H
A97: 2 | B97: 2021-04-01 | D97: BANKNIFTY 32900 PE 08-APR | E97: Buy | F97: 295 | G97: 95 | H97: 395 | I97: 600 | J97: Profit of Rs.100/- | K97: =H97-F97 -> 100 | L97: 100 | M97: =(K97*N97)-L97 -> 2400.0 | N97: 25 | O97: Successful | P97: 2021-04-05 | R97: H
A98: 3 | B98: 2021-04-05 | D98: NIFTY 14800 CE 08-APR | E98: Buy | F98: 62.5 | G98: 30 | H98: 77.5 | I98: 140 | J98: Profit of Rs.15/- | K98: =H98-F98 -> 15 | L98: 100 | M98: =(K98*N98)-L98 -> 1025.0 | N98: 75 | O98: Successful | P98: 2021-04-06 | R98: N
A99: 4 | B99: 2021-04-06 | D99: NIFTY 14600 PE 08-APR | E99: Buy | F99: 72 | G99: 30 | H99: 89 | I99: 140 | J99: Profit of Rs.17/- | K99: =H99-F99 -> 17 | L99: 100 | M99: =(K99*N99)-L99 -> 1175.0 | N99: 75 | O99: Successful | P99: 2021-04-06 | R99: N
A100: 5 | B100: 2021-04-06 | D100: BPCL 420 PE APR | E100: Buy | F100: 8.15 | G100: 5 | H100: 9.2 | I100: 14 | J100: Profit of Rs.1.05/- | K100: 1.05 | L100: 100 | M100: 1790.0 | N100: 1800 | O100: Successful | P100: 2021-04-06 | R100: N
A101: 6 | B101: 2021-04-06 | D101: NIFTY 14600 PE 08-APR | E101: Buy | F101: 65 | G101: 28 | H101: 82 | I101: 140 | J101: Profit of Rs.17/- | K101: 17 | L101: 100 | M101: 1175.0 | N101: 75 | O101: Successful | P101: 2021-04-06 | R101: N
A102: 7 | B102: 2021-04-06 | D102: NIFTY 14700 CE 08-APR | E102: Buy | F102: 85 | G102: 40 | H102: 100 | I102: 140-150 | J102: Profit of Rs.15/- | K102: 15 | L102: 100 | M102: 1025.0 | N102: 75 | O102: Successful | P102: 2021-04-06 | R102: N
A103: 8 | B103: 2021-04-07 | D103: NIFTY 14700 PE 08-APR | E103: Buy | F103: 72 | G103: 30 | H103: 30 | I103: 140-150 | J103: Loss of Rs.42/- | K103: =H103-F103 -> -42 | L103: 100 | M103: -3250.0 | N103: 75 | O103: Unsuccessful | P103: 2021-04-07 | R103: N
A104: 9 | B104: 2021-04-07 | D104: BANKNIFTY 32600 PE 08-APR | E104: Buy | F104: 330 | G104: 70 | H104: 390 | I104: 600 | J104: Profit of Rs.60/- | K104: =H104-F104 -> 60 | L104: 100 | M104: 1400.0 | N104: 25 | O104: Successful | P104: 2021-04-07 | R104: H
A105: 10 | B105: 2021-04-07 | D105: BANKNIFTY 32600 PE 08-APR | E105: Buy | F105: 330 | G105: 70 | H105: 130 | I105: 600 | J105: Loss of Rs.200/- | K105: =H105-F105 -> -200 | L105: 100 | M105: =(K105*N105)-L105 -> -5100.0 | N105: 25 | O105: Unsuccessful | P105: 2021-04-07 | R105: H
A106: 11 | B106: 2021-04-07 | D106: BPCL 420 PE APR | E106: Buy | F106: 7.15 | G106: 4 | H106: 8.15 | I106: 12 | J106: Profit of Rs.1.0/- | K106: =H106-F106 -> 1 | L106: 100 | M106: 1700.0 | N106: 1800 | O106: Successful | P106: 2021-04-08 | R106: N
A107: 12 | B107: 2021-04-08 | D107: NIFTY 14900 PE 08-APR | E107: Buy | F107: 28 | H107: 44 | I107: 70 | J107: Profit of Rs.16/- | K107: 16 | L107: 100 | M107: 1100.0 | N107: 75 | O107: Successful | P107: 2021-04-08 | R107: N
A108: 13 | B108: 2021-04-08 | D108: NIFTY 14900 PE 08-APR | E108: Buy | F108: 17 | H108: 33 | I108: 50 | J108: Profit of Rs.16/- | K108: 16 | L108: 100 | M108: =(K108*N108)-L108 -> 1100.0 | N108: 75 | O108: Successful | P108: 2021-04-08 | R108: N
A109: 14 | B109: 2021-04-08 | D109: ZEEL 210 CE APR | E109: Buy | F109: 7.1 | G109: 5.5 | H109: 7.85 | I109: 9.0-10 | J109: Profit of Rs.0.75/- | K109: =H109-F109 -> 0.75 | L109: 100 | M109: 2150.0 | N109: 3000 | O109: Successful | P109: 2021-04-09 | R109: H
A110: 15 | B110: 2021-04-09 | D110: ZEEL 210 CE APR | E110: Buy | F110: 7.1 | G110: 5.5 | H110: 8.05 | I110: 9.0-10 | J110: Profit of Rs.0.95/- | K110: 0.95 | L110: 100 | M110: 2750.0 | N110: 3000 | O110: Successful | P110: 2021-04-09 | R110: H
A111: 16 | B111: 2021-04-09 | D111: HDFCBANK 1460 CE APR | E111: Buy | F111: 35.5 | G111: 25.5 | H111: 20 | I111: 50-55 | J111: Loss of Rs.15.5/- | K111: =H111-F111 -> -15.5 | L111: 100 | M111: =(K111*N111)-L111 -> -8625.0 | N111: 550 | O111: Unsuccessful | P111: 2021-04-12 | R111: N
A112: 17 | B112: 2021-04-13 | D112: NIFTY 14200 PE 15-APR | E112: Buy | F112: 54 | G112: 5 | H112: 12.5 | I112: 110 | J112: Loss of Rs.41.5/- | K112: =H112-F112 -> -41.5 | L112: 100 | M112: -3212.5 | N112: 75 | O112: Unsuccessful | P112: 2021-04-15 | R112: N
A113: 18 | B113: 2021-04-13 | D113: BANKNIFTY 31000 PE 15-APR | E113: Buy | F113: 310 | G113: 90 | H113: 160 | I113: 600-700 | J113: Loss of Rs.150/- | K113: =H113-F113 -> -150 | L113: 100 | M113: =(K113*N113)-L113 -> -3850.0 | N113: 25 | O113: Unsuccessful | P113: 2021-04-13 | R113: H
A114: 19 | B114: 2021-04-13 | D114: INFY 1420 CE APR | E114: Buy | F114: 30 | G114: 22 | H114: 34.5 | I114: 40-45 | J114: Profit of Rs.4.5/- | K114: =H114-F114 -> 4.5 | L114: 100 | M114: 2600.0 | N114: 600 | O114: Successful | P114: 2021-04-13 | R114: H
A115: 20 | B115: 2021-04-13 | D115: INFY 1420 CE APR | E115: Buy | F115: 29.5 | G115: 22 | H115: 34.5 | I115: 40-45 | J115: Profit of Rs.5/- | K115: =H115-F115 -> 5 | L115: 100 | M115: =(K115*N115)-L115 -> 2900.0 | N115: 600 | O115: Successful | P115: 2021-04-13 | R115: H
A116: 21 | B116: 2021-04-13 | D116: HEROMOTOCO 2950 CE APR | E116: Buy | F116: 34 | G116: 20 | H116: 41 | I116: 60 | J116: Profit of Rs.7/- | K116: =H116-F116 -> 7 | L116: 100 | M116: =(K116*N116)-L116 -> 2000.0 | N116: 300 | O116: Successful | P116: 2021-04-13 | R116: N
A117: 22 | B117: 2021-04-15 | D117: HEROMOTOCO 2950 CE APR | E117: Buy | F117: 39 | G117: 25 | H117: 46 | I117: 60 | J117: Profit of Rs.7/- | K117: =H117-F117 -> 7 | L117: 100 | M117: =(K117*N117)-L117 -> 2000.0 | N117: 300 | O117: Successful | P117: 2021-04-16 | R117: N
A118: 23 | B118: 2021-04-15 | D118: HDFCBANK 1460 CE APR | E118: Buy | F118: 17.5 | G118: 9 | H118: 21 | I118: 35-40 | J118: Profit of Rs.3.5/- | K118: =H118-F118 -> 3.5 | L118: 100 | M118: =(K118*N118)-L118 -> 1825.0 | N118: 550 | O118: Successful | P118: 2021-04-15 | R118: H
A119: 24 | B119: 2021-04-15 | D119: NIFTY 14400 PE 15-APR | E119: Buy | F119: 27 | H119: 0 | I119: 70 | J119: Loss of Rs.27/- | K119: =H119-F119 -> -27 | L119: 100 | M119: -2125.0 | N119: 75 | O119: Unsuccessful | P119: 2021-04-15 | R119: N
A120: 25 | B120: 2021-04-16 | D120: HDFCBANK 1460 CE APR | E120: Buy | F120: 25 | G120: 14 | H120: 30 | I120: 45-50 | J120: Profit of Rs.5/- | K120: =H120-F120 -> 5 | L120: 100 | M120: =(K120*N120)-L120 -> 2650.0 | N120: 550 | O120: Successful | P120: 2021-04-16 | R120: H
A121: 26 | B121: 2021-04-16 | D121: BAJAJ-AUTO 3700 CE APR | E121: Buy | F121: 61 | G121: 40 | H121: 72 | I121: 100 | J121: Profit of Rs.11/- | K121: =H121-F121 -> 11 | L121: 100 | M121: =(K121*N121)-L121 -> 2650.0 | N121: 250 | O121: Successful | P121: 2021-04-16 | R121: N
A122: 27 | B122: 2021-04-16 | D122: BHARTIARTL 550 CE APR | E122: Buy | F122: 6.75 | G122: 4.5 | H122: 4.5 | I122: 12 | J122: Loss of Rs.2.25/- | K122: -2.25 | L122: 100 | M122: -4262.5 | N122: 1850 | O122: Unsuccessful | P122: 2021-04-19 | R122: N
A123: 28 | B123: 2021-04-16 | D123: HDFCBANK 1480 CE APR | E123: Buy | F123: 20.5 | G123: 13 | H123: 11 | I123: 30-35 | J123: Loss of Rs.9.5/- | K123: =H123-F123 -> -9.5 | L123: 100 | M123: =(K123*N123)-L123 -> -5325.0 | N123: 550 | O123: Unsuccessful | P123: 2021-04-19 | R123: H
A124: 29 | B124: 2021-04-16 | D124: LUPIN 1110 CE APR | E124: Buy | F124: 16.5 | G124: 10 | H124: 18.5 | I124: 25 | J124: Profit of Rs.2/- | K124: 2 | L124: 100 | M124: 1600.0 | N124: 850 | O124: Successful | P124: 2021-04-19 | R124: N
A125: 30 | B125: 2021-04-19 | D125: HCLTECH 1040 CE APR | E125: Buy | F125: 12.5 | G125: 5 | H125: 16 | I125: 22-25 | J125: Profit of Rs.3.5/- | K125: =H125-F125 -> 3.5 | L125: 100 | M125: =(K125*N125)-L125 -> 2350.0 | N125: 700 | O125: Successful | P125: 2021-04-19 | R125: H
A126: 31 | B126: 2021-04-19 | D126: NIFTY 14200 PE 22-APR | E126: Buy | F126: 92.5 | G126: 52 | H126: 112 | I126: 200 | J126: Profit of Rs.19.5/- | K126: =H126-F126 -> 19.5 | L126: 100 | M126: =(K126*N126)-L126 -> 1362.5 | N126: 75 | O126: Successful | P126: 2021-04-19 | R126: N
A127: 32 | B127: 2021-04-19 | D127: HCLTECH 1040 CE APR | E127: Buy | F127: 13.5 | G127: 5 | H127: 17 | I127: 22-25 | J127: Profit of Rs.3.5/- | K127: =H127-F127 -> 3.5 | L127: 100 | M127: =(K127*N127)-L127 -> 2350.0 | N127: 700 | O127: Successful | P127: 2021-04-19 | R127: H
A128: 33 | B128: 2021-04-19 | D128: NIFTY 14200 PE 22-APR | E128: Buy | F128: 90 | G128: 52 | H128: 37.5 | I128: 170 | J128: Loss of Rs.52.5/- | K128: =H128-F128 -> -52.5 | L128: 100 | M128: -4037.5 | N128: 75 | O128: Unsuccessful | P128: 2021-04-20 | R128: N
A129: 34 | B129: 2021-04-20 | D129: BHARTIARTL 540 CE APR | E129: Buy | F129: 5 | G129: 2.2 | H129: 6 | I129: 10 | J129: Profit of Rs.1/- | K129: =H129-F129 -> 1 | L129: 100 | M129: 1750.0 | N129: 1850 | O129: Successful | P129: 2021-04-20 | R129: N
A130: 35 | B130: 2021-04-20 | D130: LUPIN 1110 CE APR | E130: Buy | F130: 16 | G130: 10 | H130: 20 | I130: 25 | J130: Profit of Rs.4/- | K130: =H130-F130 -> 4 | L130: 100 | M130: =(K130*N130)-L130 -> 3300.0 | N130: 850 | O130: Successful | P130: 2021-04-20 | R130: N
A131: 36 | B131: 2021-04-20 | D131: BPCL 415 CE APR | E131: Buy | F131: 6.4-6.6 | G131: 3.6 | I131: 12 | J131: Open | R131: N
A132: 37 | B132: 2021-04-20 | D132: NIFTY 14000 PE 22-APR | E132: Buy | F132: 30-33 | I132: 70-80 | J132: Open | R132: H
A141: Techno -Funda (positional)
A142: Sr.no | B142: Date | D142: Company | E142: Rec | F142: Rec Price | G142: Stop Loss*** | H142: Call Closed At | I142: Target | J142: Remark | K142: Profit / Loss per Share/Lot | L142: All charges | M142: Net Gain / Loss % | N142: Status | O142: Closed Date
A143: 1 | B143: 2021-01-07 | D143: SIS | E143: Buy<> | F143: 422 | G143: 385 | H143: 422 | I143: 500-520 | J143: No profit no loss | K143: =H143-F143 -> 0 | L143: =(F143*-0.8)/100 -> -3.38 | M143: =(K143+L143)/F143 -> -0.80% | N143: Neutral | O143: 2021-04-12 | R143: H
A144: 2 | B144: 2021-02-11 | D144: MCX | E144: Buy | F144: 1515 | G144: 1390 | H144: 1595 | I144: 1800-1850 | J144: Part profit of Rs.80/- | K144: =H144-F144 -> 80 | L144: =(F144*-0.8)/100 -> -12.12 | M144: =(K144+L144)/F144 -> 4.48% | N144: Successful | O144: 2021-03-16 | R144: H
A145: 3 | B145: 2021-03-19 | D145: GMMPFAUDLR | E145: Buy | F145: 4070 | G145: 3750 | H145: 4530 | I145: 4800 | J145: Profit of Rs.460/- | K145: =H145-F145 -> 460 | L145: =(F145*-0.8)/100 -> -32.56 | M145: =(K145+L145)/F145 -> 10.50% | N145: Successful | O145: 2021-04-01 | R145: H
A148: CLBS = Closing Basis *** | F148: Reinitiated $
A149: Dividend adjusted <> | F149: Revised stoploss #
B151: Intrday Call
A152: Sr.no | B152: Date | D152: Company | E152: Rec | F152: Rec Price | G152: Stop Loss | H152: Call Closed At | I152: Target | J152: Remark | K152: Profit / Loss per Share/Lot | L152: Gain / Loss per Lot | M152: Lot | N152: All charges | O152: Net Gain / Loss % | P152: Status | Q152: Closed Date
B165: Investment Idea
A166: Sr.no | B166: Date | D166: Company | E166: Rec | F166: Rec Price | G166: Point of Review | H166: Close Rate | I166: Target | J166: Remark | K166: Profit / Loss per Share | L166: Gain / Loss % | M166: Status | N166: Closed Date
A167: 1 | B167: 2013-11-01 | D167: L&T Finance Holding | E167: Accu | F167: 82.00 | G167: - | H167: 100 | I167: 100.00 | J167: Target Achieved | K167: =H167-F167 -> 18.00 | L167: =K167/F167 -> 21.95% | M167: Successful | N167: 2016-10-14
A168: 2 | B168: 2014-06-04 | D168: Finolex Inds | E168: Buy | F168: 257.00 | G168: - | H168: 300 | I168: 300.00 | J168: Target Achieved | K168: 43.00 | L168: 16.73% | M168: Successful | N168: 2014-07-02
A169: 3 | B169: 2014-07-08 | D169: JK Cement | E169: Buy | F169: 393.00 | G169: - | H169: 468 | I169: 468.00 | J169: Target Achieved | K169: 75.00 | L169: 19.08% | M169: Successful | N169: 2014-08-12
A170: 4 | B170: 2014-08-06 | D170: Finolex Cables | E170: Buy | F170: 205.00 | G170: - | H170: 275 | I170: 250.00 | J170: Target Achieved | K170: 70.00 | L170: 34.15% | M170: Successful | N170: 2014-11-19
A171: 5 | B171: 2014-09-04 | D171: Exide Inds | E171: Buy | F171: 162.00 | G171: - | H171: 190 | I171: 190.00 | J171: Target Achieved | K171: 28.00 | L171: 17.28% | M171: Successful | N171: 2015-01-02
A172: 6 | B172: 2014-09-04 | D172: Deepak Nitrite | E172: Buy | F172: 75.00 | G172: - | H172: 91.5 | I172: 95-100 | J172: Profit of Rs.16.50/- | K172: 16.50 | L172: 22.00% | M172: Successful | N172: 2014-11-11
A173: 7 | B173: 2014-10-01 | D173: Mercks | E173: Buy | F173: 850.00 | G173: - | H173: 982.5 | I173: 1050.00 | J173: Profit of Rs.132.50/- | K173: 132.50 | L173: 15.59% | M173: Successful | N173: 2015-02-04
A174: 8 | B174: 2014-10-01 | D174: Grindwell Norton | E174: Buy | F174: 475.00 | G174: - | H174: 515 | I174: 600.00 | J174: Profit of Rs.40/- | K174: 40.00 | L174: 8.42% | M174: Successful | N174: 2014-10-27
A175: 9 | B175: 2014-10-01 | D175: Snowman Logistics | E175: Buy | F175: 86.00 | G175: - | H175: 99 | I175: 140.00 | J175: Profit of Rs.13.00/- | K175: 13.00 | L175: 15.12% | M175: Successful | N175: 2014-10-27
A176: 10 | B176: 2014-10-14 | D176: Birla Corp | E176: Buy | F176: 496.60 | G176: - | H176: 621 | I176: 580.00 | J176: Target Achieved | K176: 124.40 | L176: 25.05% | M176: Successful | N176: 2016-08-23
A177: 11 | B177: 2014-10-14 | D177: Ultratech Cem | E177: Buy | F177: 2481.90 | G177: - | H177: 2840 | I177: 2870.00 | J177: Profit of Rs.358.10/- | K177: 358.10 | L177: 14.43% | M177: Successful | N177: 2015-01-13
A178: 12 | B178: 2014-10-16 | D178: Sintex Inds | E178: Buy | F178: 84.50 | G178: - | H178: 93 | I178: 110.00 | J178: Profit of Rs.8.50/- | K178: 8.50 | L178: 10.06% | M178: Successful | N178: 2014-10-27
A179: 13 | B179: 2014-10-16 | D179: HSIL | E179: Buy | F179: 401.00 | G179: - | H179: 428 | I179: 450.00 | J179: Profit of Rs.27.00/- | K179: 27.00 | L179: 6.73% | M179: Successful | N179: 2015-01-16
A180: 14 | B180: 2014-10-16 | D180: Eveready Inds | E180: Buy | F180: 101.00 | G180: - | H180: 112 | I180: 120.00 | J180: Profit of Rs.11.00/- | K180: 11.00 | L180: 10.89% | M180: Successful | N180: 2014-10-27
A181: 15 | B181: 2014-11-11 | D181: Pennar Inds | E181: Buy | F181: 59.00 | G181: - | H181: 76 | I181: 76.00 | J181: Target Achieved | K181: 17.00 | L181: 28.81% | M181: Successful | N181: 2017-10-24
A182: 16 | B182: 2014-11-11 | D182: Snowman Logistics | E182: Buy | F182: 99.00 | G182: - | H182: 120 | I182: 120.00 | J182: Profit of Rs.21/- | K182: 21.00 | L182: 21.21% | M182: Successful | N182: 2014-11-17
A183: 17 | B183: 2014-11-13 | D183: Dharamsi Morarji Chem | E183: Buy | F183: 22.00 | G183: - | H183: 33.55 | I183: 32.00 | J183: Profit of Rs 11.55/- | K183: 11.55 | L183: 52.50% | M183: Successful | N183: 2015-07-03
A184: 18 | B184: 2014-12-03 | D184: Tatachem | E184: Buy | F184: 440.00 | G184: - | H184: 520 | I184: 520.00 | J184: Profit of Rs 80.00/- | K184: 80.00 | L184: 18.18% | M184: Successful | N184: 2015-07-23
A185: 19 | B185: 2014-12-03 | D185: Advanta | E185: Buy | F185: 360.00 | G185: - | H185: 427 | I185: 425.00 | J185: Profit of Rs.67.00/- | K185: 67.00 | L185: 18.61% | M185: Successful | N185: 2015-02-23
A186: 20 | B186: 2015-01-08 | D186: GDL | E186: Buy | F186: 360.00 | G186: - | H186: 455 | I186: 420.00 | J186: Profit of Rs.95.00/- | K186: 95.00 | L186: 26.39% | M186: Successful | N186: 2015-01-20
A187: 21 | B187: 2015-01-08 | D187: NRB Bearing | E187: Buy | F187: 130.00 | H187: 175.5 | I187: 165.00 | J187: Profit of Rs 45.50/- | K187: 45.50 | L187: 35.00% | M187: Successful | N187: 2017-12-19
A188: 22 | B188: 2015-02-05 | D188: GSFC | E188: Accu | F188: 98.00 | H188: 120 | I188: 120.00 | J188: Target Achieved | K188: 22.00 | L188: 22.45% | M188: Successful | N188: 2017-01-18
A189: 23 | B189: 2015-02-05 | D189: Sundrmfast | E189: Accu | F189: 196.00 | H189: 262 | I189: 255.00 | J189: Target Achieved | K189: 66.00 | L189: 33.67% | M189: Successful | N189: 2016-08-17
A190: 24 | B190: 2015-03-04 | D190: GPPL | E190: Accu | F190: 235 | H190: 77.00 | I190: 280-285 | J190: Loss of Rs.158/- | K190: -158.00 | L190: -67.23% | M190: Unsuccessful | N190: 2019-02-26
A191: 25 | B191: 2015-03-04 | D191: ORIENTCEM | E191: Accu | F191: 185.00 | H191: 224 | I191: 220-225 | J191: Target Achieved | K191: 39.00 | L191: 21.08% | M191: Successful | N191: 2016-10-04
A192: 26 | B192: 2015-03-27 | D192: PFS | E192: Accu | F192: 49.5 | H192: 15.85 | I192: 67.00 | J192: Loss of Rs.33.65/- | K192: -33.65 | L192: -68% | M192: Unsuccessful | N192: 2019-06-11
A193: 27 | B193: 2015-03-30 | D193: Walchandnagar Ind Ltd | E193: Accu | F193: 183.50 | H193: 219 | I193: 218.00 | J193: Profit of Rs.35.50/- | K193: 35.50 | L193: 19.35% | M193: Successful | N193: 2015-04-09
A194: 28 | B194: 2015-04-20 | D194: Kalpataru Power Transmission Ltd | E194: Accu | F194: =(227+237)/2 -> 232.00 | H194: 298 | I194: 298.00 | J194: Target Achieved | K194: 66.00 | L194: 28.45% | M194: Successful | N194: 2017-03-29
A195: 29 | B195: 2015-05-04 | D195: Mastek Ltd | E195: Buy | F195: 385.00 | H195: =212.5+331 -> 543.5 | I195: 510.00 | J195: Profit of Rs 158.50/- | K195: 158.50 | L195: 41.17% | M195: Successful | N195: 2015-08-19
A196: 30 | B196: 2015-05-04 | D196: Suprajit Eng | E196: Buy | F196: 115.50 | H196: 146 | I196: 142.00 | J196: Profit of Rs 30.50/- | K196: 30.50 | L196: 26.41% | M196: Successful | N196: 2015-07-17
A197: 31 | B197: 2015-05-27 | D197: TCI | E197: Buy | F197: 237.50 | H197: 279.5 | I197: 278.00 | J197: Target Achieved | K197: 42.00 | L197: 17.68% | M197: Successful | N197: 2015-08-06
A198: 32 | B198: 2015-06-19 | D198: HSIL | E198: Accu | F198: 340.00 | H198: 448 | I198: 448.00 | J198: Target Achieved | K198: 108.00 | L198: 31.76% | M198: Successful | N198: 2017-10-10
A199: 33 | B199: 2015-07-06 | D199: Capital First | E199: Accu | F199: 390.00 | H199: 460 | I199: 460.00 | J199: Target Achieved | K199: =H199-F199 -> 70.00 | L199: =K199/F199 -> 17.95% | M199: Successful | N199: 2016-04-18
A200: 34 | B200: 2015-07-10 | D200: Dolphin OffShore | E200: Accu | F200: 122.5 | H200: 61.00 | I200: 172.00 | J200: Loss of Rs.61.50/- | K200: -61.50 | L200: -50.20% | M200: Unsuccessful | N200: 2018-08-21
A201: 35 | B201: 2015-08-03 | D201: Allcargo logistics | E201: Accu | F201: 297.50 | H201: 350 | I201: 360.00 | J201: Profit of Rs 52.50/- | K201: 52.50 | L201: 17.65% | M201: Successful | N201: 2015-08-16
A202: 36 | B202: 2015-08-03 | D202: Camline Fine | E202: Accu | F202: 115.50 | H202: 149 | I202: 140.00 | J202: Profit of Rs 33.50/- | K202: 33.50 | L202: 29.00% | M202: Successful | N202: 2017-01-05
A203: 37 | B203: 2015-09-04 | D203: TCI | E203: Accu | F203: 226.00 | H203: 292 | I203: 292.00 | J203: Target Achieved | K203: 66.00 | L203: 29.20% | M203: Successful | N203: 2015-10-09
A204: 38 | B204: 2015-09-07 | D204: Kalpataru Power Transmission Ltd | E204: Accu | F204: 232.50 | H204: 312.5 | I204: 310.00 | J204: Target Achieved | K204: 80.00 | L204: 34.41% | M204: Successful | N204: 2017-03-29
A205: 39 | B205: 2015-09-21 | D205: LLOYD ELECTRIC & ENG LTD | E205: Accu | F205: 196.50 | H205: 238 | I205: 238.00 | J205: Target Achieved | K205: 41.50 | L205: 21.12% | M205: Successful | N205: 2015-10-14
A206: 40 | B206: 2015-09-24 | D206: L&T Finance Holding | E206: Accu | F206: 65.00 | H206: 82 | I206: 82.00 | J206: Target Achieved | K206: 17.00 | L206: 26.15% | M206: Successful | N206: 2016-07-27
A207: 41 | B207: 2015-10-14 | D207: KEC International ltd | E207: Accu | F207: 144.00 | H207: 182.5 | I207: 181.00 | J207: Target Achieved | K207: 38.50 | L207: 26.74% | M207: Successful | N207: 2017-03-23
A208: 42 | B208: 2015-10-14 | D208: Gruh Finance | E208: Accu | F208: 264.00 | H208: 311 | I208: 311.00 | J208: Target Achieved | K208: 47.00 | L208: 17.80% | M208: Successful | N208: 2016-08-22
A209: 43 | B209: 2015-11-10 | D209: Pidilitind | E209: Buy | F209: 549.50 | H209: 630 | I209: 630.00 | J209: Target Achieved | K209: 80.50 | L209: 14.65% | M209: Successful | N209: 2016-02-19
A210: 44 | B210: 2015-12-04 | D210: Zensar Technology | E210: Accu | F210: 1027.50 | H210: 1315 | I210: 1250.00 | J210: Target Achieved | K210: 287.50 | L210: 27.98% | M210: Successful | N210: 2018-05-24
A211: 45 | B211: 2015-12-29 | D211: Vinati Organics Ltd | E211: Accu | F211: 465.00 | H211: 540 | I211: 540.00 | J211: Target Achieved | K211: 75.00 | L211: 16.13% | M211: Successful | N211: 2016-06-09
A212: 46 | B212: 2016-01-11 | D212: GSFC | E212: Buy | F212: 81.00 | H212: 110 | I212: 110.00 | J212: Target Achieved | K212: 29.00 | L212: 35.80% | M212: Successful | N212: 2017-01-10
A213: 47 | B213: 2016-01-13 | D213: SSWL | E213: Buy | F213: 417.50 | H213: 547 | I213: 535.00 | J213: Target Achieved | K213: 129.50 | L213: 31.02% | M213: Successful | N213: 2016-07-27
A214: 48 | B214: 2016-02-08 | D214: Persistent System Ltd | E214: Accu | F214: 650.00 | H214: 800 | I214: 800.00 | J214: Target Achieved | K214: 150.00 | L214: 23.08% | M214: Successful | N214: 2018-02-23
A215: 49 | B215: 2016-03-04 | D215: UPL | E215: Accu | F215: 437.50 | H215: 504.5 | I215: 522.00 | J215: Profit of Rs.67/- | K215: 67.00 | L215: 15.31% | M215: Successful | N215: 2016-04-20
A216: 50 | B216: 2016-03-09 | D216: Ashoka Buildcon Ltd | E216: Accu | F216: 189.50 | H216: 218 | I216: 218.00 | J216: Target Achieved | K216: 28.50 | L216: 15.04% | M216: Successful | N216: 2017-10-26
A217: 51 | B217: 2016-04-11 | D217: PTC INDIA FIN SERV LTD | E217: Accu | F217: 36.5 | H217: 15.85 | I217: 60.00 | J217: Loss of Rs.20.65/- | K217: -20.65 | L217: -56.58% | M217: Unsuccessful | N217: 2019-06-11
A218: 52 | B218: 2016-04-12 | D218: CAMLINFINE $ | E218: Accu | F218: 93.00 | H218: 149 | I218: 140.00 | J218: Profit of Rs 56/- | K218: 56.00 | L218: 60.22% | M218: Successful | N218: 2017-01-05
A219: 53 | B219: 2016-04-12 | D219: Greaves Cotton Ltd. | E219: Accu | F219: 130.00 | H219: 150 | I219: 150-155 | J219: Target Achieved | K219: 20.00 | L219: 15.38% | M219: Successful | N219: 2016-07-13
A220: 54 | B220: 2016-04-13 | D220: DHFL | E220: Accu | F220: 196.00 | H220: 299 | I220: 299.00 | J220: Target Achieved | K220: 103.00 | L220: 52.55% | M220: Successful | N220: 2016-09-07
A221: 55 | B221: 2016-04-13 | D221: Magma | E221: Accu | F221: 88.00 | H221: 103 | I221: 103.00 | J221: Target Achieved | K221: 15.00 | L221: 17.05% | M221: Successful | N221: 2016-06-09
A222: 56 | B222: 2016-05-02 | D222: KEC International ltd $ | E222: Accu | F222: 127.50 | H222: 148 | I222: 148-150 | J222: Target Achieved | K222: =H222-F222 -> 20.50 | L222: =K222/F222 -> 16.08% | M222: Successful | N222: 2016-07-13
A223: 57 | B223: 2016-05-03 | D223: Mindtree | E223: Accu | F223: 675.00 | H223: 815 | I223: 790-800 | J223: Target Achieved | K223: =H223-F223 -> 140.00 | L223: =K223/F223 -> 20.74% | M223: Successful | N223: 2018-02-23
A224: 58 | B224: 2016-06-01 | D224: Atulauto | E224: Accu | F224: 500 | H224: 232.50 | I224: 565-570 | J224: Loss of Rs.267.50 /- | K224: =H224-F224 -> -267.50 | L224: =K224/F224 -> -53.50% | M224: Unsuccessful | N224: 2019-09-27
A225: 59 | B225: 2016-06-06 | D225: TRITURBINE | E225: Accu | F225: 110.00 | H225: 126.5 | I225: 125.00 | J225: Profit of Rs.16.50/- | K225: =H225-F225 -> 16.50 | L225: =K225/F225 -> 15.00% | M225: Successful | N225: 2016-07-01
A226: 60 | B226: 2016-06-17 | D226: Pennar Industries Ltd | E226: Accu | F226: 44.00 | H226: 69.5 | I226: 69.50 | J226: Profit of Rs.25.50/- | K226: =H226-F226 -> 25.50 | L226: =K226/F226 -> 57.95% | M226: Successful | N226: 2017-08-30
A227: 61 | B227: 2016-06-28 | D227: EVEREADY | E227: Accu | F227: 262.50 | H227: 340 | I227: 333.00 | J227: Profit of Rs.77.50/- | K227: 77.50 | L227: 29.52% | M227: Successful | N227: 2017-10-09
A228: 62 | B228: 2016-06-28 | D228: FIEMIND | E228: Accu | F228: 840.00 | H228: 1230 | I228: 1230.00 | J228: Target Achieved | K228: 390.00 | L228: 46.43% | M228: Successful | N228: 2016-10-06
A229: 63 | B229: 2016-07-05 | D229: Bajaj Corp Ltd | E229: Accu | F229: 395 | H229: =(468.5+342.5)/2 -> 405.50 | I229: 510.00 | J229: Profit of Rs.10.50/- | K229: =H229-F229 -> 10.50 | L229: =K229/F229 -> 3% | M229: Neutral | N229: 2019-05-21
A230: 64 | B230: 2016-08-02 | D230: GPPL $ | E230: Buy | F230: =169.5-12.8 -> 156.7 | H230: 77.00 | I230: 198-200 | J230: Loss of Rs.79.7/- | K230: -79.70 | L230: -50.86% | M230: Unsuccessful | N230: 2019-02-26
A231: 65 | B231: 2016-08-04 | D231: WONDERLA HOLIDAYS LTD | E231: Accu | F231: 400 | H231: 305.00 | I231: 475.00 | J231: Loss of Rs.95/- | K231: -95.00 | L231: -23.75% | M231: Unsuccessful | N231: 2019-05-21
A232: 66 | B232: 2016-08-11 | D232: CAMLINFINE | E232: Accu | F232: 86.50 | H232: 130 | I232: 130.00 | J232: Profit of Rs.43.50/- | K232: 43.50 | L232: 50.29% | M232: Successful | N232: 2017-12-22
A233: 67 | B233: 2016-08-18 | D233: GRANULES | E233: Accu | F233: 133.5 | H233: 126.50 | I233: 178.00 | J233: Exit | K233: -7.00 | L233: -5.24% | M233: Unsuccessful | N233: 2016-09-02
A234: 68 | B234: 2016-08-31 | D234: VA TECH WABAG | E234: Accu | F234: 560.00 | H234: 725 | I234: 725.00 | J234: Target Achieved | K234: 165.00 | L234: 29.46% | M234: Successful | N234: 2016-03-27
A235: 69 | B235: 2016-09-01 | D235: SKIPPER LIMITED | E235: Accu | F235: 160.50 | H235: 210 | I235: 210.00 | J235: Target Achieved | K235: 49.50 | L235: 30.84% | M235: Successful | N235: 2017-05-16
A236: 70 | B236: 2016-10-03 | D236: IFBIND | E236: Accu | F236: 430.00 | H236: 596 | I236: 575.00 | J236: Profit of Rs.166/- | K236: 166.00 | L236: 38.60% | M236: Successful | N236: 2017-02-03
A237: 71 | B237: 2016-10-14 | D237: ASIANTILES | E237: Accu | F237: 280.00 | H237: 345 | I237: 345.00 | J237: Target Achieved | K237: =H237-F237 -> 65.00 | L237: =K237/F237 -> 23.21% | M237: Successful | N237: 2017-03-20
A238: 72 | B238: 2016-10-14 | D238: DEEPIND | E238: Accu | F238: 245.00 | H238: 325.5 | I238: 330.00 | J238: Profit of Rs.80.5/- | K238: 80.50 | L238: =K238/F238 -> 32.86% | M238: Successful | N238: 2017-02-03
A239: 73 | B239: 2016-10-17 | D239: DCBBANK | E239: Accu | F239: 125.00 | H239: 160 | I239: 160.00 | J239: Target Achieved | K239: 35.00 | L239: 28.00% | M239: Successful | N239: 2017-03-09
A240: 74 | B240: 2016-10-17 | D240: ORIENTREF | E240: Accu | F240: 114.00 | H240: 145 | I240: 145.00 | J240: Target Achieved | K240: 31.00 | L240: =K240/F240 -> 27.19% | M240: Successful | N240: 2017-05-04
A241: 75 | B241: 2016-10-17 | D241: GANECOS | E241: Accu | F241: 212.00 | H241: 280 | I241: 276.00 | J241: Profit of Rs.68/- | K241: 68.00 | L241: =K241/F241 -> 32.08% | M241: Successful | N241: 2017-05-03
A242: 76 | B242: 2016-11-04 | D242: NBCC | E242: Accu | F242: 155.00 | H242: 210 | I242: 210.00 | J242: Profit of Rs.55/- | K242: 55.00 | L242: =K242/F242 -> 35.48% | M242: Successful | N242: 2017-07-28
A243: 77 | B243: 2016-12-06 | D243: PRECAM | E243: Accu | F243: 150.5 | H243: 72.50 | I243: 174.00 | J243: Loss of Rs.78/- | K243: -78.00 | L243: -51.83% | M243: Unsuccessful | N243: 2018-08-21
A244: 78 | B244: 2016-12-08 | D244: INFRATEL | E244: Accu | F244: 380.00 | H244: 478 | I244: 468.00 | J244: Target Achieved | K244: =H244-F244 -> 98.00 | L244: =K244/F244 -> 25.79% | M244: Successful | N244: 2017-10-17
A245: 79 | B245: 2016-12-30 | D245: GODREJPROP | E245: Accu | F245: 305.00 | H245: 375 | I245: 375.00 | J245: Target Achieved | K245: =H245-F245 -> 70.00 | L245: =K245/F245 -> 22.95% | M245: Successful | N245: 2017-02-02
A246: 80 | B246: 2017-01-04 | D246: DEEPAKNTR | E246: Accu | F246: 99.50 | H246: 158 | I246: 158.00 | J246: Target Achieved | K246: =H246-F246 -> 58.50 | L246: =K246/F246 -> 58.79% | M246: Successful | N246: 2017-06-12
... 85 more rows
